Workbook

Sheet Design Regulator
A1: LM25141-Q1 Synchronous Buck Controller Design Tool
O2: http://www.ti.com/product/lm5175
A3: About | C3: xx | F3: = Input Box | O3: TERMS OF USE
A5: Step 1: Operating Specifications
D6: Input Voltage – Min, VIN(min) | E6: 8 | F6: V
D7: Input Voltage – Nom, VIN(nom) | E7: 13.5 | F7: V
D8: Input Voltage – Max, VIN(max) | E8: 18 | F8: V
D9: Output Voltage, VOUT | E9: 5 | F9: V
D10: Full Load Output Current, IOUT | E10: 12 | F10: A
D11: =IF(OSC=1, "* Tie OSC to VDDA", "* Tie OSC to AGND") -> * Tie OSC to VDDA
D12: Switching Frequency, FSW | E12: 2100 | F12: kHz
D13: Frequency Set Resistor, RT | E13: ='Variable Management'!C367 -> 52.3 | F13: kΩ
D14: Ambient Temperature, TA | E14: 25 | F14: °C
A16: Step 2: Current Sense Resistor
D17: Required IOCP Setpoint at VIN(nom) | E17: 18 | F17: A
D18: Recommended Sense Resistance | E18: =Rs_ideal*1000 -> 3.869870234 | F18: mΩ
D19: Sense Resistance, RS | E19: 4 | F19: mΩ
D20: Min Inductor Sat Current, ILO(SAT) | E20: ='Variable Management'!B95 -> 18.75 | F20: A
D21: Max power loss in shunt | E21: ='Variable Management'!B105 -> 1.286806666 | F21: W
D22: VIN(min) | E22: ='Variable Management'!B97 -> 17.92979138 | F22: A
C23: IOUT(typ) at OCP Inception: | D23: VIN(nom) | E23: ='Variable Management'!B98 -> 17.36950519 | F23: A
D24: VIN(max) | E24: ='Variable Management'!B99 -> 17.16508742 | F24: A
A26: Step 3: Buck Inductance
D27: Recommended Inductance | E27: =Lopt*1000000 -> 0.3968253968 | F27: µH
D28: Inductance, LO | E28: 0.55 | F28: µH
D29: Inductor DCR | E29: 2.9 | F29: mΩ
D30: DIL as a % at VIN(nom) | E30: ='Variable Management'!B68*100 -> 23.00824688 | F30: %
A34: Step 4: Output Capacitors
D35: Output Voltage Ripple Spec | E35: 100 | F35: mVPK-PK
D36: Minimum Output Capacitance | E36: ='Variable Management'!B121 -> 2.2 | F36: µF
D37: Output Capacitance (derated), COUT | E37: 85 | F37: µF | L37: =CHOOSE(SCH_MODE, "", "** For Single-Output Operation in 2-Phase Mode, tie MODE to VDDA and use FB1 to set VOUT **", "** For Single-Output Operation in 3-Phase Mode, tie both MODE pins to VDDA. Use FB1 of master IC to set VOUT. Connect FB2 of master IC to AGND. Connect FB2 of slave IC to VDDA to configure it as a slave **", "** For Single-Output Operation in 4-Phase Mode, tie both MODE pins to VDDA. Use FB1 of master IC to set VOUT. Connect FB2 of master IC to AGND. Connect FB2 of slave IC to VDDA to configure it as a slave **") -> 
D38: Maximum Permitted ESR | E38: ='Variable Management'!B125 -> 36.21212694 | F38: mΩ
D39: Output Capacitor ESR | E39: 1 | F39: mΩ | L39: =CHOOSE(SCH_MODE, "", "** Tie VCCX to GND if not used **", "** Slave controller (CNTRL2) not shown **","** Slave controller (CNTRL2) not shown **") -> 
D40: Resulting Output Voltage Ripple (max) | E40: ='Variable Management'!B127*1000 -> 3.370660909 | F40: mVPK-PK | L40: =IF(OR(SCH_MODE=3, SCH_MODE=4),"** Tie VCCX to GND if not used **", "") -> 
D41: Output Capacitor RMS Current (max) | E41: ='Variable Management'!B114 -> 0.9150497022 | F41: ARMS
A43: Step 5: Input Capacitors
D44: Input Voltage Ripple Spec | E44: 100 | F44: mVPk-PK
D45: Minimum Input Capacitance | E45: ='Variable Management'!B146 -> 14.28571429 | F45: µF
D46: Input Capacitance (derated), CIN | E46: 30 | F46: µF
D47: Maximum Permitted ESR | E47: ='Variable Management'!B152 -> 3.855818143 | F47: mΩ
D48: Input Capacitor ESR | E48: 1 | F48: mΩ
D49: Resulting Input Voltage Ripple (max) | E49: ='Variable Management'!B158*1000 -> 61.20396019 | F49: mVPK-PK
D50: Input Capacitor RMS Current (max) | E50: ='Variable Management'!B138 -> 5.83047477 | F50: ARMS
A52: Step 6: Soft-start, Hiccup, Dither, Diode Emulation Mode
D53: Soft-Start Time, tSS | E53: 3 | F53: ms
D54: Soft-Start Capacitance, CSS | E54: =IF(Tss>0.5/1000,Css_u*1000000000,"N/A") -> 56 | F54: nF
D55: Hiccup Fault Time, tRES | E55: 20 | F55: ms
D56: RES Capacitance, CRES | E56: =IF(Tres>1/1000,Cres_u*1000000000,"N/A") -> 330 | F56: nF
D57: Modulating Frequency | E57: 8 | F57: =IF(DITHER=1, "kHz", "") -> kHz
D58: =IF(DITHER=1, "DITH Capacitance, Cd", "* Tie DITH to VDDA") -> DITH Capacitance, Cd | E58: =IF(DITHER=1,IF(E57>0,'Standard Value Calculator'!O22*1000000000,"N/A"),"") -> 10 | F58: =IF(DITHER=1, "nF", "") -> nF
D59: =IF(DEMB=1, "* Tie DEMB to VDDA", "* Tie DEMB to AGND") -> * Tie DEMB to VDDA
A62: Step 7: Compensation Design
D63: Load Pole Frequency | E63: =Fp_dominant -> 5530.334462 | F63: Hz
D64: ESR Zero Frequency | E64: =Fesr/1000 -> 1872.411097 | F64: kHz
D65: Desired Crossover Frequency | E65: 60 | F65: =" kHz " -> kHz
D66: Error Amp Pole Frequency | E66: =Fp1_u -> 0.5290612206 | F66: Hz
D67: =CHOOSE(VOUT_setting, "Upper Feedback Resistor", "* Tie FB to AGND for Fixed 5V Output", "* Tie FB to VDDA for Fixed 3.3V Output") -> * Tie FB to AGND for Fixed 5V Output | E67: 49.9 | F67: kΩ
D68: =CHOOSE(VOUT_setting, "Lower Feedback Resistor", "", "") ->  | E68: =IF(Vout=Vref,"OPEN",Rfb2_u/1000) -> 15.8 | F68: =IF(Vout=Vref,"","kΩ") -> kΩ
A70: Compensation Components
B71: Calculated / | C71: Std Values | D71: =C71 -> Std Values | F71: Actual P/Z Frequencies
A72: RC1 | B72: =Rcea1/1000 -> 5.340707505 | C72: ='Standard Value Calculator'!O30 -> 5.36 | D72: =C72 -> 5.36 | E72: kΩ | F72: =Fp1_u -> 0.5290612206 | G72: Hz (FPEA)
A73: CC1 | B73: =Cc1ea*1000000000 -> 4.9667247 | C73: ='Standard Value Calculator'!O31 -> 4.7 | D73: =C73 -> 4.7 | E73: nF | F73: =Fz1_u/1000 -> 6.317677964 | G73: kHz (FZCOMP)
A74: CC2 | B74: =IF(Cc2ea<0, "N/A", Cc2ea*1000000000000) -> N/A | C74: ='Standard Value Calculator'!O32 -> 0 | D74: =C74 -> 0 | E74: pF | F74: =Fp2_u/1000 -> 932.8358209 | G74: kHz (FPCOMP)
N75: ** Specify Inductor Core Loss ** | O75: 0.25 | P75: W
A77: Efficiency / Power Loss Analyzer
A79: Step 8: Efficiency
F80: Power MOSFETs | G80: (Q1, Q2)
E81: IAUC60N04S6L039, L032
E82: High-side | F82: Low-side
D83: On-State Resistance, RDS(on) | E83: 4.5 | F83: 3.65 | G83: mΩ
D84: Total Gate Charge, QG | E84: 8 | F84: 9 | G84: nC
D85: Gate-Drain Charge, QGD | E85: 3.1 | F85: 3.9 | G85: nC
D86: Gate-Source Charge, QGS | E86: 2.9 | F86: 3.8 | G86: nC
D87: Output Charge, QOSS | F87: 12 | G87: nC
D88: Output Capacitance, COSS | E88: 259 | F88: 330 | G88: pF
D89: Gate Resistance, RG | E89: 0 | F89: 0 | G89: Ω
D90: Transconductance, gFS | E90: 71 | F90: 71 | G90: S
D91: Gate-Source Threshold Voltage, VTH | E91: 3.2 | F91: 3.2 | G91: V
D92: Body Diode Forward Voltage, VBD | E92: 0.8 | F92: 0.8 | G92: V
D93: Body Diode Rev Recovery Charge, QRR | F93: 13 | G93: nC
D94: Thermal Resistance, θJA | E94: 50 | F94: 50 | G94: °C/W
A96: External Schottky Diode (if applicable)
D97: Schottky Fwd Voltage, VFWDsch | F97: 0 | G97: V
D98: Schottky Rev Recovery Charge, QRRsch | F98: 0 | G98: nC
A100: Step 9: IC Power Loss
D101: IC Power Dissipation | E101: ='Variable Management'!B308 -> 0.1785 | F101: W
D102: IC Junction Temperature (estimate) | E102: ='Variable Management'!B310 -> 31.08685 | F102: °C
E103: =CHOOSE(Ext_VCC, "* Tie VCCX to VOUT", "* Tie VCCX to PGND") -> * Tie VCCX to VOUT

Sheet BOM & Schematic
A36: ** Tie DEMB to VDDA for FPWM, AGND for DEM **
A37: ** Tie VCCX to GND if not used ** | I37: =IF(OR(SCH_MODE=3, SCH_MODE=4),"** Tie VCCX to GND if not used **", "") -> 
A38: ** Tie DITH to VDDA to disable spread spectrum **
A39: ** Tie OSC to VDDA for 2.2MHz, AGND for 440kHz **
A40: ="VIN = "&VIN_min&"V to "&VIN_max&"V, VOUT = "& Vout &"V, IOUT = " &Iout & "A, Fsw = " & Fsw/1000 &"kHz, Current Limit = "&ROUNDUP(Ilimit_DC,0)&"A" -> VIN = 8V to 18V, VOUT = 5V, IOUT = 12A, Fsw = 2100kHz, Current Limit = 18A
A41: High Efficiency Synchronous Buck Regulator BOM
A42: Count | B42: Ref Des | C42: Value | D42: Description | H42: Size | I42: Part Number | J42: MFR
A43: 1 | B43: CBOOT | C43: 0.1 | D43: =C43 -> 0.1 | H43: 0603 | I43: Std | J43: Std
A44: 1 | B44: CC1 | C44: ='Design Regulator'!D73 -> 4.7 | D44: 4.7 | H44: 0603 | I44: Std | J44: Std
A45: 1 | B45: CC2 | C45: ='Design Regulator'!D74 -> 0 | D45: 0 | H45: 0603 | I45: Std | J45: Std
A46: 1 | B46: CRES | C46: =Cres_u*1000000000 -> 330 | D46: =C46 -> 330 | H46: 0603 | I46: Std | J46: Std
A47: 1 | B47: CDITH | C47: =Cdither*1000000000 -> 10 | D47: =C47 -> 10 | H47: 0603 | I47: Std | J47: Std
A48: =ROUNDUP('Design Regulator'!E46/10,0) -> 3 | B48: CIN | C48: 10 | D48: =C48 -> 10 | H48: 1210 | I48: Std | J48: Std
A49: =ROUNDUP('Design Regulator'!E37/47,0) -> 2 | B49: COUT | C49: 47 | D49: =C49 -> 47 | H49: 1210 | I49: Std | J49: Std
A50: 1 | B50: CSS | C50: ='Design Regulator'!E54 -> 56 | D50: =C50 -> 56 | H50: 0603 | I50: Std | J50: Std
A51: 2 | B51: CVCC, CVCCX | C51: 2.2 | D51: 2.2 | H51: 0603 | I51: Std | J51: Std
A52: 1 | B52: CVDDA | C52: 0.47 | D52: 0.47 | H52: 0603 | I52: Std | J52: Std
A53: 1 | B53: DBOOT | C53: See description | D53: Schottky Diode, 60V, 200mA | H53: - | I53: - | J53: Various
A54: 1 | B54: LO | C54: ='Design Regulator'!E28 -> 0.55 | D54: ="Inductor, "&Lf*1000000&"µH, "&Rdcr*1000&"mΩ, >"&ROUNDUP(Ilimit_DC*1.1,0)&"A" -> Inductor, 0.55µH, 2.9mΩ, >20A | H54: - | I54: - | J54: Various
A55: 2 | B55: Q1, Q2 | C55: See description | D55: ='Design Regulator'!E83 -> 4.5 | H55: Std | I55: ='Design Regulator'!E81 -> IAUC60N04S6L039, L032 | J55: -
A56: 1 | B56: RC1 | C56: ='Design Regulator'!D72 -> 5.36 | D56: =C56 -> 5.36 | H56: 0603 | I56: Std | J56: Std
A57: 1 | B57: RS | C57: =Rs*1000 -> 4 | D57: 4 | H57: 0508 | I57: Std | J57: Std
A58: 1 | B58: RT | C58: ='Design Regulator'!E13 -> 52.3 | D58: 52.3 | H58: 0603 | I58: Std | J58: Std
A59: 1 | B59: RFB1 | C59: ='Design Regulator'!E67 -> 49.9 | D59: 49.9 | H59: 0603 | I59: Std | J59: Std
A60: 1 | B60: RFB2 | C60: ='Design Regulator'!E68 -> 15.8 | D60: 15.8 | H60: 0603 | I60: Std | J60: Std
A61: 1 | B61: RPGOOD | C61: 100 | D61: 100 | H61: 0603 | I61: Std | J61: Std
A62: 1 | B62: RCS | C62: 100 | D62: 100 | H62: 0603 | I62: Std | J62: Std
A63: 1 | B63: RDEMB | C63: 100 | D63: 100 | H63: 0603 | I63: Std | J63: Std
A64: 1 | B64: RVIN | C64: 2.2 | D64: 2.2 | H64: 0603 | I64: Std | J64: Std
A65: 1 | B65: U1 | C65: LM25141-Q1 | D65: IC, LM25141-Q1, Synchronous Buck PWM Controller, 3.8V–42V Input | H65: VQFN-24 | I65: LM25141QRGEQ1 | J65: TI
A68: NOTES:
A69: ** Inductor saturation current should be higher than the peak inductor current at the OCP setpoint for all input voltages and operating temperatures **
A70: ** Effective input and output capacitances should be appropriately derated for applied voltage and temperature, particularly with ceramics **

Sheet EVM (hidden)
A1: LM5143-Q1 Quickstart Design Tool
B6: LM5143-Q1EVM-2100 PCB Layout

Sheet Variable Management (hidden)
A1: EXCEL Variables Names/Calculations
B2: Input from user =
B3: Output =
B4: Constant
A5: Variable Name | B5: Value | C5: STD Units | E5: Notes | I5: Iteration
A6: Step 1: Operational Specs
A7: VIN_min | B7: ='Design Regulator'!E6 -> 8 | C7: V | D7: Minimum input voltage | I7: 1
A8: VIN_nom | B8: ='Design Regulator'!E7 -> 13.5 | C8: V | D8: Nominal input voltage | K8: =CHOOSE(SCH_MODE, "Efficiency vs. IOUT (Ch1)", "Efficiency vs. IOUT - 2 Ph", "Efficiency vs. IOUT - 3 Ph", "Efficiency vs. IOUT - 4 Ph") -> Efficiency vs. IOUT (Ch1) | L8: 1 | N8: DITHER Enabled | O8: 1 | T8: Dual Outputs | U8: 1 | W8: FPWM | X8: 1 | Z8: =CHOOSE(SCH_MODE, "Bode Plot (Ch1)", "Bode Plot - 2 Ph", "Bode Plot - 3 Ph", "Bode Plot - 4 Ph") -> Bode Plot (Ch1) | AA8: 1
A9: VIN_max | B9: ='Design Regulator'!E8 -> 18 | C9: V | D9: Maximum input voltage | K9: =IF(MODE=1, "Efficiency vs. IOUT (Ch2)", "N/A - Do Not Use") -> Efficiency vs. IOUT (Ch2) | L9: 2 | N9: DITHER Disabled | O9: 2 | T9: Single Output – 2 Phases | U9: 2 | W9: DEM | X9: 2 | Z9: =IF(MODE=1, "Bode Plot (Ch2)", "N/A - Do Not Use") -> Bode Plot (Ch2) | AA9: 2
K10: PLOT_TYPE | L10: 1 | N10: DITHER Yes/No | O10: 1 | P10: 1 = Yes, 2 = No | T10: Single Output – 3 Phases | U10: 3 | W10: FPWM/DEM | X10: 1 | Z10: BODE_PLOT_TYPE | AA10: 1
A11: Vout | B11: ='Design Regulator'!E9 -> 5 | C11: V | D11: Output voltage - channel 1 | T11: Single Output – 4 Phases | U11: 4
A12: Iout | B12: ='Design Regulator'!E10 -> 12 | C12: A | D12: Output current - channel 1 | I12: 1 | T12: Single/Dual Yes/No | U12: 1
I13: 1 | K13: Adjustable | L13: 1 | N13: 3.3V | O13: 1 | T13: MODE (Single/Dual), DUAL = 1, SINGLE = 2 | U13: =IF(U12=1, 1, 2) -> 1 | W13: VCCX Connected | X13: 1
A14: Rout | B14: =Vout/Iout -> 0.4166666667 | C14: W | D14: Load resistance - Channel 1 | K14: 5V | L14: 2 | N14: 5V | O14: 2 | T14: SINGLE OUTPUT (1 = YES) | U14: =IF(U12=1, 2, 1) -> 2 | W14: No External VCC | X14: 2
K15: 3.3V | L15: 3 | N15: Adjustable | O15: 3 | T15: Number of Phases | U15: =SCH_MODE -> 1 | W15: Ext_VCC | X15: 1
A16: Pout | B16: =Vout*Iout -> 60 | C16: W | D16: Output power | K16: Output Voltage Setting | L16: =IF(Vout=3.3, 3, IF(Vout=5, 2, 1)) -> 2 | N16: Ch2 Output Setting | O16: =IF(Vout2=3.3, 1, IF(Vout2=5, 2, 3)) -> 3
A18: Efficiency | B18: 0.9 | D18: Estimate of efficiency
A19: Pin | B19: =Pout/Efficiency -> 66.66666667 | C19: W | D19: Calculate input power assuming finite efficiency | W19: 2.2 MHz Fsw Setting | X19: 1
W20: 440 kHz Fsw Setting | X20: 2
A21: Iin_Vinmin | B21: =Pin/VIN_min -> 8.333333333 | C21: A | L21: =Vout -> 5 | W21: OSC | X21: 1
A22: Iin_Vinnom | B22: =Pin/VIN_nom -> 4.938271605 | C22: A | D22: Input currents at min, nom, max Vin | H22: =AND(OSC=1, OR(Fsw/1000>2530, Fsw/1000<1800)) -> FALSE
A23: Iin_Vinmax | B23: =Pin/VIN_max -> 3.703703704 | C23: A | H23: =AND(OSC=2, OR(Fsw/1000>500, Fsw/1000<300)) -> FALSE
H24: =OR(H22,H23) -> FALSE
A25: OSC setting | B25: =CHOOSE(OSC, 2200, 440) -> 2200 | C25: kHz
A26: Fsw | B26: ='Design Regulator'!E12*1000 -> 2100000 | C26: Hz | D26: Nominal switching frequency - determines RT resistor (SYNCIN must be 80-120% of this) | N26: Min CS Gain - 11.4 | O26: 1
A27: RT resistor to AGND - 2.2MHz setting | B27: =(1/(Fsw/1000000)-0.0216)/0.0086 -> 52.8593577 | C27: kΩ | K27: Adjustable | L27: 1 | N27: Nom CS Gain - 12 | O27: 2
A28: RT resistor to AGND - 440kHz setting | B28: =(1/(Fsw/1000)-0.0000138)/0.000045 -> 10.27534392 | C28: kΩ | I28: 1 | K28: 5V | L28: 2 | N28: Max CS Gain - 12.6 | O28: 3
A29: Tsw | B29: =1/Fsw -> 4.761904762e-07 | C29: sec | D29: Switching period | K29: 3.3V | L29: 3 | N29: CS Gain | O29: 2
A30: Vref | B30: 1.2 | C30: V | D30: Reference voltage | K30: Adjustable_NoRT | L30: 4 | O30: =CHOOSE(O29, 11.4, 12, 12.6) -> 12
A31: Rt | B31: =CHOOSE(OSC, 'Standard Value Calculator'!O12/1000, 'Standard Value Calculator'!O13/1000) -> 52.3 | C31: kΩ | D31: Frequency set resistor | F31: =IF(OR((Fsw=440000),(Fsw=2200000)),"N/A",Rfadj/1000) -> 0.0523 | K31: 5V_NoRT | L31: 5
K32: 3.3V_NoRT | L32: 6 | N32: Min EA gm - 1.01mS | O32: 1010
A33: Step 2: Buck Inductor | B33: Channel 1 | K33: Schematic setting | L33: =IF(No_RT, IF(Vout=3.3, 6, IF(Vout=5, 5, 4)),IF(Vout=3.3, 3, IF(Vout=5, 2, 1))) -> 2 | N33: Nom EA gm - 1.2mS | O33: 1200
A34: Don1 | B34: =Vout/VIN_nom -> 0.3703703704 | F34: Ideal Duty Cycle at VIN(nom) | N34: Max EA gm - 1.4mS | O34: 1400
A35: Doff1 | B35: =1-34:34 -> 0.6296296296 | F35: Ideal 1- Duty Cycle at VIN(nom) | N35: EA Transconductance | O35: 2
O36: =CHOOSE(O35, 0.000101, 0.0012, 0.0014) -> 0.0012
A37: D_Vinmin | B37: =Vout/VIN_min -> 0.625
A38: D_Vinnom | B38: =Vout/VIN_nom -> 0.3703703704
A39: D_Vinmax | B39: =Vout/VIN_max -> 0.2777777778
A41: L_Vinnom | B41: =(VIN_nom-Vout)*D1_Vinnom/(Fsw*(Iout/Number_of_Phases)*0.35) -> 3.569328966e-07 | C41: H | F41: Calculated inductance for 35% ripple at VIN(nom)
A42: L_slopecomp | B42: =1000*Vout*Rs/24/Fsw -> 3.968253968e-07 | C42: H | F42: Calculated inductance based on one times inductor downslope
A44: Lopt | B44: =B42 -> 3.968253968e-07 | C44: H | F44: min of calculated inductances at VIN(min) and VIN(nom)
A46: Lo | B46: ='Design Regulator'!E28/1000000 -> 5.5e-07 | C46: H | F46: Chosen inductance
A47: Rdcr | B47: ='Design Regulator'!E29/1000 -> 0.0029 | C47: W | F47: Chosen inductor DCR
A49: Don2 | B49: =(Vout+Iout*(Rdcr+Rs))/(Vin+Iout*Rs) -> 0.3751697668
A50: Doff2 | B50: =1-_Don2 -> 0.6248302332
A52: D_Vinmin_2 | B52: =CHOOSE(MODE, (Vout+Iout*(Rdcr+Rs))/(VIN_min+Iout*Rs), (Vout+Iout/Number_of_Phases*(Rdcr+Rs))/(VIN_min+Iout/Number_of_Phases*Rs)) -> 0.6315606362 | F52: Duty cycles adjusted for DCR/shunt voltage drops
A53: D_Vinnom_2 | B53: =CHOOSE(MODE, (Vout+Iout*(Rdcr+Rs))/(VIN_nom+Iout*Rs), (Vout+Iout/Number_of_Phases*(Rdcr+Rs))/(VIN_nom+Iout/Number_of_Phases*Rs)) -> 0.3751697668 | F53: need to include RDS(on) later
A54: D_Vinmax_2 | B54: =CHOOSE(MODE, (Vout+Iout*(Rdcr+Rs))/(VIN_max+Iout*Rs), (Vout+Iout/Number_of_Phases*(Rdcr+Rs))/(VIN_max+Iout/Number_of_Phases*Rs)) -> 0.281626773
A56: Iripple_Vinmin | B56: =(VIN_min-Vout)*D1_Vinmin_2/(Fsw*Lf) -> 1.640417237 | C56: A
A57: Iripple_Vinnom | B57: =(VIN_nom-Vout)*D1_Vinnom_2/(Fsw*Lf) -> 2.760989625 | C57: A
A58: Iripple_Vinmax | B58: =(VIN_max-Vout)*D1_Vinmax_2/(Fsw*Lf) -> 3.169825151 | C58: A
A60: Ishunt_rms_Vinmin | B60: =SQRT((Iout/Number_of_Phases)^2+(Iripple_Vinmin^2)/12) -> 12.00934001 | C60: A
A61: Ishunt_rms_Vinnom | B61: =SQRT((Iout/Number_of_Phases)^2+(Iripple_Vinnom^2)/12) -> 12.02643984 | C61: A
A62: Ishunt_rms_Vinmax | B62: =SQRT((Iout/Number_of_Phases)^2+(Iripple_Vinmax^2)/12) -> 12.0348376 | C62: A
A63: Max shunt power loss at full load | B63: =B61^2*Rs -> 0.5785410212 | C63: W | F63: Note this is power loss at full load - not loss near OCP!
A65: Max inductor ripple current | B65: =MAX(B56:B58) -> 3.169825151 | C65: A | F65: Ripple current at Vin(max)
B67: =B56/(Iout/Number_of_Phases) -> 0.1367014364
A68: % ripple current | B68: =B57/(Iout/Number_of_Phases) -> 0.2300824688
B69: =B58/(Iout/Number_of_Phases) -> 0.2641520959
A71: Inductor copper temerature | B71: 100 | C71: °C
A72: DCR at hot | B72: =Rdcr*(1+0.0039*(B71-25)) -> 0.00374825 | C72: W
A75: Step 3: Sense Resistors, Slope Comp, Current Limit
A77: Ilimit_DC | B77: ='Design Regulator'!E17 -> 18 | C77: A | F77: Chosen OCP level - based on output current
A79: Ilimit_inductor_Vinmin | B79: =CHOOSE(MODE, Ilimit_DC+Iripple_Vinmin/2, Ilimit_DC/Number_of_Phases+Iripple_Vinmin/2) -> 18.82020862 | C79: A | F79: Peak inductor current at current limit inception
A80: Ilimit_inductor_Vinnom | B80: =CHOOSE(MODE, Ilimit_DC+Iripple_Vinnom/2, Ilimit_DC/Number_of_Phases+Iripple_Vinnom/2) -> 19.38049481 | C80: A
A81: Ilimit_inductor_Vinmax | B81: =CHOOSE(MODE, Ilimit_DC+Iripple_Vinmax/2, Ilimit_DC/Number_of_Phases+Iripple_Vinmax/2) -> 19.58491258 | C81: A
A84: CS threshold_min | B84: 0.068 | C84: V
A85: CS threshold | B85: 0.075 | C85: V
A86: CS threshold_max | B86: 0.082 | C86: V
A88: Shunt required to get OCP at VIN(min) | B88: =Buck_CS_threshold/B79 -> 0.003985078036 | C88: W
A89: Shunt required to get OCP at VIN(nom) | B89: =Buck_CS_threshold/B80 -> 0.003869870234 | C89: W
A90: Shunt required to get OCP at VIN(max) | B90: =Buck_CS_threshold/B81 -> 0.003829478417 | C90: W
A92: Rs_ideal | B92: =B89 -> 0.003869870234 | C92: W | F92: Ideal Rs for the required OCP -- based on 73mV CL threshold
A93: Rs | B93: ='Design Regulator'!E19/1000 -> 0.004 | C93: W | F93: Selected (starndard value) current limit sense resistor
A95: Current limit - peak | B95: =Buck_CS_threshold/Rs -> 18.75 | C95: A | F95: Peak inductor current limit = min sat current
A97: Iout_OCP_Vinmin | B97: =Number_of_Phases*(Buck_CS_threshold/Rs-Iripple_Vinmin/2) -> 17.92979138 | C97: A | F97: Current limit setpoints (i.e. IOUT) after standard components are selected
A98: Iout_OCP_Vinnom | B98: =Number_of_Phases*(Buck_CS_threshold/Rs-Iripple_Vinnom/2) -> 17.36950519 | C98: A
A99: Iout_OCP_Vinmax | B99: =Number_of_Phases*(Buck_CS_threshold/Rs-Iripple_Vinmax/2) -> 17.16508742 | C99: A
A101: Irms_OCP_Vinmin | B101: =SQRT((Iout_OCP_Vinmin/Number_of_Phases)^2+(Iripple_Vinmin^2)/12) -> 17.93604378 | C101: A
A102: Irms_OCP_Vinnom | B102: =SQRT((Iout_OCP_Vinnom/Number_of_Phases)^2+(Iripple_Vinnom^2)/12) -> 17.38778208 | C102: A
A103: Irms_OCP_Vinmax | B103: =SQRT((Iout_OCP_Vinmax/Number_of_Phases)^2+(Iripple_Vinmax^2)/12) -> 17.18946021 | C103: A
A105: Pshunt_Vinmin | B105: =B101^2*Rs -> 1.286806666 | C105: W | F105: Max power dissipations in shunt
A106: Pshunt_Vinnom | B106: =B102^2*Rs -> 1.209339863 | C106: W
A107: Pshunt_Vinmax | B107: =B103^2*Rs -> 1.181910169 | C107: W
A110: Step 4: Output Capacitor
A111: Icoutrms_VINmin | B111: =Iripple_Vinmin/SQRT(12) -> 0.4735476666 | C111: A | F111: Output Cap RMS current
A112: Icoutrms_VINnom | B112: =Iripple_Vinnom/SQRT(12) -> 0.7970290517 | C112: A
A113: Icoutrms_VINmax | B113: =Iripple_Vinmax/SQRT(12) -> 0.9150497022 | C113: A
A114: Max Cout rms current | B114: =MAX(B111:B113) -> 0.9150497022 | C114: A
A116: Vripple1 | B116: ='Design Regulator'!E35/1000 -> 0.1 | C116: V | F116: Output voltage ripple spec(pk-pk)
A118: Output Ripple Spec (pk-pk) | B118: =Vo1_ripple*1000 -> 100 | C118: mV | F118: Vout ripple spec at Vin(nom)
A120: Coutmin | B120: =Iripple_Vinnom/(Fsw*8*Vo1_ripple) -> 1.643446206e-06 | C120: F | F120: Minimum output capacitnace | H120: =Vo2_ripple -> 0 | I120: 1
A121: Reported Coutmin | B121: =IF(Cout_min*1000000<2, 2.2,Cout_min*1000000) -> 2.2 | C121: uF
A122: Cout | B122: ='Design Regulator'!E37/1000000 -> 8.5e-05 | C122: F | F122: Chosen output capacitance | I122: 1
A123: Resrmax | B123: =SQRT((Vo1_ripple/Iripple_Vinnom)^2-(1/(Fsw*Cout*8))^2) -> 0.03621212694 | C123: W | F123: Max ESR before ripple exceeds Vripple1 | I123: 1
A125: Reported Cout ESR max | B125: =IF(OR(CoutEsrMax>0.3, CoutEsrMax<0, (ISERROR(CoutEsrMax))), "N/A", CoutEsrMax*1000) -> 36.21212694 | C125: mΩ
A126: CoutEsr | B126: ='Design Regulator'!E39/1000 -> 0.001 | C126: W | F126: Chosen ESR | I126: 1 | K126: =ISERROR(CoutEsrMax) -> FALSE | L126: =ISERROR(B125) -> FALSE
A127: Vripple | B127: =Iripple_Vinnom*SQRT(Cout_ESR^2+(1/(8*Fsw*Cout))^2) -> 0.003370660909 | C127: Vp-p | L127: =OR(CoutEsrMax>0.3,CoutEsrMax<0) -> FALSE
K128: =OR(TRUE, FALSE, TRUE) -> TRUE
A129: Step 5: Input Capacitor
K130: Two channels operating at full load
A131: Icinrms_VINmin | B131: =SQRT(D1_Vinmin_2*(Iout^2*(1-D1_Vinmin_2)+Iripple_Vinmin^2/12)) -> 5.800796918 | C131: A | F131: Calculate input cap rms current with one output unloaded | K131: =SQRT(Iout^2*D1_Vinmin*(1-D1_Vinmin)+Iout2^2*D2_Vinmin*(1-D2_Vinmin)-2*Iout*Iout2*D1_Vinmin*D2_Vinmin) ->  | L131: A | M131: =SQRT(Iout^2*D1_Vinmin*(1-D1_Vinmin)+Iout2^2*D2_Vinmin*(1-D2_Vinmin)-2*Iout*Iout2*(0.5-D2_Vinmin*(1-D1_Vinmin))) ->  | N131: A
A132: Icinrms_VINnom | B132: =SQRT(D1_Vinnom_2*(Iout^2*(1-D1_Vinnom_2)+Iripple_Vinnom^2/12)) -> 5.83047477 | C132: A | K132: =SQRT(Iout^2*D1_Vinnom*(1-D1_Vinnom)+Iout2^2*D2_Vinnom*(1-D2_Vinnom)-2*Iout*Iout2*D1_Vinnom*D2_Vinnom) ->  | L132: A
A133: Icinrms_VINmax | B133: =SQRT(D1_Vinmax_2*(Iout^2*(1-D1_Vinmax_2)+Iripple_Vinmax^2/12)) -> 5.419308245 | C133: A | K133: =SQRT(Iout^2*D1_Vinmax*(1-D1_Vinmax)+Iout2^2*D2_Vinmax*(1-D2_Vinmax)-2*Iout*Iout2*D1_Vinmax*D2_Vinmax) ->  | L133: A
A134: Max Cin rms current | B134: =MAX(B131:B133) -> 5.83047477 | C134: A | K134: =MAX(K131:K133) ->  | L134: A
F135: =Number_of_Phases*D1_Vinnom -> 0.3703703704 | G135: N*D
A136: Icinrms - multiphase | B136: =Iout*SQRT((D1_Vinnom-F136/Number_of_Phases)*((F136+1)/Number_of_Phases-D1_Vinnom)) -> 5.794846582 | C136: A | F136: =FLOOR(Number_of_Phases*D1_Vinnom,1) -> 0 | G136: floor(N*D)
A137: Icinrms - multiphase - max | B137: =Iout/2/Number_of_Phases -> 6 | C137: A
A138: Final result | B138: =CHOOSE(MODE, B134, B137) -> 5.83047477 | C138: A | D138: …report this
A140: Vinripple1 | B140: ='Design Regulator'!E44/1000 -> 0.1 | C140: Vp-p | F140: Input voltage ripple spec (pk-pk)
A142: Cinmin_Vinmin | B142: =Iout/Number_of_Phases*D1_Vinmin*(1-D1_Vinmin)/(Vinripple1*Fsw) -> 1.339285714e-05 | C142: F
A143: Cinmin_Vinmax | B143: =Iout/Number_of_Phases*D1_Vinmax*(1-D1_Vinmax)/(Vinripple1*Fsw) -> 1.14638448e-05 | C143: F | F143: Calculate cap at Vinmax and 50% duty cycle (Vin = 2*Vout)
A144: Cinmin_50%D | B144: =Iout*0.5*(1-0.5)/(Vinripple1*Fsw) -> 1.428571429e-05 | C144: F | F144: Buck 50% typically worst case
A145: Cinmin | B145: =IF(VIN_min>2*Vout, B142,B144) -> 1.428571429e-05 | C145: F
A146: Reported Cinmin | B146: =IF(Cinmin*1000000<10, 10,Cinmin*1000000) -> 14.28571429 | C146: uF | F146: …report this
A147: Cin | B147: ='Design Regulator'!E46/1000000 -> 3e-05 | C147: F | F147: Input capacitance
A148: CinEsrMax_Vinmin | B148: =-(Iout/Number_of_Phases*D1_Vinmin*(1-D1_Vinmin)/(Cin*Fsw)-Vinripple1)/(Iout/Number_of_Phases+Iripple_Vinmin/2) -> 0.004317959598 | C148: W
A149: CinEsrMax_Vinmax | B149: =-(Iout/Number_of_Phases*D1_Vinmax*(1-D1_Vinmax)/(Cin*Fsw)-Vinripple1)/(Iout/Number_of_Phases+Iripple_Vinmax/2) -> 0.004548220952 | C149: W
A150: CinEsrMax_50%D | B150: =-(Iout/Number_of_Phases*0.5*(1-0.5)/(Cin*Fsw)-Vinripple1)/(Iout/Number_of_Phases+Iripple_Vinmax/2) -> 0.003855818143 | C150: W | F150: Calculate ESR at Vinmax and 50% duty cycle (Vin = 2*Vout)
A151: CinEsrMax | B151: =IF(VIN_min>2*Vout, B148,B150) -> 0.003855818143 | C151: W
A152: Reported Cin ESR max | B152: =IF(OR(CinEsrMax>0.3, CinEsrMax<0), "N/A",CinEsrMax*1000) -> 3.855818143 | C152: mΩ | F152: …report this
A153: RCinEsr | B153: ='Design Regulator'!E48/1000 -> 0.001 | C153: W | F153: Input capacitance series resistance (ESR)
A155: Vinripple2_Vinmin | B155: =Iout/Number_of_Phases*D1_Vinmin_2*(1-D1_Vinmin_2)/(Cin*Fsw)+(Iout/Number_of_Phases +Iripple_Vinmin/2)*RCinEsr -> 0.05714245605 | C155: Vp-p
A156: Vinripple2_Vinmax | B156: =Iout/Number_of_Phases*D1_Vinmax_2*(1-D1_Vinmax_2)/(Cin*Fsw)+(Iout/Number_of_Phases +Iripple_Vinmax/2)*RCinEsr -> 0.05212074758 | C156: Vp-p
A157: Vinripple2_50%D | B157: =Iout/Number_of_Phases*0.5*(1-0.5)/(Cin*Fsw)+(Iout/Number_of_Phases +Iripple_Vinmax/2)*RCinEsr -> 0.06120396019 | C157: Vp-p | F157: Calculate ripple at Vinmax and 50% duty cycle (Vin = 2*Vout)
A158: Vinripple2 | B158: =IF(VIN_min>2*Vout, B155,B157) -> 0.06120396019 | C158: Vp-p | F158: …report highest of these
B160: =Iout*D1_Vinmin_2*(1-D1_Vinmin_2)/(Cin*Fsw) -> 0.04432224743 | C160: Vp-p
A162: Step 6a: Soft Start
A163: Tss | B163: ='Design Regulator'!E53/1000 -> 0.003 | C163: s | D163: Soft-start time
A164: Iss | B164: =Cout*Vout/Tss -> 0.1416666667 | C164: A | D164: Load cap current during soft start
A165: Css | B165: =0.000022*Tss/1.2 -> 5.5e-08 | C165: F
A166: Css_u | B166: ='Standard Value Calculator'!B4 -> 5.6e-08 | C166: F
A168: Step 6b: Other Components - Dither, Hiccup, DEMB, MODE
A169: Tres | B169: ='Design Regulator'!E55/1000 -> 0.02 | C169: s | D169: Hiccup time
A170: Cres | B170: =0.00002*Tres/1.2 -> 3.333333333e-07 | C170: F
A171: Cres_u | B171: ='Standard Value Calculator'!G4 -> 3.3e-07 | C171: F
A173: RPG1/2 | B173: 100 | C173: kΩ
A174: RFB1/2 | C174: W | E174: Tie to VDDA or AGND for 3.3V/5V output, respectively.
A175: R_MODE | C175: W | E175: Tie to VDDA or AGND for Single/Dual operation, respectively.
A176: R_DEMB | C176: W | E176: Tie to VDDA or AGND for FPWM/DEM, respectively.
A178: Dither Modulation Frequency | B178: ='Design Regulator'!E57*1000 -> 8000 | C178: Hz
A179: Cdither_calculated | B179: =10*10^-6/Fdither/0.12 -> 1.041666667e-08 | C179: F
A180: Cdither_stdvalue | B180: ='Standard Value Calculator'!O22 -> 1e-08 | C180: F
A183: Step 7: Compensation
A184: Pi | B184: 3.14159265 | D184: p
A185: CS Amp Gain | B185: =O30 -> 12
A186: Ri | B186: =Rs*CSAmp_gain -> 0.048 | C186: W | F186: Current Sense effective resistance = shunt resistor Rs * CS amp gain
A187: gm | B187: =O36 -> 0.0012 | C187: S | F187: Error Amp Transconductance
A189: Se_ext | B189: =B193/Ri*1000 -> 12727272.73 | C189: A/s | F189: Slope Comp Slope - referred to inductor current
A190: Sn | B190: =(Vin-Vout)/Lf -> 15454545.45 | C190: A/s | F190: On-time Slope
A191: Sf | B191: =Vout/Lf -> 9090909.091 | C191: A/s | F191: Off-time Slope
A193: Se_int | B193: =Fsw/220*64/1000 -> 610.9090909 | C193: mV/μs | F193: Slope Comp Slope - referred to IC
A194: Sn_int | B194: =Sn*Ri/1000 -> 741.8181818 | C194: mV/μs | F194: etc
A195: Sf_int | B195: =Sf*Ri/1000 -> 436.3636364 | C195: mV/μs | F195: etc
A197: mc_buck | B197: =1+Se_ext/Sn -> 1.823529412 | F197: mc = 1 + Se/Sn for peak current-mode buck
A198: k_buck | B198: =mc_buck*(1-D1_Vinnom_2) -> 1.139396308 | F198: mc*(1-d)
A200: mc | B200: =1+Se_ext/Sn -> 1.823529412
A201: k | B201: =mc_buck*(1-D1_Vinnom_2) -> 1.139396308
A202: Q | B202: =1/Pi/(k-0.5) -> 0.4978287843 | F202: 1/(Pi*(k-0.5)) | H202: Q = 2/Pi = 0.636 gives ideal one-cycle damping
A204: Error Amp (EA)
A205: GBW | B205: 6 | C205: MHz | F205: EA gain-bandwidth product
A206: Cbw | B206: =gm/(2*Pi*GBW*1000000) -> 3.183098865e-11 | C206: F | F206: EA effective bandwidth limiting capacitance = gm/(2*Pi*GBW)
A207: RoEA | B207: 64000000 | C207: W | F207: EA output resistance
A208: AEA | B208: =gm*RoEA -> 76800 | C208: V/V | F208: EA DC gain = gm*RoEA
A209: Afb | B209: =Vref/Vout -> 0.24 | C209: V/V | F209: Feedback gain from Vout to FB
A210: Acs | B210: =1/Ri -> 20.83333333 | F210: Acs = 1/Ri
A211: Am_buck | B211: =(Ro/Number_of_Phases)/Ri/((1+Ro/Number_of_Phases*(k-0.5)/(Fsw*Lf))) -> 7.053563359
A212: Am | B212: =(Ro*Number_of_Phases)/Ri/((1+Ro*Number_of_Phases*(k-0.5)/(Fsw*Lf))) -> 7.053563359 | F212: Buck modulator gain
A214: Scaling factor to calculate Rcomp - buck | B214: =2*Pi*Ri/gm -> 251.327412 | F214: 2*Pi*Ri/gm -- scaling factor to calculate Rcomp given desired buck crossover frequency
A215: DC Gain is Adc = AEA*Afb*Am
A217: Ro | B217: =Rout -> 0.4166666667 | C217: W | F217: Output Resistance
A219: Fp_load_buck | B219: =1/(2*Pi*Ro*Cout)+(k-0.5)/(2*Pi*Fsw*Lf*Cout/Number_of_Phases) -> 5530.334462 | C219: Hz | F219: Buck dominant pole frequency -- note slope comp influence
A220: Fp_dominant | B220: =Fload_u -> 5530.334462 | C220: Hz
B221: =Cbw -> 3.183098865e-11
A222: Fp_EA | B222: =1/(2*Pi*(RoEA+Rcea1_u)*Cc1ea_u) -> 0.5290612206 | C222: Hz | F222: Error Amp LF pole -- related to amplifier ouptut resistance and comp cap
A223: Fp_HF | B223: =1/(2*Pi*Rcea1_u*(Cc2ea_u+Cbw)) -> 932835.8209 | C223: Hz | F223: Error Amp HF pole cancels zero related to Output Cap ESR
A224: Fesr | B224: =1/(2*Pi*Cout*Cout_ESR) -> 1872411.097 | C224: Hz | F224: Cout ESR zero frequency
A225: F_mod | B225: =Fsw/2 -> 1050000 | C225: Hz | F225: Zero-order sample-and-hold effects of current-mode control modeled as pole at Fsw/2
A227: Desired Crossover Frequency | B227: ='Design Regulator'!E65*1000 -> 60000 | C227: Hz
A228: Rcea1 | B228: =Fcross*Cout/Number_of_Phases*2*Pi*Ri/(gm*Afb) -> 5340.707505 | C228: W | F228: This component will largely determine the crossover frequency | K228: =Fcross/Fp_dominant/(gm*Afb*Am) -> 5340.707505
A229: Cc1ea, Cc3ea | B229: =10/(Rcea1*Fcross*2*Pi) -> 4.9667247e-09 | C229: F | F229: This along with Rcea1 will set a zero at Fcrossover/5 to optimize phase margin
A230: Cc2ea, Cc4ea | B230: =MAX(1/(Rcea1*2*Pi*Fesr)-Cbw, 1/(Rcea1*2*Pi*(Fsw/2))-Cbw) -> -3.449704656e-12 | C230: F | F230: This along with Rcea1 places a pole at the output cap ESR zero
A232: Chosen Compensation Components from the standard value sheet
A233: Rcea1_u | B233: ='Design Regulator'!D72*1000 -> 5360 | C233: W | F233: =1/(Rcea1*2*Pi*(Fsw/2))-Cbw -> -3.449704656e-12
A234: Cc1ea_u | B234: ='Design Regulator'!D73*0.000000001 -> 4.7e-09 | C234: F
A235: Cc2ea_u | B235: ='Design Regulator'!D74*0.000000000001 -> 0 | C235: F
A237: Resulting Pole/Zero Locations | F237: =Cout -> 8.5e-05 | G237: =Cout_ESR -> 0.001
A238: Fz1 | B238: =1/(2*Pi*Rcea1_u*Cc1ea_u) -> 6317.677964 | C238: Hz | F238: This zero is set at or close to the dominant load pole
A239: Fp2 | B239: =1/(2*Pi*Rcea1_u*(Cc1ea_u*(Cc2ea_u+Cbw)/(Cc1ea_u+Cc2ea_u+Cbw))) -> 939153.4989 | C239: Hz | F239: This pole cancels the zero from the Output Cap ESR
A241: Rfb1 | B241: ='Design Regulator'!E67*1000 -> 49900 | C241: W | F241: Upper Feedback Resistance - chosen by user
A242: Rfb2 | B242: =IF(Vout=Vref,100000000,Vref*B241/((Vout-Vref))) -> 15757.89474 | C242: W | F242: Lower Feedback Resistance
A243: Rfb2_u | B243: =IF(Vout=Vref,"N/A",'Standard Value Calculator'!O11) -> 15800 | C243: W | F243: Std Value Lower Feedback Resistance
A246: Other Input Variables
A247: Rfets | B247: 0 | C247: W | D247: Series resistance due to FETs
A248: Diode loss eq res | B248: =0.00000002*Fsw*0.6*4/Iripple1 -> 
A249: Fet loss eq res | B249: =_Don2*RdsonTop+Doff2*RdsonBot -> 
A250: cap loss eq res | B250: =B251*Vin^2*Fsw/2/(((Iripple1/SQRT(3))^2)) -> 
A251: Sw cap | B251: 5e-09
A253: Step 8: Efficiency
A254: VAR | B254: 0
... 96 more rows

Sheet Stability Calculations (hidden)
A2: Divider Network & EA Poles/Zeros | E2: Modulator | J2: Power Stage Poles/Zeros | M2: Complex Pole Pair | P2: Total System
B3: Afb1 | C3: =Afb -> 0.24 | D3: V/V | E3: Acs | F3: =Acs -> 20.83333333 | G3: A/V | H3: gm | I3: =gm -> 0.0012 | J3: z_ESR | K3: =Fesr -> 1872411.097 | L3: Hz | M3: p3 | N3: =Fsw/2 -> 1050000 | O3: Hz | P3: Adc | Q3: =Am*Afb*AEA -> 130011.2798 | R3: V/V
B4: EA zero, z1 | C4: =Fz1_u -> 6317.677964 | D4: Hz | E4: Am | F4: =Am -> 7.053563359 | G4: V/V | J4: p_dom | K4: =Fp_dominant -> 5530.334462 | L4: Hz | M4: pterm1 | N4: =Q*pole3 -> 522720.2235 | P4: Crossover | Q4: =AE7 -> 59.913 | R4: kHz
B5: EA pole, p1 | C5: =Fp1_u -> 0.5290612206 | D5: Hz | E5: Q | F5: =Q -> 0.4978287843 | M5: pterm2 | N5: =pole3^2 -> 1102500000000 | P5: Phase Margin | Q5: =AE9 -> 80.85294515 | R5: °
B6: Aea | C6: =AEA -> 76800 | D6: V/V | E6: mc | F6: =mc -> 1.823529412 | P6: radconv | Q6: =180/Pi -> 57.29577958 | AD6: XOVER SEARCH
B7: EA pole, p2 | C7: =Fp2_u -> 932835.8209 | D7: Hz | E7: k | F7: =k -> 1.139396308 | AD7: xover | AE7: =SUM(AD12:AD613)/1000 -> 59.913
AD9: phase margin | AE9: =SUM(AE13:AE613) -> 80.85294515
A10: Freq (Hz) | C10: Power Stage | I10: Error Amplifier | O10: Sampling Double Pole | Q10: System Response | X10: ERROR AMP Response | AA10: PLANT Response
C11: p_dom | E11: z_ESR | G11: z_RHP | I11: p1 | K11: z1 | M11: p2 | O11: p3
C12: Gain(V/V) | D12: Phase(rad) | E12: Gain(V/V) | F12: Phase(rad) | G12: Gain(V/V) | H12: Phase(rad) | I12: Gain(V/V) | J12: Phase(rad) | K12: Gain(V/V) | L12: Phase(rad) | M12: Gain(V/V) | N12: Phase(rad) | O12: Gain(V/V) | P12: Phase(rad) | Q12: Gain (dB) | R12: Phase (°) | S12: Phase Margin (°) | V12: Fsquare | X12: Gain(dB) | Y12: Phase(Deg) | AA12: Gain(dB) | AB12: Phase(Deg)
A13: 1 | B13: =A13/1000 -> 0.001 | C13: =SQRT(1+(A13/pole1)^2) -> 1.000000016 | D13: =ATAN(A13/pole1) -> 0.0001808208881 | E13: =SQRT(1+(A13/Zero1)^2) -> 1 | F13: =ATAN(A13/Zero1) -> 5.340707505e-07 | G13: =IF(VIN_nom>Vout, 1, SQRT(1+(A13/z_RHP)^2)) -> 1 | H13: =IF(VIN_nom>Vout, 0, -ATAN(A13/z_RHP)) -> 0 | I13: =SQRT(1+(A13/Pole2)^2) -> 2.138371068 | J13: =ATAN(A13/Pole2) -> 1.084170938 | K13: =SQRT(1+(A13/Zero2)^2) -> 1.000000013 | L13: =ATAN(A13/Zero2) -> 0.0001582860028 | M13: =SQRT(1+(A13/pole4)^2) -> 1 | N13: =ATAN(A13/pole4) -> 1.072e-06 | O13: =SQRT((1-(V13/pterm2))^2+(A13/pterm1)^2) -> 1 | P13: =IF((ATAN((A13/pterm1)/(1-A13^2/pterm2))>0),ATAN((A13/pterm1)/(1-A13^2/pterm2)),PI()+ATAN((A13/pterm1)/(1-A13^2/pterm2))) -> 1.913069277e-06 | Q13: =20*LOG10(((E13*K13*G13)/(C13*I13*O13*M13))*Adc) -> 95.67795924 | R13: =((F13+L13+H13)-(D13+J13+P13+N13))*radconv -> -62.11985068 | S13: =IF(R13>0,R13,R13+180) -> 117.8801493 | U13: =IF(Q13<0,A13,1000000000) -> 1000000000 | V13: =A13^2 -> 1 | X13: =20*LOG10((K13/(I13*M13))*AEA) -> 91.10556311 | Y13: =(L13-(J13+N13))*radconv -> -62.10941139 | AA13: =20*LOG10((E13*G13/(C13*O13))*Acs*Am) -> 43.34334655 | AB13: =(F13+H13-(D13+P13))*radconv -> -0.01043928454 | AD13: =SUM((Q14<0)*(Q13>0))*A13 -> 0 | AE13: =IF(AD13>0,S11,0) -> 0
A14: 1.0965 | B14: =A14/1000 -> 0.0010965 | C14: 1.00000002 | D14: 0.0001982701034 | E14: 1 | F14: 5.856085779e-07 | G14: 1 | H14: 0 | I14: 2.301177482 | J14: 1.121246496 | K14: 1.000000015 | L14: 0.0001735606017 | M14: 1 | N14: 1.175448e-06 | O14: 1 | P14: 2.097680462e-06 | Q14: 95.04061832 | R14: -64.24426184 | S14: 115.7557382 | U14: =IF(Q14<0,A14,1000000000) -> 1000000000 | V14: =A14^2 -> 1.20231225 | X14: 90.46822222 | Y14: -64.23281516 | AA14: 43.34334652 | AB14: -0.01144667548 | AD14: =SUM((Q15<0)*(Q14>0))*A14 -> 0 | AE14: 0
A15: 1.2023 | B15: 0.0012023 | C15: 1.000000024 | D15: 0.0002174009527 | E15: 1 | F15: 6.421132633e-07 | G15: 1 | H15: 0 | I15: 2.482806518 | J15: 1.156255154 | K15: 1.000000018 | L15: 0.0001903072604 | M15: 1 | N15: 1.2888656e-06 | O15: 1 | P15: 2.300083192e-06 | Q15: 94.38076308 | R15: -66.25026165 | S15: 113.7497384 | U15: 1000000000 | V15: 1.44552529 | X15: 89.80836702 | Y15: -66.2377105 | AA15: 43.34334648 | AB15: -0.01255115175 | AD15: 0 | AE15: 0
A16: 1.3183 | B16: 0.0013183 | C16: 1.000000028 | D16: 0.0002383761749 | E16: 1 | F16: 7.040654704e-07 | G16: 1 | H16: 0 | I16: 2.684944749 | J16: 1.189151841 | K16: 1.000000022 | L16: 0.0002086684361 | M16: 1 | N16: 1.4132176e-06 | O16: 1 | P16: 2.521999228e-06 | Q16: 93.70091355 | R16: -68.13526904 | S16: 111.864731 | U16: 1000000000 | V16: 1.73791489 | X16: 89.12851753 | Y16: -68.12150694 | AA16: 43.34334644 | AB16: -0.01376210871 | AD16: 0 | AE16: 0
A17: 1.4454 | B17: 0.0014454 | C17: 1.000000034 | D17: 0.0002613585086 | E17: 1 | F17: 7.719458628e-07 | G17: 1 | H17: 0 | I17: 2.909273622 | J17: 1.219911973 | K17: 1.000000026 | L17: 0.0002287865863 | M17: 1 | N17: 1.5494688e-06 | O17: 1 | P17: 2.765150333e-06 | Q17: 93.00392922 | R17: -69.89787671 | S17: 110.1021233 | U17: 1000000000 | V17: 2.08918116 | X17: 88.43153324 | Y17: -69.88278777 | AA17: 43.34334639 | AB17: -0.0150889417 | AD17: 0 | AE17: 0
A18: 1.5849 | B18: 0.0015849 | C18: 1.000000041 | D18: 0.0002865830209 | E18: 1 | F18: 8.464487325e-07 | G18: 1 | H18: 0 | I18: 3.158183019 | J18: 1.248613569 | K18: 1.000000031 | L18: 0.0002508674826 | M18: 1 | N18: 1.6990128e-06 | O18: 1 | P18: 3.032023497e-06 | Q18: 92.29087471 | R18: -71.54255672 | S18: 108.4574433 | U18: 1000000000 | V18: 2.51190801 | X18: 87.71847879 | Y18: -71.5260115 | AA18: 43.34334633 | AB18: -0.0165452218 | AD18: 0 | AE18: 0
A19: 1.7378 | B19: 0.0017378 | C19: 1.000000049 | D19: 0.0003142305325 | E19: 1 | F19: 9.281081502e-07 | G19: 1 | H19: 0 | I19: 3.433534958 | J19: 1.275268294 | K19: 1.000000038 | L19: 0.0002750694109 | M19: 1 | N19: 1.8629216e-06 | O19: 1 | P19: 3.324531789e-06 | Q19: 91.5647911 | R19: -73.06997889 | S19: 106.9300211 | U19: 1000000000 | V19: 3.01994884 | X19: 86.99239526 | Y19: -73.05183751 | AA19: 43.34334626 | AB19: -0.01814138829 | AD19: 0 | AE19: 0
A20: 1.9055 | B20: 0.0019055 | C20: 1.000000059 | D20: 0.0003445541924 | E20: 1 | F20: 1.017671815e-06 | G20: 1 | H20: 0 | I20: 3.737910289 | J20: 1.299968521 | K20: 1.000000045 | L20: 0.0003016139716 | M20: 1 | N20: 2.042696e-06 | O20: 1 | P20: 3.645353507e-06 | Q20: 90.82704307 | R20: -74.48543774 | S20: 105.5145623 | U20: 1000000000 | V20: 3.63093025 | X20: 86.25464732 | Y20: -74.46554569 | AA20: 43.34334617 | AB20: -0.01989205613 | AD20: 0 | AE20: 0
A21: 2.0893 | B21: 0.0020893 | C21: 1.000000071 | D21: 0.0003777890677 | E21: 1 | F21: 1.115834019e-06 | G21: 1 | H21: 0 | I21: 4.073715372 | J21: 1.322785477 | K21: 1.000000055 | L21: 0.0003307069363 | M21: 1 | N21: 2.2397296e-06 | O21: 1 | P21: 3.99697564e-06 | Q21: 90.07980689 | R21: -75.79301615 | S21: 104.2069838 | U21: 1000000000 | V21: 4.36517449 | X21: 85.50741124 | Y21: -75.77120535 | AA21: 43.34334607 | AB21: -0.02181079641 | AD21: 0 | AE21: 0
A22: 2.2909 | B22: 0.0022909 | C22: 1.000000086 | D22: 0.0004142425534 | E22: 1 | F22: 1.223502682e-06 | G22: 1 | H22: 0 | I22: 4.444092998 | J22: 1.343835029 | K22: 1.000000066 | L22: 0.0003626173908 | M22: 1 | N22: 2.4558448e-06 | O22: 1 | P22: 4.382650406e-06 | Q22: 89.32395773 | R22: -76.99935523 | S22: 103.0006448 | U22: 1000000000 | V22: 5.24822281 | X22: 84.7515622 | Y22: -76.97543987 | AA22: 43.34334594 | AB22: -0.02391535586 | AD22: 0 | AE22: 0
A23: 2.5119 | B23: 0.0025119 | C23: 1.000000103 | D23: 0.0004542039626 | E23: 1 | F23: 1.341532318e-06 | G23: 1 | H23: 0 | I23: 4.852011964 | J23: 1.363208548 | K23: 1.000000079 | L23: 0.0003975985927 | M23: 1 | N23: 2.6927568e-06 | O23: 1 | P23: 4.805438716e-06 | Q23: 88.5611832 | R23: -78.10969248 | S23: 101.8903075 | U23: 1000000000 | V23: 6.30964161 | X23: 83.98878783 | Y23: -78.08347004 | AA23: 43.34334579 | AB23: -0.02622243734 | AD23: 0 | AE23: 0
A24: 2.7542 | B24: 0.0027542 | C24: 1.000000124 | D24: 0.0004980168543 | E24: 1 | F24: 1.470937661e-06 | G24: 1 | H24: 0 | I24: 5.30100098 | J24: 1.381015545 | K24: 1.000000095 | L24: 0.0004359512848 | M24: 1 | N24: 2.9525024e-06 | O24: 1 | P24: 5.268975402e-06 | Q24: 87.79246273 | R24: -79.13030513 | S24: 100.8696949 | U24: 1000000000 | V24: 7.58561764 | X24: 83.22006753 | Y24: -79.10155326 | AA24: 43.34334561 | AB24: -0.02875187545 | AD24: 0 | AE24: 0
A25: 3.02 | B25: 0.00302 | C25: 1.000000149 | D25: 0.0005460790338 | E25: 1 | F25: 1.612893667e-06 | G25: 1 | H25: 0 | I25: 5.795155059 | J25: 1.397370353 | K25: 1.000000114 | L25: 0.0004780236959 | M25: 1 | N25: 3.23744e-06 | O25: 1 | P25: 5.777469216e-06 | Q25: 87.01831915 | R25: -80.06774715 | S25: 99.93225285 | U25: 1000000000 | V25: 9.1204 | X25: 82.44592418 | Y25: -80.03622051 | AA25: 43.34334539 | AB25: -0.03152663656 | AD25: 0 | AE25: 0
A26: 3.3113 | B26: 0.0033113 | C26: 1.000000179 | D26: 0.0005987521418 | E26: 1 | F26: 1.768468476e-06 | G26: 1 | H26: 0 | I26: 6.338205792 | J26: 1.412360968 | K26: 1.000000137 | L26: 0.0005241323973 | M26: 1 | N26: 3.5497136e-06 | O26: 1 | P26: 6.334746296e-06 | Q26: 86.24029359 | R26: -80.92706309 | S26: 99.07293691 | U26: 1000000000 | V26: 10.96470769 | X26: 81.66789887 | Y26: -80.89249549 | AA26: 43.34334513 | AB26: -0.03456759919 | AD26: 0 | AE26: 0
A27: 3.6308 | B27: 0.0036308 | C27: 1.000000216 | D27: 0.0006565243934 | E27: 1 | F27: 1.939104081e-06 | G27: 1 | H27: 0 | I27: 6.935196553 | J27: 1.426099916 | K27: 1.000000165 | L27: 0.0005747047603 | M27: 1 | N27: 3.8922176e-06 | O27: 1 | P27: 6.94597193e-06 | Q27: 85.45844475 | R27: -81.71470423 | S27: 98.28529577 | U27: 1000000000 | V27: 13.18270864 | X27: 80.88605035 | Y27: -81.67680128 | AA27: 43.34334482 | AB27: -0.03790294933 | AD27: 0 | AE27: 0
A28: 3.9811 | B28: 0.0039811 | C28: 1.000000259 | D28: 0.0007198659212 | E28: 1 | F28: 2.126189065e-06 | G28: 1 | H28: 0 | I28: 7.590993846 | J28: 1.43867724 | K28: 1.000000199 | L28: 0.0006301523274 | M28: 1 | N28: 4.2677392e-06 | O28: 1 | P28: 7.616120098e-06 | Q28: 84.67364736 | R28: -82.43583329 | S28: 97.56416671 | U28: 1000000000 | V28: 15.84915721 | X28: 80.10125334 | Y28: -82.39427346 | AA28: 43.34334444 | AB28: -0.04155982903 | AD28: 0 | AE28: 0
A29: 4.3652 | B29: 0.0043652 | C29: 1.000000312 | D29: 0.0007893191855 | E29: 1 | F29: 2.33132564e-06 | G29: 1 | H29: 0 | I29: 8.311219939 | J29: 1.450184834 | K29: 1.000000239 | L29: 0.000690949955 | M29: 1 | N29: 4.6794944e-06 | O29: 1 | P29: 8.350930007e-06 | Q29: 83.88632453 | R29: -83.09571976 | S29: 96.90428024 | U29: 1000000000 | V29: 19.05497104 | X29: 79.31393097 | Y29: -83.0501502 | AA29: 43.34334398 | AB29: -0.045569556 | AD29: 0 | AE29: 0
A30: 4.7863 | B30: 0.0047863 | C30: 1.000000375 | D30: 0.0008654628102 | E30: 1 | F30: 2.556222833e-06 | G30: 1 | H30: 0 | I30: 9.101879603 | J30: 1.460706669 | K30: 1.000000287 | L30: 0.0007576041564 | M30: 1 | N30: 5.1309136e-06 | O30: 1 | P30: 9.15652348e-06 | Q30: 83.09699818 | R30: -83.6991793 | S30: 96.3008207 | U30: 1000000000 | V30: 22.90866769 | X30: 78.52460516 | Y30: -83.64921377 | AA30: 43.34334344 | AB30: -0.04996553578 | AD30: 0 | AE30: 0
A31: 5.2481 | B31: 0.0052481 | C31: 1.00000045 | D31: 0.0009489658285 | E31: 1 | F31: 2.802856706e-06 | G31: 1 | H31: 0 | I31: 9.969923569 | J31: 1.47032571 | K31: 1.000000345 | L31: 0.0008307005869 | M31: 1 | N31: 5.6259632e-06 | O31: 1 | P31: 1.003997887e-05 | Q31: 82.30578318 | R31: -84.25097087 | S31: 95.74902913 | U31: 1000000000 | V31: 27.54255361 | X31: 77.73339082 | Y31: -84.19618447 | AA31: 43.34334278 | AB31: -0.05478639349 | AD31: 0 | AE31: 0
A32: 5.7544 | B32: 0.0057544 | C32: 1.000000541 | D32: 0.001040515354 | E32: 1 | F32: 3.073256727e-06 | G32: 1 | H32: 0 | I32: 10.92249747 | J32: 1.479113786 | K32: 1.000000415 | L32: 0.00091084073 | M32: 1 | N32: 6.1687168e-06 | O32: 1 | P32: 1.100856585e-05 | Q32: 81.51318052 | R32: -84.75521534 | S32: 95.24478466 | U32: 1000000000 | V32: 33.11311936 | X32: 76.94078895 | Y32: -84.69514355 | AA32: 43.34334199 | AB32: -0.06007179812 | AD32: 0 | AE32: 0
A33: 6.3096 | B33: 0.0063096 | C33: 1.000000651 | D33: 0.001140906993 | E33: 1 | F33: 3.369772807e-06 | G33: 1 | H33: 0 | I33: 11.96788169 | J33: 1.487141815 | K33: 1.000000499 | L33: 0.0009987210393 | M33: 1 | N33: 6.7638912e-06 | O33: 1 | P33: 1.207070191e-05 | Q33: 80.71927361 | R33: -85.21598236 | S33: 94.78401764 | U33: 1000000000 | V33: 39.81105216 | X33: 76.14688299 | Y33: -85.15011468 | AA33: 43.34334103 | AB33: -0.06586768211 | AD33: 0 | AE33: 0
A34: 6.9183 | B34: 0.0069183 | C34: 1.000000782 | D34: 0.001250972511 | E34: 1 | F34: 3.694861673e-06 | G34: 1 | H34: 0 | I34: 13.11473912 | J34: 1.494472158 | K34: 1.0000006 | L34: 0.001095069624 | M34: 1 | N34: 7.4164176e-06 | O34: 1 | P34: 1.323518718e-05 | Q34: 79.92442596 | R34: -85.6368515 | S34: 94.3631485 | U34: 1000000000 | V34: 47.86287489 | X34: 75.35203649 | Y34: -85.56462944 | AA34: 43.34333989 | AB34: -0.07222206566 | AD34: 0 | AE34: 0
A35: 7.5858 | B35: 0.0075858 | C35: 1.000000941 | D35: 0.001371670248 | E35: 1 | F35: 4.051353899e-06 | G35: 1 | H35: 0 | I35: 14.37305674 | J35: 1.501165451 | K35: 1.000000721 | L35: 0.001200725393 | M35: 1 | N35: 8.1319776e-06 | O35: 1 | P35: 1.451216092e-05 | Q35: 79.12863596 | R35: -86.02130448 | S35: 93.97869552 | U35: 1000000000 | V35: 57.54436164 | X35: 74.55624786 | Y35: -85.9421142 | AA35: 43.34333852 | AB35: -0.07919027627 | AD35: 0 | AE35: 0
A36: 8.3176 | B36: 0.0083176 | C36: 1.000001131 | D36: 0.001503994701 | E36: 1 | F36: 4.442186874e-06 | G36: 1 | H36: 0 | I36: 15.75320361 | J36: 1.507274465 | K36: 1.000000867 | L36: 0.001316558907 | M36: 1 | N36: 8.9164672e-06 | O36: 1 | P36: 1.591214502e-05 | Q36: 78.33224065 | R36: -86.37237285 | S36: 93.62762715 | U36: 1000000000 | V36: 69.18246976 | X36: 73.7598542 | Y36: -86.28554312 | AA36: 43.34333686 | AB36: -0.0868297291 | AD36: 0 | AE36: 0
A37: 9.1201 | B37: 0.0091201 | C37: 1.00000136 | D37: 0.001649103105 | E37: 1 | F37: 4.870778652e-06 | G37: 1 | H37: 0 | I37: 17.26725055 | J37: 1.512850806 | K37: 1.000001042 | L37: 0.001443583183 | M37: 1 | N37: 9.7767472e-06 | O37: 1 | P37: 1.744738311e-05 | Q37: 77.53515409 | R37: -86.69302247 | S37: 93.30697753 | U37: 1000000000 | V37: 83.17622401 | X37: 72.96276963 | Y37: -86.59781523 | AA37: 43.34333488 | AB37: -0.09520723435 | AD37: 0 | AE37: 0
A38: 10 | B38: 0.01 | C38: 1.000001635 | D38: 0.00180820693 | E38: 1 | F38: 5.340707505e-06 | G38: 1 | H38: 0 | I38: 18.92783882 | J38: 1.517939484 | K38: 1.000001253 | L38: 0.001582858719 | M38: 1 | N38: 1.072e-05 | O38: 1 | P38: 1.913069277e-05 | Q38: 76.73759677 | R38: -86.98584193 | S38: 93.01415807 | U38: 1000000000 | V38: 100 | X38: 72.1652147 | Y38: -86.8814492 | AA38: 43.34333249 | AB38: -0.1043927337 | AD38: 0 | AE38: 0
A39: 10.965 | B39: 0.010965 | C39: 1.000001966 | D39: 0.001982698462 | E39: 1 | F39: 5.856085779e-06 | G39: 1 | H39: 0 | I39: 20.74950073 | J39: 1.52258372 | K39: 1.000001506 | L39: 0.001735604292 | M39: 1 | N39: 1.175448e-05 | O39: 1 | P39: 2.097680462e-05 | Q39: 75.93946366 | R39: -87.25331851 | S39: 92.74668149 | U39: 1000000000 | V39: 120.231225 | X39: 71.36708446 | Y39: -87.13885191 | AA39: 43.34332961 | AB39: -0.1144666074 | AD39: 0 | AE39: 0
A40: 12.023 | B40: 0.012023 | C40: 1.000002363 | D40: 0.002174006137 | E40: 1 | F40: 6.421132633e-06 | G40: 1 | H40: 0 | I40: 22.74714973 | J40: 1.526820603 | K40: 1.000001811 | L40: 0.00190307033 | M40: 1 | N40: 1.2888656e-05 | O40: 1 | P40: 2.300083191e-05 | Q40: 75.14107615 | R40: -87.49758859 | S40: 92.50241141 | U40: 1000000000 | V40: 144.552529 | X40: 70.5687004 | Y40: -87.37207727 | AA40: 43.34332616 | AB40: -0.1255113232 | AD40: 0 | AE40: 0
A41: 13.183 | B41: 0.013183 | C41: 1.000002841 | D41: 0.002383757279 | E41: 1 | F41: 7.040654704e-06 | G41: 1 | H41: 0 | I41: 24.93777918 | J41: 1.530685771 | K41: 1.000002177 | L41: 0.002086681363 | M41: 1 | N41: 1.4132176e-05 | O41: 1 | P41: 2.521999227e-05 | Q41: 74.3424594 | R41: -87.72070703 | S41: 92.27929297 | U41: 1000000000 | V41: 173.791489 | X41: 69.77008781 | Y41: -87.5830862 | AA41: 43.34332201 | AB41: -0.1376208309 | AD41: 0 | AE41: 0
A42: 14.454 | B42: 0.014454 | C42: 1.000003415 | D42: 0.002613579194 | E42: 1 | F42: 7.719458628e-06 | G42: 1 | H42: 0 | I42: 27.33838512 | J42: 1.53420956 | K42: 1.000002617 | L42: 0.002287861911 | M42: 1 | N42: 1.5494688e-05 | O42: 1 | P42: 2.765150333e-05 | Q42: 73.54415659 | R42: -87.92442478 | S42: 92.07557522 | U42: 1000000000 | V42: 208.918116 | X42: 68.97178999 | Y42: -87.7735357 | AA42: 43.34331702 | AB42: -0.1508890795 | AD42: 0 | AE42: 0
A43: 15.849 | B43: 0.015849 | C43: 1.000004106 | D43: 0.002865822442 | E43: 1 | F43: 8.464487324e-06 | G43: 1 | H43: 0 | I43: 29.97352162 | J43: 1.537427355 | K43: 1.000003147 | L43: 0.002508669616 | M43: 1 | N43: 1.6990128e-05 | O43: 1 | P43: 3.032023497e-05 | Q43: 72.7448569 | R43: -88.11078789 | S43: 91.88921211 | U43: 1000000000 | V43: 251.190801 | X43: 68.1724963 | Y43: -87.94533612 | AA43: 43.34331102 | AB43: -0.165451773 | AD43: 0 | AE43: 0
A44: 17.378 | B44: 0.017378 | C44: 1.000004937 | D44: 0.003142295086 | E44: 1 | F44: 9.281081502e-06 | G44: 1 | H44: 0 | I44: 32.86207892 | J44: 1.540361417 | K44: 1.000003783 | L44: 0.002750687241 | M44: 1 | N44: 1.8629216e-05 | O44: 1 | P44: 3.324531789e-05 | Q44: 71.94570996 | R44: -88.28108614 | S44: 91.71891386 | U44: 1000000000 | V44: 301.994884 | X44: 67.37335657 | Y44: -88.09967284 | AA44: 43.3433038 | AB44: -0.1814132962 | AD44: 0 | AE44: 0
A45: 19.055 | B45: 0.019055 | C45: 1.000005936 | D45: 0.003445528426 | E45: 1 | F45: 1.017671815e-05 | G45: 1 | H45: 0 | I45: 36.03050559 | J45: 1.543038503 | K45: 1.000004549 | L45: 0.003016130662 | M45: 1 | N45: 2.042696e-05 | O45: 1 | P45: 3.645353507e-05 | Q45: 71.14620149 | R45: -88.43687255 | S45: 91.56312745 | U45: 1000000000 | V45: 363.093025 | X45: 66.57385678 | Y45: -88.23795277 | AA45: 43.34329513 | AB45: -0.1989197879 | AD45: 0 | AE45: =IF(AD45>0,S43,0) -> 0
A46: 20.893 | B46: 0.020893 | C46: 1.000007136 | D46: 0.003777872884 | E46: 1 | F46: 1.115834019e-05 | G46: 1 | H46: 0 | I46: 39.50336306 | J46: 1.545479322 | K46: 1.000005468 | L46: 0.003307057427 | M46: 1 | N46: 2.2397296e-05 | O46: 1 | P46: 3.996975639e-05 | Q46: 70.34692477 | R46: -88.57935236 | S46: 91.42064764 | U46: 1000000000 | V46: 436.517449 | X46: 65.77459049 | Y46: -88.36124541 | AA46: 43.3432847 | AB46: -0.2181069446 | AD46: 0 | AE46: 0
A47: 22.909 | B47: 0.022909 | C47: 1.00000858 | D47: 0.004142402077 | E47: 1 | F47: 1.223502682e-05 | G47: 1 | H47: 0 | I47: 43.31277246 | J47: 1.547706397 | K47: 1.000006575 | L47: 0.003626158174 | M47: 1 | N47: 2.4558448e-05 | O47: 1 | P47: 4.382650406e-05 | Q47: 69.54728357 | R47: -88.70984034 | S47: 91.29015966 | U47: 1000000000 | V47: 524.822281 | X47: 64.97496183 | Y47: -88.47068813 | AA47: 43.34327216 | AB47: -0.2391522147 | AD47: 0 | AE47: 0
A48: 25.119 | B48: 0.025119 | C48: 1.000010315 | D48: 0.004542008704 | E48: 1 | F48: 1.341532318e-05 | G48: 1 | H48: 0 | I48: 47.48896725 | J48: 1.549737248 | K48: 1.000007904 | L48: 0.003975965185 | M48: 1 | N48: 2.692756799e-05 | O48: 1.000000001 | P48: 4.805438715e-05 | Q48: 68.74774522 | R48: -88.82936316 | S48: 91.17063684 | U48: 1000000000 | V48: 630.964161 | X48: 64.17543855 | Y48: -88.56714056 | AA48: 43.34325709 | AB48: -0.2622226017 | AD48: 0 | AE48: 0
A49: 27.542 | B49: 0.027542 | C49: 1.000012401 | D49: 0.004980127783 | E49: 1 | F49: 1.470937661e-05 | G49: 1 | H49: 0 | I49: 52.0678513 | J49: 1.551589437 | K49: 1.000009503 | L49: 0.004359485507 | M49: 1 | N49: 2.952502399e-05 | O49: 1.000000001 | P49: 5.268975401e-05 | Q49: 67.94820237 | R49: -88.93895433 | S49: 91.06104567 | U49: 1000000000 | V49: 758.561764 | X49: 63.37591382 | Y49: -88.65143791 | AA49: 43.34323897 | AB49: -0.287516419 | AD49: 0 | AE49: 0
A50: 30.2 | B50: 0.0302 | C50: 1.00001491 | D50: 0.005460736601 | E50: 1 | F50: 1.612893666e-05 | G50: 1 | H50: 0 | I50: 57.09099943 | J50: 1.553279535 | K50: 1.000011425 | L50: 0.004780200913 | M50: 1.000000001 | N50: 3.237439999e-05 | O50: 1.000000001 | P50: 5.777469214e-05 | Q50: 67.14823748 | R50: -89.03959474 | S50: 90.96040526 | U50: 1000000000 | V50: 912.04 | X50: 62.57597072 | Y50: -88.72433145 | AA50: 43.34321718 | AB50: -0.3152632867 | AD50: 0 | AE50: 0
A51: 33.113 | B51: 0.033113 | C51: 1.000017925 | D51: 0.005987450584 | E51: 1 | F51: 1.768468476e-05 | G51: 1 | H51: 0 | I51: 62.59620808 | J51: 1.554820239 | K51: 1.000013736 | L51: 0.005241276458 | M51: 1.000000001 | N51: 3.549713599e-05 | O51: 1.000000001 | P51: 6.334746294e-05 | Q51: 66.34862376 | R51: -89.13204042 | S51: 90.86795958 | U51: 1000000000 | V51: 1096.470769 | X51: 61.77638319 | Y51: -88.78636849 | AA51: 43.34319099 | AB51: -0.3456719333 | AD51: 0 | AE51: 0
A52: 36.308 | B52: 0.036308 | C52: 1.000021551 | D52: 0.006565150554 | E52: 1 | F52: 1.939104081e-05 | G52: 1 | H52: 0 | I52: 68.63450388 | J52: 1.55622588 | K52: 1.000016514 | L52: 0.005746984965 | M52: 1.000000001 | N52: 3.892217598e-05 | O52: 1.000000001 | P52: 6.945971927e-05 | Q52: 65.54872693 | R52: -89.21715123 | S52: 90.78284877 | U52: 1000000000 | V52: 1318.270864 | X52: 60.97651786 | Y52: -88.83812709 | AA52: 43.34315949 | AB52: -0.379024143 | AD52: 0 | AE52: 0
A53: 39.811 | B53: 0.039811 | C53: 1.00002591 | D53: 0.007198536113 | E53: 1 | F53: 2.126189064e-05 | G53: 1 | H53: 0 | I53: 75.2550248 | J53: 1.557507786 | K53: 1.000019854 | L53: 0.006301440701 | M53: 1.000000001 | N53: 4.267739197e-05 | O53: 1.000000001 | P53: 7.616120094e-05 | Q53: 64.74885799 | R53: -89.29561334 | S53: 90.70438666 | U53: 1000000000 | V53: 1584.915721 | X53: 60.17668678 | Y53: -88.8800221 | AA53: 43.34312163 | AB53: -0.4155912372 | AD53: 0 | AE53: 0
A54: 43.652 | B54: 0.043652 | C54: 1.000031151 | D54: 0.007893029579 | E54: 1 | F54: 2.33132564e-05 | G54: 1 | H54: 0 | I54: 82.51446956 | J54: 1.558676944 | K54: 1.00002387 | L54: 0.006909390697 | M54: 1.000000001 | N54: 4.679494397e-05 | O54: 1.000000002 | P54: 8.350930002e-05 | Q54: 63.94895517 | R54: -89.36809908 | S54: 90.63190092 | U54: 1000000000 | V54: 1905.497104 | X54: 59.37682948 | Y54: -88.91241282 | AA54: 43.34307611 | AB54: -0.4556862622 | AD54: 0 | AE54: 0
A55: 47.863 | B55: 0.047863 | C55: 1.000037451 | D55: 0.008654414188 | E55: 1 | F55: 2.556222833e-05 | G55: 1 | H55: 0 | I55: 90.47331779 | J55: 1.559743119 | K55: 1.000028698 | L55: 0.007575898072 | M55: 1.000000001 | N55: 5.130913595e-05 | O55: 1.000000002 | P55: 9.156523473e-05 | Q55: 63.14913428 | R55: -89.43521387 | S55: 90.56478613 | U55: 1000000000 | V55: 2290.866769 | X55: 58.57706332 | Y55: -88.93557077 | AA55: 43.34302139 | AB55: -0.4996431014 | AD55: 0 | AE55: 0
A56: 52.481 | B56: 0.052481 | C56: 1.000045026 | D56: 0.009489376289 | E56: 1 | F56: 2.802856705e-05 | G56: 1 | H56: 0 | I56: 99.20149998 | J56: 1.560715663 | K56: 1.000034503 | L56: 0.008306816709 | M56: 1.000000002 | N56: 5.625963194e-05 | O56: 1.000000003 | P56: 0.0001003997886 | Q56: 62.34916446 | R56: -89.49754631 | S56: 90.50245369 | U56: 1000000000 | V56: 2754.255361 | X56: 57.77715929 | Y56: -88.94969853 | AA56: 43.34295559 | AB56: -0.5478477777 | AD56: 0 | AE56: 0
A57: 57.544 | B57: 0.057544 | C57: 1.000054132 | D57: 0.01040478181 | E57: 1 | F57: 3.073256726e-05 | G57: 1 | H57: 0 | I57: 108.7708375 | J57: 1.561602557 | K57: 1.000041481 | L57: 0.009108157944 | M57: 1.000000002 | N57: 6.168716792e-05 | O57: 1.000000003 | P57: 0.0001100856584 | Q57: 61.5492613 | R57: -89.55560796 | S57: 90.44439204 | U57: 1000000000 | V57: 3311.311936 | X57: 56.97733522 | Y57: -88.95491127 | AA57: 43.34287649 | AB57: -0.6006966824 | AD57: 0 | AE57: 0
A58: 63.096 | B58: 0.063096 | C58: 1.000065081 | D58: 0.01140857989 | E58: 1.000000001 | F58: 3.369772806e-05 | G58: 1 | H58: 0 | I58: 119.2644926 | J58: 1.562411503 | K58: 1.000049871 | L58: 0.009986881677 | M58: 1.000000002 | N58: 6.76389119e-05 | O58: 1.000000004 | P58: 0.0001207070189 | Q58: 60.74926522 | R58: -89.6099031 | S58: 90.3900969 | U58: 1000000000 | V58: 3981.105216 | X58: 56.17743424 | Y58: -88.95125436 | AA58: 43.34278139 | AB58: -0.6586487439 | AD58: 0 | AE58: 0
A59: 69.183 | B59: 0.069183 | C59: 1.000078244 | D59: 0.01250907914 | E59: 1.000000001 | F59: 3.694861672e-05 | G59: 1 | H59: 0 | I59: 130.7694086 | J59: 1.563149204 | K59: 1.000059957 | L59: 0.01095026292 | M59: 1.000000003 | N59: 7.416417586e-05 | O59: 1.000000004 | P59: 0.0001323518716 | Q59: 59.9493386 | R59: -89.66088132 | S59: 90.33911868 | U59: 1000000000 | V59: 4786.287489 | X59: 55.37762195 | Y59: -88.93869767 | AA59: 43.34266707 | AB59: -0.7221836448 | AD59: 0 | AE59: 0
A60: 75.858 | B60: 0.075858 | C60: 1.00009407 | D60: 0.01371585092 | E60: 1.000000001 | F60: 4.051353897e-05 | G60: 1 | H60: 0 | I60: 143.3857594 | J60: 1.563822077 | K60: 1.000072085 | L60: 0.0120066827 | M60: 1.000000003 | N60: 8.131977582e-05 | O60: 1.000000005 | P60: 0.0001451216089 | Q60: 59.14930924 | R60: -89.70898603 | S60: 90.29101397 | U60: 1000000000 | V60: 5754.436164 | X60: 54.57773005 | Y60: -88.91713206 | AA60: 43.34252961 | AB60: -0.791853972 | AD60: 0 | AE60: 0
A61: 83.176 | B61: 0.083176 | C61: 1.000113094 | D61: 0.01503882449 | E61: 1.000000001 | F61: 4.442186871e-05 | G61: 1 | H61: 0 | I61: 157.2175003 | J61: 1.564435669 | K61: 1.000086663 | L61: 0.01316483608 | M61: 1.000000004 | N61: 8.916467176e-05 | O61: 1.000000006 | P61: 0.0001591214498 | Q61: 58.3493733 | R61: -89.75461344 | S61: 90.24538656 | U61: 1000000000 | V61: 6918.246976 | X61: 53.77795934 | Y61: -88.88638046 | AA61: 43.34236438 | AB61: -0.8682329752 | AD61: 0 | AE61: 0
A62: 91.201 | B62: 0.091201 | C62: 1.000135968 | D62: 0.0164895513 | E62: 1.000000001 | F62: 4.870778648e-05 | G62: 1 | H62: 0 | I62: 172.3855973 | J62: 1.564995346 | K62: 1.000104191 | L62: 0.0144348392 | M62: 1.000000005 | N62: 9.776747169e-05 | O62: 1.000000008 | P62: 0.0001744738307 | Q62: 57.54932504 | R62: -89.79816222 | S62: 90.20183778 | U62: 1000000000 | V62: 8317.622401 | X62: 52.97810975 | Y62: -88.84617466 | AA62: 43.34216571 | AB62: -0.9519875604 | AD62: 0 | AE62: 0
A63: 100 | B63: 0.1 | C63: 1.000163468 | D63: 0.01808011868 | E63: 1.000000001 | F63: 5.3407075e-05 | G63: 1 | H63: 0 | I63: 189.0166877 | J63: 1.565505764 | K63: 1.000125264 | L63: 0.01582727868 | M63: 1.000000006 | N63: 0.0001071999996 | O63: 1.000000009 | P63: 0.0001913069271 | Q63: 56.7492858 | R63: -89.83999459 | S63: 90.16000541 | U63: 1000000000 | V63: 10000 | X63: 52.17830935 | Y63: -88.79617902 | AA63: 43.34192687 | AB63: -1.043815574 | AD63: 0 | AE63: 0
A64: 109.65 | B64: 0.10965 | C64: 1.000196536 | D64: 0.01982441314 | E64: 1.000000002 | F64: 5.856085773e-05 | G64: 1 | H64: 0 | I64: 207.25631 | J64: 1.565971365 | K64: 1.000150605 | L64: 0.01735431792 | M64: 1.000000007 | N64: 0.0001175447995 | O64: 1.000000011 | P64: 0.0002097680454 | Q64: 55.94906641 | R64: -89.88047451 | S64: 90.11952549 | U64: 1000000000 | V64: 12023.1225 | X64: 51.37837715 | Y64: -88.73595577 | AA64: 43.34163969 | AB64: -1.144518739 | AD64: 0 | AE64: 0
A65: 120.23 | B65: 0.12023 | C65: 1.000236288 | D65: 0.02173667157 | E65: 1.000000002 | F65: 6.421132624e-05 | G65: 1 | H65: 0 | I65: 227.2537834 | J65: 1.566395946 | K65: 1.000181068 | L65: 0.01902842933 | M65: 1.000000008 | N65: 0.0001288865593 | O65: 1.000000013 | P65: 0.0002300083181 | Q65: 55.14891852 | R65: -89.91993182 | S65: 90.08006818 | U65: 1000000000 | V65: 14455.2529 | X65: 50.57857448 | Y65: -88.66501281 | AA65: 43.34129446 | AB65: -1.254919011 | AD65: 0 | AE65: 0
A66: 131.83 | B66: 0.13183 | C66: 1.000284076 | D66: 0.02383310438 | E66: 1.000000002 | F66: 7.040654692e-05 | G66: 1 | H66: 0 | I66: 249.1792187 | J66: 1.56678314 | K66: 1.000217689 | L66: 0.02086381606 | M66: 1.00000001 | N66: 0.0001413217591 | O66: 1.000000016 | P66: 0.0002521999214 | Q66: 54.34880759 | R66: -89.95870227 | S66: 90.04129773 | U66: 1000000000 | V66: 17379.1489 | X66: 49.77887853 | Y66: -88.58274999 | AA66: 43.34087947 | AB66: -1.375952288 | AD66: 0 | AE66: 0
A67: 144.54 | B67: 0.14454 | C67: 1.000341483 | D67: 0.02612990291 | E67: 1.000000003 | F67: 7.719458612e-05 | G67: 1 | H67: 0 | I67: 273.2027271 | J67: 1.567136033 | K67: 1.000261682 | L67: 0.02287466847 | M67: 1.000000012 | N67: 0.0001549468788 | O67: 1.000000019 | P67: 0.0002765150315 | Q67: 53.54922689 | R67: -89.99708994 | S67: 90.00291006 | U67: 1000000000 | V67: 20891.8116 | X67: 48.97979634 | Y67: -88.48853656 | AA67: 43.34038097 | AB67: -1.508553378 | AD67: 0 | AE67: 0
A68: 158.49 | B68: 0.15849 | C68: 1.000410565 | D68: 0.02865046106 | E68: 1.000000004 | F68: 8.464487304e-05 | G68: 1 | H68: 0 | I68: 299.5700249 | J68: 1.567458203 | K68: 1.000314623 | L68: 0.02508148803 | M68: 1.000000014 | N68: 0.0001699012784 | O68: 1.000000023 | P68: 0.0003032023473 | Q68: 52.74882023 | R68: -90.03548383 | S68: 89.96451617 | U68: 1000000000 | V68: 25119.0801 | X68: 48.17998952 | Y68: -88.38141091 | AA68: 43.33978113 | AB68: -1.654072923 | AD68: 0 | AE68: 0
A69: 173.78 | B69: 0.17378 | C69: 1.000493582 | D69: 0.03141271794 | E69: 1.000000004 | F69: 9.281081476e-05 | G69: 1 | H69: 0 | I69: 328.4701251 | J69: 1.567751905 | K69: 1.000378244 | L69: 0.02750000739 | M69: 1.000000017 | N69: 0.0001862921578 | O69: 1.000000028 | P69: 0.0003324531758 | Q69: 51.94870142 | R69: -90.07415365 | S69: 89.92584635 | U69: 1000000000 | V69: 30199.4884 | X69: 47.3805915 | Y69: -88.26060699 | AA69: 43.33906034 | AB69: -1.813546659 | AD69: 0 | AE69: 0
A70: 190.55 | B70: 0.19055 | C70: 1.000593412 | D70: 0.03444179543 | E70: 1.000000005 | F70: 0.0001017671812 | G70: 1 | H70: 0 | I70: 360.1676461 | J70: 1.568019838 | K70: 1.000454752 | L70: 0.03015225702 | M70: 1.000000021 | N70: 0.0002042695972 | O70: 1.000000034 | P70: 0.0003645353466 | Q70: 51.14832254 | R70: -90.11345078 | S70: 89.88654922 | U70: 1000000000 | V70: 36309.3025 | X70: 46.58107929 | Y70: -88.12502575 | AA70: 43.33819366 | AB70: -1.988425026 | AD70: 0 | AE70: 0
A71: 208.93 | B71: 0.20893 | C71: 1.000713369 | D71: 0.03776095068 | E71: 1.000000006 | F71: 0.0001115834014 | G71: 1 | H71: 0 | I71: 394.908305 | J71: 1.568264091 | K71: 1.000546686 | L71: 0.03305864659 | M71: 1.000000025 | N71: 0.0002239729563 | O71: 1.00000004 | P71: 0.0003996975585 | Q71: 50.34824794 | R71: -90.15367627 | S71: 89.84632373 | U71: 1000000000 | V71: 43651.7449 | X71: 45.782046 | Y71: -87.97362544 | AA71: 43.33715236 | AB71: -2.180050832 | AD71: 0 | AE71: 0
A72: 229.09 | B72: 0.22909 | C72: 1.000857617 | D72: 0.04140058783 | E72: 1.000000007 | F72: 0.0001223502676 | G72: 1 | H72: 0 | I72: 433.0134245 | J72: 1.568486928 | K72: 1.000657241 | L72: 0.03624585951 | M72: 1.00000003 | N72: 0.0002455844751 | O72: 1.000000048 | P72: 0.0004382650334 | Q72: 49.54785371 | R72: -90.19519699 | S72: 89.80480301 | U72: 1000000000 | V72: 52482.2281 | X72: 44.98290377 | Y72: -87.80501745 | AA72: 43.33590036 | AB72: -2.390179537 | AD72: 0 | AE72: 0
A73: 251.19 | B73: 0.25119 | C73: 1.001030975 | D73: 0.0453892037 | E73: 1.000000009 | F73: 0.000134153231 | G73: 1 | H73: 0 | I73: 474.7854263 | J73: 1.568690111 | K73: 1.000790111 | L73: 0.0397389298 | M73: 1.000000036 | N73: 0.0002692756735 | O73: 1.000000058 | P73: 0.0004805438622 | Q73: 48.74758212 | R73: -90.23833473 | S73: 89.76166527 | U73: 1000000000 | V73: 63096.4161 | X73: 44.1841366 | Y73: -87.6178782 | AA73: 43.33439594 | AB73: -2.620456532 | AD73: 0 | AE73: 0
A74: 275.42 | B74: 0.27542 | C74: 1.001239336 | D74: 0.04976057786 | E74: 1.000000011 | F74: 0.000147093765 | G74: 1 | H74: 0 | I74: 520.5834361 | J74: 1.568875404 | K74: 1.000949817 | L74: 0.04356754466 | M74: 1.000000044 | N74: 0.0002952502314 | O74: 1.00000007 | P74: 0.0005268975277 | Q74: 47.94730088 | R74: -90.28345174 | S74: 89.71654826 | U74: 1000000000 | V74: 75856.1764 | X74: 43.3856632 | Y74: -87.41061949 | AA74: 43.3325881 | AB74: -2.872832253 | AD74: 0 | AE74: 0
A75: 302 | B75: 0.302 | C75: 1.001489902 | D75: 0.05455372503 | E75: 1.000000013 | F75: 0.0001612893653 | G75: 1 | H75: 0 | I75: 570.8232841 | J75: 1.56904447 | K75: 1.001141881 | L75: 0.04776601253 | M75: 1.000000052 | N75: 0.0003237439887 | O75: 1.000000084 | P75: 0.0005777469051 | Q75: 47.14656711 | R75: -90.33094382 | S75: 89.66905618 | U75: 1000000000 | V75: 91204 | X75: 42.58710295 | Y75: -87.18138435 | AA75: 43.33041458 | AB75: -3.149559464 | AD75: 0 | AE75: 0
A76: 331.13 | B76: 0.33113 | C76: 1.001790917 | D76: 0.05980382312 | E76: 1.000000016 | F76: 0.0001768468458 | G76: 1 | H76: 0 | I76: 625.8829976 | J76: 1.569198583 | K76: 1.001372632 | L76: 0.05236532784 | M76: 1.000000063 | N76: 0.0003549713451 | O76: 1.000000101 | P76: 0.0006334746079 | Q76: 46.34612886 | R76: -90.38115174 | S76: 89.61884826 | U76: 1000000000 | V76: 109647.0769 | X76: 41.78927513 | Y76: -86.92848223 | AA76: 43.32780415 | AB76: -3.452669511 | AD76: 0 | AE76: 0
A77: 363.08 | B77: 0.36308 | C77: =SQRT(1+(A77/pole1)^2) -> 1.002152805 | D77: =ATAN(A77/pole1) -> 0.06555836594 | E77: =SQRT(1+(A77/Zero1)^2) -> 1.000000019 | F77: =ATAN(A77/Zero1) -> 0.0001939104057 | G77: =IF(VIN_nom>Vout, 1, SQRT(1+(A77/z_RHP)^2)) -> 1 | H77: =IF(VIN_nom>Vout, 0, -ATAN(A77/z_RHP)) -> 0 | I77: =SQRT(1+(A77/Pole2)^2) -> 686.2729138 | J77: =ATAN(A77/Pole2) -> 1.56933918 | K77: =SQRT(1+(A77/Zero2)^2) -> 1.001650067 | L77: =ATAN(A77/Zero2) -> 0.0574073352 | M77: =SQRT(1+(A77/pole4)^2) -> 1.000000076 | N77: =ATAN(A77/pole4) -> 0.0003892217403 | O77: =SQRT((1-(V77/pterm2))^2+(A77/pterm1)^2) -> 1.000000122 | P77: =IF((ATAN((A77/pterm1)/(1-A77^2/pterm2))>0),ATAN((A77/pterm1)/(1-A77^2/pterm2)),PI()+ATAN((A77/pterm1)/(1-A77^2/pterm2))) -> 0.0006945971644 | Q77: =20*LOG10(((E77*K77*G77)/(C77*I77*O77*M77))*Adc) -> 45.54532352 | R77: =((F77+L77+H77)-(D77+J77+P77+N77))*radconv -> -90.4345194 | S77: =IF(R77>0,R77,R77+180) -> 89.5654806 | U77: 1000000000 | V77: 131827.0864 | X77: =20*LOG10((K77/(I77*M77))*AEA) -> 40.99160706 | Y77: =(L77-(J77+N77))*radconv -> -86.64961448 | AA77: =20*LOG10((E77*G77/(C77*O77))*Acs*Am) -> 43.32466687 | AB77: =(F77+H77-(D77+P77))*radconv -> -3.784904923 | AD77: 0 | AE77: =IF(AD77>0,S75,0) -> 0
A78: 398.11 | B78: =A78/1000 -> 0.39811 | C78: 1.002587688 | D78: 0.07186264318 | E78: 1.000000023 | F78: 0.0002126189033 | G78: 1 | H78: 0 | I78: 752.4844688 | J78: 1.569467395 | K78: 1.001983493 | L78: 0.06293202974 | M78: 1.000000091 | N78: 0.0004267738941 | O78: 1.000000146 | P78: 0.000761611972 | Q78: 44.744432 | R78: -90.49145173 | S78: 89.50854827 | U78: =IF(Q78<0,A78,1000000000) -> 1000000000 | V78: =A78^2 -> 158491.5721 | X78: 40.19448414 | Y78: -86.34257058 | AA78: 43.32089828 | AB78: -4.14888115 | AD78: =SUM((Q79<0)*(Q78>0))*A78 -> 0 | AE78: 0
A79: 436.52 | B79: 0.43652 | C79: 1.003110288 | D79: 0.07876862309 | E79: 1.000000027 | F79: 0.0002331325598 | G79: 1 | H79: 0 | I79: 825.084704 | J79: 1.56958433 | K79: 1.002384218 | L79: 0.06898536445 | M79: 1.000000109 | N79: 0.0004679494058 | O79: 1.000000176 | P79: 0.0008350929509 | Q79: 43.94335842 | R79: -90.55239853 | S79: 89.44760147 | U79: 1000000000 | V79: 190549.7104 | X79: 39.39793713 | Y79: -86.00479908 | AA79: 43.3163717 | AB79: -4.547599456 | AD79: 0 | AE79: 0
A80: 478.63 | B80: 0.47863 | C80: 1.003738144 | D80: 0.08633118374 | E80: 1.000000033 | F80: 0.0002556222777 | G80: 1 | H80: 0 | I80: 904.6784639 | J80: 1.569690961 | K80: 1.002865715 | L80: 0.07561598132 | M80: 1.000000132 | N80: 0.000513091315 | O80: 1.000000211 | P80: 0.0009156522823 | Q80: 43.14218005 | R80: -90.61781811 | S80: 89.38218189 | U80: 1000000000 | V80: 229086.6769 | X80: 38.60219391 | Y80: -85.6335887 | AA80: 43.31093656 | AB80: -4.984229408 | AD80: 0 | AE80: 0
A81: 524.81 | B81: 0.52481 | C81: 1.004492592 | D81: 0.09461328106 | E81: 1.000000039 | F81: 0.0002802856632 | G81: 1 | H81: 0 | I81: 991.9651001 | J81: 1.569788227 | K81: 1.003444387 | L81: 0.08287978622 | M81: 1.000000158 | N81: 0.0005625962606 | O81: 1.000000254 | P81: 0.001003997801 | Q81: 42.34062097 | R81: -90.68822 | S81: 89.31178 | U81: 1000000000 | V81: 275425.5361 | X81: 37.80716133 | Y81: -85.22581265 | AA81: 43.30441006 | AB81: -5.462407348 | AD81: 0 | AE81: 0
A82: 575.44 | B82: 0.57544 | C82: 1.005398791 | D82: 0.1036784809 | E82: 1.000000047 | F82: 0.000307325663 | G82: 1 | H82: 0 | I82: 1087.662865 | J82: 1.569876924 | K82: 1.004139588 | L82: 0.09083345725 | M82: 1.00000019 | N82: 0.0006168716018 | O82: 1.000000306 | P82: 0.001100856471 | Q82: 41.53884536 | R82: -90.76409796 | S82: 89.23590204 | U82: 1000000000 | V82: 331131.1936 | X82: 37.01321851 | Y82: -84.7782926 | AA82: 43.29657727 | AB82: -5.985805354 | AD82: 0 | AE82: 0
A83: 630.96 | B83: 0.63096 | C83: 1.006487307 | D83: 0.1135995511 | E83: 1.000000057 | F83: 0.000336977268 | G83: 1 | H83: 0 | I83: 1192.603421 | J83: 1.569957825 | K83: 1.004974847 | L83: 0.09954205399 | M83: 1.000000229 | N83: 0.0006763890169 | O83: 1.000000367 | P83: 0.001207070041 | Q83: 40.73663277 | R83: -90.84599962 | S83: 89.15400038 | U83: 1000000000 | V83: 398110.5216 | X83: 36.22040524 | Y83: -84.28737214 | AA83: 43.28717795 | AB83: -6.558627484 | AD83: 0 | AE83: 0
A84: 691.83 | B84: 0.69183 | C84: 1.007794294 | D84: 0.1244508126 | E84: 1.000000068 | F84: 0.0003694861505 | G84: 1 | H84: 0 | I84: 1307.656232 | J84: 1.5700316 | K84: 1.005978024 | L84: 0.1090724008 | M84: 1.000000275 | N84: 0.000741641624 | O84: 1.000000442 | P84: 0.00132351852 | Q84: 39.93407525 | R84: -90.93445753 | S84: 89.06554247 | U84: 1000000000 | V84: 478628.7489 | X84: 35.42912012 | Y84: -83.74928917 | AA84: 43.27590554 | AB84: -7.185168357 | AD84: 0 | AE84: 0
A85: 758.58 | B85: 0.75858 | C85: 1.00936357 | D85: 0.1363164355 | E85: 1.000000082 | F85: 0.0004051353677 | G85: 1 | H85: 0 | I85: 1433.823072 | J85: 1.570098891 | K85: 1.007182917 | L85: 0.1195004918 | M85: 1.000000331 | N85: 0.0008131975807 | O85: 1.000000531 | P85: 0.001451215831 | Q85: 39.13091711 | R85: -91.03005134 | S85: 88.96994866 | U85: 1000000000 | V85: 575443.6164 | X85: 34.63947726 | Y85: -83.1597589 | AA85: 43.26239027 | AB85: -7.870292439 | AD85: 0 | AE85: 0
A86: 831.76 | B86: 0.83176 | C86: 1.011246772 | D86: 0.1492807154 | E86: 1.000000099 | F86: 0.0004442186582 | G86: 1 | H86: 0 | I86: 1572.143517 | J86: 1.570160253 | K86: 1.008629413 | L86: 0.130903104 | M86: 1.000000398 | N86: 0.0008916464837 | O86: 1.000000638 | P86: 0.001591214157 | Q86: 38.32725835 | R86: -91.13332089 | S86: 88.86667911 | U86: 1000000000 | V86: 691824.6976 | X86: 33.85200974 | Y86: -82.51444792 | AA86: 43.24619903 | AB86: -8.618872968 | AD86: 0 | AE86: 0
A87: 912.01 | B87: 0.91201 | C87: 1.013506517 | D87: 0.1634394507 | E87: 1.000000119 | F87: 0.0004870778266 | G87: 1 | H87: 0 | I87: 1723.827258 | J87: 1.570216222 | K87: 1.01036595 | L87: 0.1433679946 | M87: 1.000000478 | N87: 0.0009776744085 | O87: 1.000000768 | P87: 0.001744737857 | Q87: 37.52277913 | R87: -91.24484751 | S87: 88.75515249 | U87: 1000000000 | V87: 831762.2401 | X87: 33.06691941 | Y87: -81.80839816 | AA87: 43.22681014 | AB87: -9.436449352 | AD87: 0 | AE87: 0
A88: 1000 | B88: 1 | C88: 1.016216608 | D88: 0.1788879522 | E88: 1.000000143 | F88: 0.0005340706997 | G88: 1 | H88: 0 | I88: 1890.140689 | J88: 1.570267266 | K88: 1.012449732 | L88: 0.1569836039 | M88: 1.000000575 | N88: 0.001071999589 | O88: 1.000000923 | P88: 0.001913068678 | Q88: 36.7174699 | R88: -91.36514566 | S88: 88.63485434 | U88: 1000000000 | V88: 1000000 | X88: 32.28480618 | Y88: -81.03661022 | AA88: 43.20361415 | AB88: -10.32853544 | AD88: 0 | AE88: 0
A89: 1096.5 | B89: 1.0965 | C89: 1.019466054 | D89: 0.1957316482 | E89: 1.000000171 | F89: 0.000585608511 | G89: 1 | H89: 0 | I89: 2072.539216 | J89: 1.570313827 | K89: 1.014949892 | L89: 0.171848701 | M89: 1.000000691 | N89: 0.001175447459 | O89: 1.00000111 | P89: 0.002097679673 | Q89: 35.91098803 | R89: -91.49473045 | S89: 88.50526955 | U89: 1000000000 | V89: 1202312.25 | X89: 31.50605529 | Y89: -80.19349778 | AA89: 43.17588316 | AB89: -11.30123267 | AD89: 0 | AE89: 0
A90: 1202.3 | B90: 1.2023 | C90: 1.023358772 | D90: 0.2140698998 | E90: 1.000000206 | F90: 0.0006421131751 | G90: 1 | H90: 0 | I90: 2272.516052 | J90: 1.570356286 | K90: 1.017947373 | L90: 0.1880584868 | M90: 1.000000831 | N90: 0.001288864886 | O90: 1.000001334 | P90: 0.002300082151 | Q90: 35.10341266 | R90: -91.63397295 | S90: 88.36602705 | U90: 1000000000 | V90: 1445525.29 | X90: 30.73158451 | Y90: -79.27367653 | AA90: 43.14277856 | AB90: -12.36029642 | AD90: 0 | AE90: =IF(AD90>0,S90,0) -> 0
A91: 1318.3 | B91: 1.3183 | C91: 1.028019067 | D91: 0.2340090334 | E91: 1.000000248 | F91: 0.000704065354 | G91: 1 | H91: 0 | I91: 2491.772322 | J91: 1.570395006 | K91: 1.021539288 | L91: 0.205716534 | M91: 1.000000999 | N91: 0.001413216659 | O91: 1.000001604 | P91: 0.002521997856 | Q91: 34.29451116 | R91: -91.78317813 | S91: 88.21682187 | U91: 1000000000 | V91: 1737914.89 | X91: 29.96215006 | Y91: -78.27128828 | AA91: 43.10331151 | AB91: -13.51188986 | AD91: 0 | AE91: 0
A92: 1445.4 | B92: 1.4454 | C92: 1.033589993 | D92: 0.255640131 | E92: 1.000000298 | F92: 0.0007719457094 | G92: 1 | H92: 0 | I92: 2732.009152 | J92: 1.570430296 | K92: 1.025837855 | L92: 0.2249156376 | M92: 1.0000012 | N92: 0.00154946756 | O92: 1.000001928 | P92: 0.002765148525 | Q92: 33.48456159 | R92: -91.94239193 | S92: 88.05760807 | U92: 1000000000 | V92: 2089181.16 | X92: 29.1991454 | Y92: -77.18108923 | AA92: 43.05636661 | AB92: -14.7613027 | AD92: 0 | AE92: 0
A93: 1584.9 | B93: 1.5849 | C93: 1.040254696 | D93: 0.2791026521 | E93: 1.000000358 | F93: 0.0008464485303 | G93: 1 | H93: 0 | I93: 2995.683725 | J93: 1.570462513 | K93: 1.030987147 | L93: 0.2457949555 | M93: 1.000001443 | N93: 0.001699011165 | O93: 1.000002318 | P93: 0.003032021114 | Q93: 32.67194323 | R93: -92.11183469 | S93: 87.88816531 | U93: 1000000000 | V93: 2511908.01 | X93: 28.44235768 | Y93: -75.99520657 | AA93: 43.00053597 | AB93: -16.11662812 | AD93: 0 | AE93: 0
A94: 1737.8 | B94: 1.7378 | C94: 1.048208392 | D94: 0.3044606706 | E94: 1.000000431 | F94: 0.0009281078837 | G94: 1 | H94: 0 | I94: 3284.686181 | J94: 1.570491884 | K94: 1.037141834 | L94: 0.268430747 | M94: 1.000001735 | N94: 0.001862919445 | O94: 1.000002787 | P94: 0.003324528648 | Q94: 31.85751786 | R94: -92.29096158 | S94: 87.70903842 | U94: 1000000000 | V94: 3019948.84 | X94: 27.69409471 | Y94: -74.70934531 | AA94: 42.93437357 | AB94: -17.58161627 | AD94: 0 | AE94: 0
A95: 1905.5 | B95: 1.9055 | C95: 1.057694474 | D95: 0.3318151189 | E95: 1.000000518 | F95: 0.001017671464 | G95: 1 | H95: 0 | I95: 3601.662717 | J95: 1.570518677 | K95: 1.044495569 | L95: 0.2929368522 | M95: 1.000002086 | N95: 0.002042693159 | O95: 1.000003351 | P95: 0.003645349365 | Q95: 31.04044446 | R95: -92.4792451 | S95: 87.5207549 | U95: 1000000000 | V95: 3630930.25 | X95: 26.95527751 | Y95: -73.31708434 | AA95: 42.85611737 | AB95: -19.16216077 | AD95: 0 | AE95: 0
A96: 2089.3 | B96: 2.0893 | C96: 1.068982971 | D96: 0.3612136511 | E96: 1.000000623 | F96: 0.001115833556 | G96: 1 | H96: 0 | I96: 3949.070515 | J96: 1.570543103 | K96: 1.053264965 | L96: 0.3193849484 | M96: 1.000002508 | N96: 0.002239725855 | O96: 1.000004029 | P96: 0.00399697018 | Q96: 30.22100855 | R96: -92.67550337 | S96: 87.32449663 | U96: 1000000000 | V96: 4365174.49 | X96: 26.22805761 | Y96: -71.81440866 | AA96: 42.76390136 | AB96: -20.8610947 | AD96: 0 | AE96: 0
A97: 2290.9 | B97: 2.2909 | C97: 1.082403304 | D97: 0.3927238471 | E97: 1.000000748 | F97: 0.001223502072 | G97: 1 | H97: 0 | I97: 4330.122813 | J97: 1.570565386 | K97: 1.063715838 | L97: 0.3478707546 | M97: 1.000003016 | N97: 0.002455839863 | O97: 1.000004844 | P97: 0.004382643209 | Q97: 29.39828495 | R97: -92.87837581 | S97: 87.12162419 | U97: 1000000000 | V97: 5248222.81 | X97: 25.51370643 | Y97: -70.19595138 | AA97: 42.65552893 | AB97: -22.68242443 | AD97: 0 | AE97: 0
A98: 2511.9 | B98: 2.5119 | C98: 1.098317471 | D98: 0.4263444653 | E98: 1.0000009 | F98: 0.001341531513 | G98: 1 | H98: 0 | I98: 4747.843837 | J98: 1.570585705 | K98: 1.076143419 | L98: 0.3784345038 | M98: 1.000003625 | N98: 0.002692750292 | O98: 1.000005823 | P98: 0.004805429229 | Q98: 28.57246314 | R98: -93.0857209 | S98: 86.9142791 | U98: 1000000000 | V98: 6309641.61 | X98: 24.81466747 | Y98: -68.45951567 | AA98: 42.52874608 | AB98: -24.62620523 | AD98: 0 | AE98: 0
A99: 2754.2 | B99: 2.7542 | C99: 1.117148526 | D99: 0.4620598673 | E99: 1.000001082 | F99: 0.0014709366 | G99: 1 | H99: 0 | I99: 5205.824852 | J99: 1.570604234 | K99: 1.090895754 | L99: 0.4111098206 | M99: 1.000004359 | N99: 0.002952493821 | O99: 1.000007001 | P99: 0.005268962896 | Q99: 27.74318705 | R99: -93.29499297 | S99: 86.70500703 | U99: 1000000000 | V99: 7585617.64 | X99: 24.13306052 | Y99: -66.60330178 | AA99: 42.38107694 | AB99: -26.69169118 | AD99: 0 | AE99: 0
A100: 3020 | B100: 3.02 | C100: 1.13938684 | D100: 0.4998279307 | E100: 1.000001301 | F100: 0.001612892268 | G100: 1 | H100: 0 | I100: 5708.224169 | J100: 1.570621141 | K100: 1.108380209 | L100: 0.4459125379 | M100: 1.00000524 | N100: 0.00323742869 | O100: 1.000008417 | P100: 0.005777452728 | Q100: 26.90984422 | R100: -93.5031899 | S100: 86.4968101 | U100: 1000000000 | V100: 9120400 | X100: 23.47093374 | Y100: -64.62654721 | AA100: 42.2098609 | AB100: -28.87664268 | AD100: 0 | AE100: 0
A101: 3311.3 | B101: 3.3113 | C101: 1.165548889 | D101: 0.539501505 | E101: 1.000001564 | F101: 0.001768466633 | G101: 1 | H101: 0 | I101: 6258.822067 | J101: 1.570636552 | K101: 1.129032692 | L101: 0.4827666571 | M101: 1.0000063 | N101: 0.003549698691 | O101: 1.000010119 | P101: 0.006334724562 | Q101: 26.07315999 | R101: -93.7065231 | S101: 86.2934769 | U101: 1000000000 | V101: 10964707.69 | X101: 22.83144793 | Y101: -62.53373648 | AA101: 42.01266248 | AB101: -31.17278662 | AD101: 0 | AE101: 0
A102: 3630.8 | B102: 3.6308 | C102: 1.196254322 | D102: 0.5809481898 | E102: 1.00000188 | F102: 0.00193910165 | G102: 1 | H102: 0 | I102: 6862.721925 | J102: 1.570650612 | K102: 1.153380091 | L102: 0.5216124186 | M102: 1.000007575 | N102: 0.003892197945 | O102: 1.000012166 | P102: 0.006945943278 | Q102: 25.23251611 | R102: -93.90121794 | S102: 86.09878206 | U102: 1000000000 | V102: 13182708.64 | X102: 22.21667958 | Y102: -60.32846761 | AA102: 41.78678695 | AB102: -33.57275032 | AD102: 0 | AE102: 0
A103: 3981.1 | B103: 3.9811 | C103: 1.232155479 | D103: 0.6239348266 | E103: 1.00000226 | F103: 0.002126185861 | G103: 1 | H103: 0 | I103: 7524.838109 | J103: 1.570663434 | K103: 1.181986489 | L103: 0.5622958429 | M103: 1.000009107 | N103: 0.00426771329 | O103: 1.000014627 | P103: 0.007616082327 | Q103: 24.38843094 | R103: -94.08310936 | S103: 85.91689064 | U103: 1000000000 | V103: 15849157.21 | X103: 21.62945233 | Y103: -58.01972917 | AA103: 41.52992903 | AB103: -36.06338019 | AD103: 0 | AE103: 0
A104: 4365.2 | B104: 4.3652 | C104: 1.273979998 | D104: 0.6681943352 | E104: 1.000002718 | F104: 0.002331321416 | G104: 1 | H104: 0 | I104: 8250.841041 | J104: 1.570675127 | K104: 1.215488376 | L104: 0.6046263243 | M104: 1.000010949 | N104: 0.004679460244 | O104: 1.000017586 | P104: 0.008350880215 | Q104: 23.54119604 | R104: -94.24824324 | S104: 85.75175676 | U104: 1000000000 | V104: 19054971.04 | X104: 21.0721811 | Y104: -55.61863258 | AA104: 41.23996536 | AB104: -38.62961066 | AD104: 0 | AE104: 0
A105: 4786.3 | B105: 4.7863 | C105: 1.322507561 | D105: 0.7134029309 | E105: 1.000003267 | F105: 0.002556217265 | G105: 1 | H105: 0 | I105: 9046.779168 | J105: 1.57068579 | K105: 1.25457733 | L105: 0.6483501243 | M105: 1.000013163 | N105: 0.005130868575 | O105: 1.000021142 | P105: 0.009156457842 | Q105: 22.69145673 | R105: -94.39306114 | S105: 85.60693886 | U105: 1000000000 | V105: 22908667.69 | X105: 20.547179 | Y105: -53.13991813 | AA105: 40.91522815 | AB105: -41.25314301 | AD105: 0 | AE105: 0
A106: 5248.1 | B106: 5.2481 | C106: 1.378599537 | D106: 0.7592190384 | E106: 1.000003928 | F106: 0.002802849366 | G106: 1 | H106: 0 | I106: 9919.646011 | J106: 1.570695517 | K106: 1.300024532 | L106: 0.6931826241 | M106: 1.000015826 | N106: 0.005625903844 | O106: 1.000025419 | P106: 0.01003989234 | Q106: 21.83964145 | R106: -94.51482451 | S106: 85.48517549 | U106: 1000000000 | V106: 27542553.61 | X106: 20.05619441 | Y106: -50.60012582 | AA106: 40.55439746 | AB106: -43.91469869 | AD106: 0 | AE106: 0
A107: 5370.3 | B107: 5.3703 | C107: 1.393901803 | D107: 0.7707180118 | E107: 1.000004113 | F107: 0.002868112287 | G107: 1 | H107: 0 | I107: 10150.62117 | J107: 1.570697811 | K107: 1.312468536 | L107: 0.7045192177 | M107: 1.000016571 | N107: 0.005756898001 | O107: 1.000026616 | P107: 0.01027366322 | Q107: 21.62656331 | R107: -94.54141984 | S107: 85.45858016 | U107: 1000000000 | V107: 28840122.09 | X107: 19.93900609 | Y107: -49.9582237 | AA107: 40.45850764 | AB107: -44.58319614 | AD107: 0 | AE107: 0
A108: 5432.85 | B108: 5.43285 | C108: 1.401804646 | D108: 0.7765064136 | E108: 1.000004209 | F108: 0.002901518134 | G108: 1 | H108: 0 | I108: 10268.84945 | J108: 1.570698945 | K108: 1.31890253 | L108: 0.7102388827 | M108: 1.000016959 | N108: 0.005823949353 | O108: 1.00002724 | P108: 0.01039332243 | Q108: 21.51934172 | R108: -94.55420686 | S108: 85.44579314 | U108: 1000000000 | V108: 29515859.12 | X108: 19.88089539 | Y108: -49.63441778 | AA108: 40.40939675 | AB108: -44.91978908 | AD108: 0 | AE108: 0
A109: 5495.4 | B109: 5.4954 | C109: 1.40975393 | D109: 0.7822297264 | E109: 1.000004307 | F109: 0.002934923975 | G109: 1 | H109: 0 | I109: 10387.07774 | J109: 1.570700053 | K109: 1.325379252 | L109: 0.715902831 | M109: 1.000017352 | N109: 0.005891000652 | O109: 1.000027871 | P109: 0.01051298156 | Q109: 21.41333473 | R109: -94.56645541 | S109: 85.43354459 | U109: 1000000000 | V109: 30199421.16 | X109: 19.8240094 | Y109: -49.31380271 | AA109: 40.36027574 | AB109: -45.2526527 | AD109: 0 | AE109: 0
A110: 5559.4 | B110: 5.5594 | C110: 1.417934743 | D110: 0.7880190982 | E110: 1.000004408 | F110: 0.002969104206 | G110: 1 | H110: 0 | I110: 10508.04672 | J110: 1.570701162 | K110: 1.332049688 | L110: 0.7216408804 | M110: 1.000017759 | N110: 0.005959606243 | O110: 1.000028524 | P110: 0.01063541448 | Q110: 21.30610068 | R110: -94.57844679 | S110: 85.42155321 | U110: 1000000000 | V110: 30906928.36 | X110: 19.76703875 | Y110: -48.98903101 | AA110: 40.31001235 | AB110: -45.58941578 | AD110: 0 | AE110: 0
A111: 5623.4 | B111: 5.6234 | C111: 1.426162535 | D111: 0.7937418602 | E111: 1.00000451 | F111: 0.003003284429 | G111: 1 | H111: 0 | I111: 10629.01571 | J111: 1.570702245 | K111: 1.338763545 | L111: 0.7273215629 | M111: 1.00001817 | N111: 0.006028211779 | O111: 1.000029184 | P111: 0.01075784732 | Q111: 21.20008465 | R111: -94.58990712 | S111: 85.41009288 | U111: 1000000000 | V111: 31622627.56 | X111: 19.71128316 | Y111: -48.66754474 | AA111: 40.25975191 | AB111: -45.92236239 | AD111: 0 | AE111: 0
A112: 5688.9 | B112: 5.6889 | C112: 1.434630965 | D112: 0.7995305876 | E112: 1.000004616 | F112: 0.003038265744 | G112: 1 | H112: 0 | I112: 10752.81991 | J112: 1.570703328 | K112: 1.345679037 | L112: 0.7330765036 | M112: 1.000018596 | N112: 0.006098425197 | O112: 1.000029868 | P112: 0.0108831496 | Q112: 21.09281811 | R112: -94.60110297 | S112: 85.39889703 | U112: 1000000000 | V112: 32363583.21 | X112: 19.65544518 | Y112: -48.34189592 | AA112: 40.20832335 | AB112: -46.25920705 | AD112: 0 | AE112: 0
A113: 5754.4 | B113: 5.7544 | C113: 1.443146903 | D113: 0.8052511869 | E113: 1.000004722 | F113: 0.003073247051 | G113: 1 | H113: 0 | I113: 10876.6241 | J113: 1.570704387 | K113: 1.352638641 | L113: 0.7387724105 | M113: 1.000019026 | N113: 0.006168638556 | O113: 1.00003056 | P113: 0.01100845178 | Q113: 20.98677357 | R113: -94.61177633 | S113: 85.38822367 | U113: 1000000000 | V113: 33113119.36 | X113: 19.60081255 | Y113: -48.01962807 | AA113: 40.15691144 | AB113: -46.59214825 | AD113: 0 | AE113: 0
A114: 5821.4 | B114: 5.8214 | C114: 1.451906145 | D114: 0.811033169 | E114: 1.000004833 | F114: 0.00310902945 | G114: 1 | H114: 0 | I114: 11003.26351 | J114: 1.570705445 | K114: 1.359802558 | L114: 0.7445382438 | M114: 1.000019472 | N114: 0.006240459791 | O114: 1.000031275 | P114: 0.01113662339 | Q114: 20.8795378 | R114: -94.62217078 | S114: 85.37782922 | U114: 1000000000 | V114: 33888697.96 | X114: 19.54614207 | Y114: -47.69344584 | AA114: 40.10434615 | AB114: -46.92872494 | AD114: 0 | AE114: 0
A115: 5888.4 | B115: 5.8884 | C115: 1.460713342 | D115: 0.8167456166 | E115: 1.000004945 | F115: 0.00314481184 | G115: 1 | H115: 0 | I115: 11129.90292 | J115: 1.570706479 | K115: 1.367011206 | L115: 0.7502434553 | M115: 1.000019923 | N115: 0.006312280961 | O115: 1.000031999 | P115: 0.01126479491 | Q115: 20.77352668 | R115: -94.63205318 | S115: 85.36794682 | U115: 1000000000 | V115: 34673254.56 | X115: 19.49266533 | Y115: -47.3707356 | AA115: 40.05181178 | AB115: -47.26131758 | AD115: 0 | AE115: 0
A116: 5957 | B116: 5.957 | C116: 1.469779648 | D116: 0.8225233555 | E116: 1.000005061 | F116: 0.003181448727 | G116: 1 | H116: 0 | I116: 11259.56655 | J116: 1.570707513 | K116: 1.374437613 | L116: 0.7560227114 | M116: 1.00002039 | N116: 0.006385817197 | O116: 1.000032749 | P116: 0.01139602714 | Q116: 20.66622567 | R116: -94.64165876 | S116: 85.35834124 | U116: 1000000000 | V116: 35485849 | X116: 19.43911449 | Y116: -47.04388122 | AA116: 39.9980616 | AB116: -47.59777755 | AD116: 0 | AE116: 0
A117: 6025.6 | B117: 6.0256 | C117: 1.478894416 | D117: 0.8282300638 | E117: 1.000005178 | F117: 0.003218085605 | G117: 1 | H117: 0 | I117: 11389.23018 | J117: 1.570708525 | K117: 1.381909431 | L117: 0.7617396613 | M117: 1.000020862 | N117: 0.006459353363 | O117: 1.000033508 | P117: 0.01152725927 | Q117: 20.56015423 | R117: -94.65076312 | S117: 85.34923688 | U117: 1000000000 | V117: 36307855.36 | X117: 19.38674741 | Y117: -46.72059536 | AA117: 39.94435724 | AB117: -47.93016776 | AD117: 0 | AE117: 0
A118: 6095.8 | B118: 6.0958 | C118: 1.488271015 | D118: 0.8339973158 | E118: 1.000005299 | F118: 0.003255576979 | G118: 1 | H118: 0 | I118: 11521.91804 | J118: 1.570709536 | K118: 1.389601768 | L118: 0.7675261101 | M118: 1.000021351 | N118: 0.006534604587 | O118: 1.000034293 | P118: 0.0116615521 | Q118: 20.45285444 | R118: -94.65957905 | S118: 85.34042095 | U118: 1000000000 | V118: 37158777.64 | X118: 19.33435048 | Y118: -46.39342578 | AA118: 39.88945438 | AB118: -48.26615327 | AD118: 0 | AE118: 0
A119: 6166 | B119: 6.166 | C119: 1.497696495 | D119: 0.839692165 | E119: 1.000005422 | F119: 0.003293068344 | G119: 1 | H119: 0 | I119: 11654.6059 | J119: 1.570710524 | K119: 1.39734012 | L119: 0.7732486589 | M119: 1.000021845 | N119: 0.006609855736 | O119: 1.000035088 | P119: 0.01179584483 | Q119: 20.34678771 | R119: -94.66790647 | S119: 85.33209353 | U119: 1000000000 | V119: 38019556 | X119: 19.28312538 | Y119: -46.06991607 | AA119: 39.83461276 | AB119: -48.59799041 | AD119: 0 | AE119: 0
A120: 6237.8 | B120: 6.2378 | C120: 1.507386409 | D120: 0.8454429487 | E120: 1.000005549 | F120: 0.003331414203 | G120: 1 | H120: 0 | I120: 11790.31798 | J120: 1.570711511 | K120: 1.405301652 | L120: 0.7790362482 | M120: 1.000022357 | N120: 0.006686821934 | O120: 1.00003591 | P120: 0.01193319824 | Q120: 20.23955165 | R120: -94.67593681 | S120: 85.32406319 | U120: 1000000000 | V120: 38910148.84 | X120: 19.23191098 | Y120: -45.74277806 | AA120: 39.77859108 | AB120: -48.93315876 | AD120: 0 | AE120: 0
A121: 6309.6 | B121: 6.3096 | C121: 1.517125537 | D121: 0.8511200842 | E121: 1.000005678 | F121: 0.003369760052 | G121: 1 | H121: 0 | I121: 11926.03006 | J121: 1.570712477 | K121: 1.413309725 | L121: 0.7847584402 | M121: 1.000022875 | N121: 0.006763788053 | O121: 1.000036741 | P121: 0.01207055154 | Q121: 20.13355075 | R121: -94.68349311 | S121: 85.31650689 | U121: 1000000000 | V121: 39811052.16 | X121: 19.18185466 | Y121: -45.41938574 | AA121: 39.7226465 | AB121: -49.26410737 | AD121: 0 | AE121: 0
A122: 6383.05 | B122: 6.38305 | C122: 1.527138417 | D122: 0.8568525684 | E122: 1.000005811 | F122: 0.003408987098 | G122: 1 | H122: 0 | I122: 12064.86088 | J122: 1.570713441 | K122: 1.421549164 | L122: 0.7905452273 | M122: 1.000023411 | N122: 0.006842522809 | O122: 1.000037601 | P122: 0.01221106117 | Q122: 20.02636448 | R122: -94.69075129 | S122: 85.30924871 | U122: 1000000000 | V122: 40743327.3 | X122: 19.13181238 | Y122: -45.09239371 | AA122: 39.66550251 | AB122: -49.59835758 | AD122: 0 | AE122: 0
A123: 6456.5 | B123: 6.4565 | C123: 1.537200826 | D123: 0.8625101875 | E123: 1.000005945 | F123: 0.003448214134 | G123: 1 | H123: 0 | I123: 12203.69169 | J123: 1.570714384 | K123: 1.429835658 | L123: 0.7962651305 | M123: 1.000023952 | N123: 0.00692125748 | O123: 1.000038472 | P123: 0.01235157067 | Q123: 19.92041585 | R123: -94.69755093 | S123: 85.30244907 | U123: 1000000000 | V123: 41686392.25 | X123: 19.08291428 | Y123: -44.76923259 | AA123: 39.60845199 | AB123: -49.92831834 | AD123: 0 | AE123: 0
A124: 6531.7 | B124: 6.5317 | C124: 1.547553284 | D124: 0.8682261923 | E124: 1.000006084 | F124: 0.003488375771 | G124: 1 | H124: 0 | I124: 12345.83025 | J124: 1.570715328 | K124: 1.438367483 | L124: 0.802052841 | M124: 1.000024514 | N124: 0.007001867973 | O124: 1.000039373 | P124: 0.01249542778 | Q124: 19.81319749 | R124: -94.70405651 | S124: 85.29594349 | U124: 1000000000 | V124: 42663104.89 | X124: 19.03400258 | Y124: -44.4422939 | AA124: 39.55014533 | AB124: -50.26176261 | AD124: 0 | AE124: 0
A125: 6606.9 | B125: 6.6069 | C125: 1.557955631 | D125: 0.8738660488 | E125: 1.000006225 | F125: 0.003528537397 | G125: 1 | H125: 0 | I125: 12487.96881 | J125: 1.57071625 | K125: 1.446946921 | L125: 0.8077721066 | M125: 1.000025081 | N125: 0.007082478375 | O125: 1.000040285 | P125: 0.01263928477 | Q125: 19.70722117 | R125: -94.71011946 | S125: 85.28988054 | U125: 1000000000 | V125: 43651127.61 | X125: 18.98622244 | Y125: -44.11927557 | AA125: 39.49194915 | AB125: -50.59084388 | AD125: 0 | AE125: 0
A126: 6683.85 | B126: 6.68385 | C126: 1.568650664 | D126: 0.8795595347 | E126: 1.000006371 | F126: 0.003569633624 | G126: 1 | H126: 0 | I126: 12633.41511 | J126: 1.570717172 | K126: 1.455774422 | L126: 0.8135544899 | M126: 1.000025669 | N126: 0.007164964589 | O126: 1.000041229 | P126: 0.01278648934 | Q126: 19.60003656 | R126: -94.71588451 | S126: 85.28411549 | U126: 1000000000 | V126: 44673850.82 | X126: 18.9384678 | Y126: -43.79274835 | AA126: 39.43251917 | AB126: -50.92313616 | AD126: 0 | AE126: 0
A127: 6760.8 | B127: 6.7608 | C127: 1.579395856 | D127: 0.885175731 | E127: 1.000006519 | F127: 0.003610729838 | G127: 1 | H127: 0 | I127: 12778.86142 | J127: 1.570718073 | K127: 1.464650011 | L127: 0.8192669813 | M127: 1.000026263 | N127: 0.007247450705 | O127: 1.000042184 | P127: 0.01293369378 | Q127: 19.49409687 | R127: -94.72122449 | S127: 85.27877551 | U127: 1000000000 | V127: 45708416.64 | X127: 18.89183026 | Y127: -43.47022443 | AA127: 39.37321703 | AB127: -51.25100006 | AD127: 0 | AE127: 0
A128: 6839.55 | B128: 6.83955 | C128: 1.59044327 | D128: 0.8908445464 | E128: 1.000006671 | F128: 0.003652787355 | G128: 1 | H128: 0 | I128: 12927.70998 | J128: 1.570718974 | K128: 1.473782097 | L128: 0.825041667 | M128: 1.000026879 | N128: 0.007331866219 | O128: 1.000043172 | P128: 0.01308434145 | Q128: 19.38694004 | R128: -94.72626859 | S128: 85.27373141 | U128: 1000000000 | V128: 46779444.2 | X128: 18.84522446 | Y128: -43.14424758 | AA128: 39.312666 | AB128: -51.58202101 | AD128: 0 | AE128: 0
A129: 6918.3 | B129: 6.9183 | C129: 1.601541088 | D129: 0.8964349757 | E129: 1.000006826 | F129: 0.003694844859 | G129: 1 | H129: 0 | I129: 13076.55854 | J129: 1.570719854 | K129: 1.482962724 | L129: 0.8307450419 | M129: 1.000027501 | N129: 0.007416281629 | O129: 1.000044172 | P129: 0.01323498896 | Q129: 19.28103117 | R129: -94.73090613 | S129: 85.26909387 | U129: 1000000000 | V129: 47862874.89 | X129: 18.79972098 | Y129: -42.82235537 | AA129: 39.25226061 | AB129: -51.90855077 | AD129: 0 | AE129: 0
A130: 6998.9 | B130: 6.9989 | C130: 1.612950724 | D130: 0.9020768936 | E130: 1.000006986 | F130: 0.003737890367 | G130: 1 | H130: 0 | I130: 13228.90385 | J130: 1.570720735 | K130: 1.492408351 | L130: 0.8365095474 | M130: 1.000028146 | N130: 0.007502680021 | O130: 1.000045207 | P130: 0.01338917533 | Q130: 19.17389844 | R130: -94.73525101 | S130: 85.26474899 | U130: 1000000000 | V130: 48984601.21 | X130: 18.75425614 | Y130: -42.49707425 | AA130: 39.19059271 | AB130: -52.23817675 | AD130: 0 | AE130: 0
A131: 7079.5 | B131: 7.0795 | C131: 1.62441098 | D131: 0.9076393788 | E131: 1.000007148 | F131: 0.003780935861 | G131: 1 | H131: 0 | I131: 13381.24917 | J131: 1.570721595 | K131: 1.501902946 | L131: 0.842201357 | M131: 1.000028798 | N131: 0.007589078301 | O131: 1.000046254 | P131: 0.01354336155 | Q131: 19.06801677 | R131: -94.73920873 | S131: 85.26079127 | U131: 1000000000 | V131: 50119320.25 | X131: 18.7098785 | Y131: -42.17595715 | AA131: 39.12908869 | AB131: -52.56325157 | AD131: 0 | AE131: 0
A132: 7161.95 | B132: 7.16195 | C132: 1.636185549 | D132: 0.9132487356 | E132: 1.000007315 | F132: 0.003824969358 | G132: 1 | H132: 0 | I132: 13537.09125 | J132: 1.570722456 | K132: 1.511665172 | L132: 0.8479496393 | M132: 1.000029472 | N132: 0.007677459551 | O132: 1.000047338 | P132: 0.0137010866 | Q132: 18.96097102 | R132: -94.74287609 | S132: 85.25712391 | U132: 1000000000 | V132: 51293527.8 | X132: 18.66557343 | Y132: -41.851718 | AA132: 39.06634801 | AB132: -52.89115809 | AD132: 0 | AE132: 0
A133: 7244.4 | B133: 7.2444 | C133: 1.648010864 | D133: 0.9187777644 | E133: 1.000007485 | F133: 0.00386900284 | G133: 1 | H133: 0 | I133: 13692.93333 | J133: 1.570723296 | K133: 1.521476707 | L133: 0.8536239694 | M133: 1.000030155 | N133: 0.007765840681 | O133: 1.000048434 | P133: 0.01385881148 | Q133: 18.85517796 | R133: -94.74617702 | S133: 85.25382298 | U133: 1000000000 | V133: 52481331.36 | X133: 18.62233877 | Y133: -41.53171488 | AA133: 39.00378961 | AB133: -53.21446215 | AD133: 0 | AE133: 0
A134: 7328.75 | B134: 7.32875 | C134: 1.660160067 | D134: 0.924352521 | E134: 1.00000766 | F134: 0.003914051025 | G134: 1 | H134: 0 | I134: 13852.36667 | J134: 1.570724137 | K134: 1.531564378 | L134: 0.8593536368 | M134: 1.000030861 | N134: 0.007856258365 | O134: 1.000049569 | P134: 0.01402017083 | Q134: 18.74821491 | R134: -94.74919413 | S134: 85.25080587 | U134: 1000000000 | V134: 53710576.56 | X134: 18.57918191 | Y134: -41.20865782 | AA134: 38.93998342 | AB134: -53.54053631 | AD134: 0 | AE134: 0
A135: 7413.1 | B135: 7.4131 | C135: 1.672360113 | D135: 0.9298461093 | E135: 1.000007837 | F135: 0.003959099195 | G135: 1 | H135: 0 | I135: 14011.80001 | J135: 1.570724958 | K135: 1.541701669 | L135: 0.8650081382 | M135: 1.000031576 | N135: 0.007946675919 | O135: 1.000050716 | P135: 0.01418152999 | Q135: 18.64250621 | R135: -94.75186623 | S135: 85.24813377 | U135: 1000000000 | V135: 54954051.61 | X135: 18.53707839 | Y135: -40.88990637 | AA135: 38.87637824 | AB135: -53.86195986 | AD135: 0 | AE135: 0
A136: 7499.45 | B136: 7.49945 | C136: 1.684900945 | D136: 0.9353873752 | E136: 1.000008021 | F136: 0.004005215473 | G136: 1 | H136: 0 | I136: 14175.01364 | J136: 1.57072578 | K136: 1.552129708 | L136: 0.8707200154 | M136: 1.000032316 | N136: 0.008039237205 | O136: 1.000051905 | P136: 0.01434671491 | Q136: 18.53556187 | R136: -94.7542635 | S136: 85.2457365 | U136: 1000000000 | V136: 56241750.3 | X136: 18.49503424 | Y136: -40.56799036 | AA136: 38.81147805 | AB136: -54.18627314 | AD136: 0 | AE136: 0
A137: 7585.8 | B137: 7.5858 | C137: 1.697492748 | D137: 0.9408465978 | E137: 1.000008207 | F137: 0.004051331734 | G137: 1 | H137: 0 | I137: 14338.22727 | J137: 1.570726583 | K137: 1.56260771 | L137: 0.876355473 | M137: 1.000033064 | N137: 0.008131798354 | O137: 1.000053107 | P137: 0.01451189962 | Q137: 18.42987501 | R137: -94.75633748 | S137: 85.24366252 | U137: 1000000000 | V137: 57544361.64 | X137: 18.45402727 | Y137: -40.2504518 | AA137: 38.74679815 | AB137: -54.50588568 | AD137: 0 | AE137: 0
A138: 7674.15 | B138: 7.67415 | C138: 1.710427777 | D138: 0.946348903 | E138: 1.000008399 | F138: 0.004098516101 | G138: 1 | H138: 0 | I138: 14505.22117 | J138: 1.570727386 | K138: 1.573379068 | L138: 0.8820435842 | M138: 1.000033839 | N138: 0.008226503218 | O138: 1.000054351 | P138: 0.01468091005 | Q138: 18.32301308 | R138: -94.75814389 | S138: 85.24185611 | U138: 1000000000 | V138: 58892578.22 | X138: 18.41311075 | Y138: -39.93001923 | AA138: 38.68085275 | AB138: -54.82812466 | AD138: 0 | AE138: 0
A139: 7762.5 | B139: 7.7625 | C139: 1.723413812 | D139: 0.9517684499 | E139: 1.000008593 | F139: 0.00414570045 | G139: 1 | H139: 0 | I139: 14672.21508 | J139: 1.570728171 | K139: 1.584200639 | L139: 0.8876541647 | M139: 1.000034622 | N139: 0.008321207934 | O139: 1.00005561 | P139: 0.01484992027 | Q139: 18.21741019 | R139: -94.75964972 | S139: 85.24035028 | U139: 1000000000 | V139: 60256406.25 | X139: 18.37321367 | Y139: -39.61402778 | AA139: 38.61514694 | AB139: -55.14562193 | AD139: 0 | AE139: 0
A140: 7852.9 | B140: 7.8529 | C140: 1.736752765 | D140: 0.9572296944 | E140: 1.000008795 | F140: 0.004193979606 | G140: 1 | H140: 0 | I140: 14843.08377 | J140: 1.570728955 | K140: 1.595324213 | L140: 0.8933159595 | M140: 1.000035433 | N140: 0.008418109946 | O140: 1.000056913 | P140: 0.01502285183 | Q140: 18.11063136 | R140: -94.76089812 | S140: 85.23910188 | U140: 1000000000 | V140: 61668038.41 | X140: 18.333413 | Y140: -39.29522787 | AA140: 38.54816878 | AB140: -55.46567025 | AD140: 0 | AE140: 0
A141: 7943.3 | B141: 7.9433 | C141: =SQRT(1+(A141/pole1)^2) -> 1.750142726 | D141: =ATAN(A141/pole1) -> 0.9626075317 | E141: =SQRT(1+(A141/Zero1)^2) -> 1.000008998 | F141: =ATAN(A141/Zero1) -> 0.004242258743 | G141: =IF(VIN_nom>Vout, 1, SQRT(1+(A141/z_RHP)^2)) -> 1 | H141: =IF(VIN_nom>Vout, 0, -ATAN(A141/z_RHP)) -> 0 | I141: =SQRT(1+(A141/Pole2)^2) -> 15013.95247 | J141: =ATAN(A141/Pole2) -> 1.570729722 | K141: =SQRT(1+(A141/Zero2)^2) -> 1.606498218 | L141: =ATAN(A141/Zero2) -> 0.8988991699 | M141: =SQRT(1+(A141/pole4)^2) -> 1.000036254 | N141: =ATAN(A141/pole4) -> 0.008515011799 | O141: =SQRT((1-(V141/pterm2))^2+(A141/pterm1)^2) -> 1.00005823 | P141: =IF((ATAN((A141/pterm1)/(1-A141^2/pterm2))>0),ATAN((A141/pterm1)/(1-A141^2/pterm2)),PI()+ATAN((A141/pterm1)/(1-A141^2/pterm2))) -> 0.01519578317 | Q141: =20*LOG10(((E141*K141*G141)/(C141*I141*O141*M141))*Adc) -> 18.00511305 | R141: =((F141+L141+H141)-(D141+J141+P141+N141))*radconv -> -94.76186915 | S141: =IF(R141>0,R141,R141+180) -> 85.23813085 | U141: 1000000000 | V141: 63096014.89 | X141: =20*LOG10((K141/(I141*M141))*AEA) -> 18.29461374 | Y141: =(L141-(J141+N141))*radconv -> -38.98092947 | AA141: =20*LOG10((E141*G141/(C141*O141))*Acs*Am) -> 38.48144973 | AB141: =(F141+H141-(D141+P141))*radconv -> -55.78093968 | AD141: 0 | AE141: 0
A142: 8035.8 | B142: =A142/1000 -> 8.0358 | C142: 1.763895326 | D142: 0.9680256213 | E142: 1.000009209 | F142: 0.004291659388 | G142: 1 | H142: 0 | I142: 15188.79045 | J142: 1.570730489 | K142: 1.617982907 | L142: 0.9045320742 | M142: 1.000037103 | N142: 0.008614164526 | O142: 1.000059595 | P142: 0.01537273148 | Q142: 17.89841936 | R142: -94.76259408 | S142: 85.23740592 | U142: =IF(Q142<0,A142,1000000000) -> 1000000000 | V142: =A142^2 -> 64574081.64 | X142: 18.25591691 | Y142: -38.66391279 | AA142: 38.41345288 | AB142: -56.09868129 | AD142: =SUM((Q143<0)*(Q142>0))*A142 -> 0 | AE142: 0
A143: 8128.3 | B143: 8.1283 | C143: 1.777698903 | D143: 0.9733597241 | E143: 1.000009422 | F143: 0.004341060012 | G143: 1 | H143: 0 | I143: 15363.62844 | J143: 1.570731238 | K143: 1.629518209 | L143: 0.9100854023 | M143: 1.000037962 | N143: 0.008713317083 | O143: 1.000060974 | P143: 0.01554967953 | Q143: 17.79298754 | R143: -94.76306528 | S143: 85.23693472 | U143: 1000000000 | V143: 66069260.89 | X143: 18.21820312 | Y143: -38.35145448 | AA143: 38.34573484 | AB143: -56.4116108 | AD143: 0 | AE143: 0
A144: 8222.95 | B144: 8.22295 | C144: 1.791874861 | D144: 0.978732583 | E144: 1.000009643 | F144: 0.004391608845 | G144: 1 | H144: 0 | I144: 15542.53023 | J144: 1.570731987 | K144: 1.641372908 | L144: 0.9156868324 | M144: 1.000038851 | N144: 0.00881477409 | O144: 1.000062403 | P144: 0.01573074018 | Q144: 17.68638224 | R144: -94.76330286 | S144: 85.23669714 | U144: 1000000000 | V144: 67616906.7 | X144: 18.18059775 | Y144: -38.03637216 | AA144: 38.27673491 | AB144: -56.72693071 | AD144: 0 | AE144: 0
A145: 8270.275 | B145: 8.270275 | C145: 1.798982009 | D145: 0.9813872205 | E145: 1.000009755 | F145: 0.004416883253 | G145: 1 | H145: 0 | I145: 15631.98113 | J145: 1.570732355 | K145: 1.647319361 | L145: 0.9184572717 | M145: 1.0000393 | N145: 0.008865502525 | O145: 1.000063123 | P145: 0.0158212704 | Q145: 17.633555 | R145: -94.76333442 | S145: 85.23666558 | U145: 1000000000 | V145: 68397448.58 | X145: 18.16215867 | Y145: -37.8805653 | AA145: 38.24234675 | AB145: -56.88276912 | AD145: 0 | AE145: 0
A146: 8317.6 | B146: 8.3176 | C146: 1.806101734 | D146: 0.9840209472 | E146: 1.000009866 | F146: 0.004442157655 | G146: 1 | H146: 0 | I146: 15721.43202 | J146: 1.570732719 | K146: 1.653278367 | L146: 0.9212077606 | M146: 1.000039751 | N146: 0.008916230915 | O146: 1.000063848 | P146: 0.01591180056 | Q146: 17.58103997 | R146: -94.76331069 | S146: 85.23668931 | U146: 1000000000 | V146: 69182469.76 | X146: 18.14395675 | Y146: -37.72590127 | AA146: 38.20803364 | AB146: -57.03740942 | AD146: 0 | AE146: 0
A147: 8366.05 | B147: 8.36605 | C147: 1.813403583 | D147: 0.986695839 | E147: 1.000009982 | F147: 0.00446803287 | G147: 1 | H147: 0 | I147: 15813.00933 | J147: 1.570733088 | K147: 1.659391892 | L147: 0.9240031474 | M147: 1.000040215 | N147: 0.008968165162 | O147: 1.000064594 | P147: 0.01600448271 | Q147: 17.52759638 | R147: -94.76323131 | S147: 85.23676869 | U147: 1000000000 | V147: 69990792.6 | X147: 18.12556383 | Y147: -37.56873412 | AA147: 38.17298297 | AB147: -57.19449719 | AD147: 0 | AE147: 0
A148: 8414.5 | B148: 8.4145 | C148: 1.820718302 | D148: 0.989349257 | E148: 1.000010098 | F148: 0.004493908078 | G148: 1 | H148: 0 | I148: 15904.58663 | J148: 1.570733452 | K148: =SQRT(1+(A148/Zero2)^2) -> 1.665518288 | L148: =ATAN(A148/Zero2) -> 0.9267779909 | M148: 1.000040682 | N148: 0.00902009936 | O148: 1.000065344 | P148: 0.01609716479 | Q148: 17.47447271 | R148: -94.76309837 | S148: 85.23690163 | U148: 1000000000 | V148: 70803810.25 | X148: 18.10741144 | Y148: -37.41274378 | AA148: 38.13801169 | AB148: -57.35035459 | AD148: 0 | AE148: 0
A149: 8462.95 | B149: 8.46295 | C149: 1.828045738 | D149: 0.9919814217 | E149: 1.000010214 | F149: 0.00451978328 | G149: 1 | H149: 0 | I149: 15996.16393 | J149: 1.570733812 | K149: 1.671657414 | L149: 0.9295324743 | M149: 1.000041152 | N149: 0.00907203351 | O149: 1.000066099 | P149: 0.0161898468 | Q149: 17.42166534 | R149: -94.76291401 | S149: 85.23708599 | U149: 1000000000 | V149: 71621522.7 | X149: 18.08949561 | Y149: -37.25791973 | AA149: 38.10312015 | AB149: -57.50499427 | AD149: 0 | AE149: 0
A150: 8511.4 | B150: 8.5114 | C150: 1.835385739 | D150: 0.9945925516 | E150: 1.000010332 | F150: 0.004545658477 | G150: 1 | H150: 0 | I150: 16087.74124 | J150: 1.570734168 | K150: 1.677809131 | L150: 0.9322667796 | M150: 1.000041625 | N150: 0.009123967611 | O150: 1.000066858 | P150: 0.01628252874 | Q150: 17.36917074 | R150: -94.76268031 | S150: 85.23731969 | U150: 1000000000 | V150: 72443929.96 | X150: 18.07181248 | Y150: -37.10425157 | AA150: 38.06830867 | AB150: -57.65842874 | AD150: 0 | AE150: 0
A151: 8560.95 | B151: 8.56095 | C151: 1.842905223 | D151: 0.9972414324 | E151: 1.000010452 | F151: 0.004572121132 | G151: 1 | H151: 0 | I151: 16181.3977 | J151: 1.570734527 | K151: 1.684113393 | L151: 0.9350424817 | M151: 1.000042111 | N151: 0.009177080764 | O151: 1.000067638 | P151: 0.01637731484 | Q151: 17.31580415 | R151: -94.7623924 | S151: 85.2376076 | U151: 1000000000 | V151: 73289864.9 | X151: 18.0539646 | Y151: -36.94827933 | AA151: 38.03278998 | AB151: -57.81411307 | AD151: 0 | AE151: 0
A152: 8610.5 | B152: 8.6105 | C152: 1.850437534 | D152: 0.9998687666 | E152: 1.000010574 | F152: 0.004598583782 | G152: 1 | H152: 0 | I152: 16275.05415 | J152: 1.570734883 | K152: 1.690430534 | L152: 0.9377974592 | M152: 1.0000426 | N152: 0.009230193864 | O152: 1.000068423 | P152: 0.01647210087 | Q152: 17.26275735 | R152: -94.76205716 | S152: 85.23794284 | U152: 1000000000 | V152: 74140710.25 | X152: 18.03635212 | Y152: -36.79349428 | AA152: 37.99735565 | AB152: -57.96856288 | AD152: 0 | AE152: 0
A153: 8660.05 | B153: 8.66005 | C153: 1.857982514 | D153: 1.00247478 | E153: 1.000010696 | F153: 0.004625046424 | G153: 1 | H153: 0 | I153: 16368.71061 | J153: 1.570735235 | K153: 1.69676041 | L153: 0.9405319021 | M153: 1.000043091 | N153: 0.009283306913 | O153: 1.000069213 | P153: 0.01656688681 | Q153: 17.21002672 | R153: -94.76167664 | S153: 85.23832336 | U153: 1000000000 | V153: 74996466 | X153: 18.01897115 | Y153: -36.63988553 | AA153: 37.96200598 | AB153: -58.1217911 | AD153: 0 | AE153: 0
A154: 8709.6 | B154: 8.7096 | C154: 1.865540011 | D154: 1.005059697 | E154: 1.000010818 | F154: 0.004651509061 | G154: 1 | H154: 0 | I154: 16462.36707 | J154: 1.570735582 | K154: 1.703102878 | L154: 0.9432459988 | M154: 1.000043586 | N154: 0.009336419909 | O154: 1.000070008 | P154: 0.01666167269 | Q154: 17.15760868 | R154: -94.76125287 | S154: 85.23874713 | U154: 1000000000 | V154: 75857132.16 | X154: 18.00181786 | Y154: -36.48744232 | AA154: 37.92674124 | AB154: -58.27381056 | AD154: 0 | AE154: =IF(AD154>0,S154,0) -> 0
A155: 8760.325 | B155: 8.760325 | C155: 1.873289528 | D155: 1.007684288 | E155: 1.000010945 | F155: 0.00467859921 | G155: 1 | H155: 0 | I155: 16558.24444 | J155: 1.570735934 | K155: 1.709608646 | L155: 0.946003575 | M155: 1.000044095 | N155: 0.009390792342 | O155: 1.000070825 | P155: 0.01675870617 | Q155: 17.10426779 | R155: -94.76077632 | S155: 85.23922368 | U155: 1000000000 | V155: 76743294.11 | X155: 17.98448972 | Y155: -36.3325803 | AA155: 37.89072849 | AB155: -58.42819602 | AD155: 0 | AE155: 0
A156: 8811.05 | B156: 8.81105 | C156: 1.881051843 | D156: 1.010287236 | E156: 1.000011072 | F156: 0.004705689352 | G156: 1 | H156: 0 | I156: 16654.12182 | J156: 1.570736282 | K156: 1.716127315 | L156: 0.9487402228 | M156: 1.000044607 | N156: 0.009445164719 | O156: 1.000071648 | P156: 0.01685573958 | Q156: 17.05124713 | R156: -94.76025856 | S156: 85.23974144 | U156: 1000000000 | V156: 77634602.1 | X156: 17.9673923 | Y156: -36.17891716 | AA156: 37.85480525 | AB156: -58.5813414 | AD156: 0 | AE156: 0
A157: 8861.775 | B157: 8.861775 | C157: 1.888826797 | D157: 1.012868773 | E157: 1.0000112 | F157: 0.004732779488 | G157: 1 | H157: 0 | I157: 16749.99919 | J157: 1.570736625 | K157: 1.72265874 | L157: 0.9514561389 | M157: 1.000045122 | N157: 0.00949953704 | O157: 1.000072475 | P157: 0.01695277291 | Q157: 16.99854306 | R157: -94.75970162 | S157: 85.24029838 | U157: 1000000000 | V157: 78531056.15 | X157: 17.95052171 | Y157: -36.02644163 | AA157: 37.81897177 | AB157: -58.73325999 | AD157: 0 | AE157: 0
A158: 8912.5 | B158: 8.9125 | C158: 1.896614237 | D158: 1.015429126 | E158: 1.000011328 | F158: 0.004759869616 | G158: 1 | H158: 0 | I158: 16845.87656 | J158: 1.570736965 | K158: =SQRT(1+(A158/Zero2)^2) -> 1.729202775 | L158: =ATAN(A158/Zero2) -> 0.9541515184 | M158: 1.00004564 | N158: 0.009553909305 | O158: 1.000073307 | P158: 0.01704980615 | Q158: 16.946152 | R158: -94.75910743 | S158: 85.24089257 | U158: 1000000000 | V158: 79432656.25 | X158: 17.93387418 | Y158: -35.87514253 | AA158: 37.78322824 | AB158: -58.8839649 | AD158: 0 | AE158: 0
A159: 8964.4 | B159: 8.9644 | C159: 1.904594827 | D159: 1.018027101 | E159: 1.000011461 | F159: 0.004787587257 | G159: 1 | H159: 0 | I159: 16943.97485 | J159: 1.570737309 | K159: 1.7359113 | L159: 0.95688828 | M159: 1.000046173 | N159: 0.009609540997 | O159: 1.000074164 | P159: 0.017149087 | Q159: 16.89286765 | R159: -94.75846293 | S159: 85.24153707 | U159: 1000000000 | V159: 80360467.36 | X159: 17.917068 | Y159: -35.72154479 | AA159: 37.74675007 | AB159: -59.03691813 | AD159: 0 | AE159: 0
A160: 9016.3 | B160: 9.0163 | C160: 1.912588165 | D160: 1.020603377 | E160: 1.000011594 | F160: 0.00481530489 | G160: 1 | H160: 0 | I160: 17042.07314 | J160: 1.570737648 | K160: 1.742632727 | L160: 0.9596039501 | M160: 1.00004671 | N160: 0.00966517263 | O160: 1.000075025 | P160: 0.01724836777 | Q160: 16.83990358 | R160: -94.75778342 | S160: 85.24221658 | U160: 1000000000 | V160: 81293665.69 | X160: 17.90048752 | Y160: -35.56915528 | AA160: 37.71036648 | AB160: -59.18862814 | AD160: 0 | AE160: 0
A161: 9068.2 | B161: 9.0682 | C161: 1.920594091 | D161: 1.023158191 | E161: 1.000011728 | F161: 0.004843022515 | G161: 1 | H161: 0 | I161: 17140.17142 | J161: 1.570737984 | K161: 1.749366907 | L161: 0.962298732 | M161: 1.000047249 | N161: 0.009720804202 | O161: 1.000075891 | P161: 0.01734764844 | Q161: 16.78725613 | R161: -94.75707083 | S161: 85.24292917 | U161: 1000000000 | V161: 82232251.24 | X161: 17.88412892 | Y161: -35.41796234 | AA161: 37.67407763 | AB161: -59.33910849 | AD161: 0 | AE161: 0
A162: 9120.1 | B162: 9.1201 | C162: 1.92861245 | D162: 1.025691779 | E162: 1.000011862 | F162: 0.004870740133 | G162: 1 | H162: 0 | I162: 17238.26971 | J162: 1.570738316 | K162: 1.756113693 | L162: 0.9649728271 | M162: 1.000047791 | N162: 0.009776435715 | O162: 1.000076762 | P162: 0.01744692903 | Q162: 16.73492172 | R162: -94.75632706 | S162: 85.24367294 | U162: 1000000000 | V162: 83176224.01 | X162: 17.86798846 | Y162: -35.26795445 | AA162: 37.63788368 | AB162: -59.4883726 | AD162: 0 | AE162: 0
A163: 9173.2 | B163: 9.1732 | C163: 1.936828909 | D163: 1.028262218 | E163: 1.000012001 | F163: 0.004899098613 | G163: 1 | H163: 0 | I163: 17338.63617 | J163: 1.570738652 | K163: 1.763029369 | L163: 0.9676875493 | M163: 1.000048349 | N163: 0.009833353443 | O163: 1.000077659 | P163: 0.01754850503 | Q163: 16.68169755 | R163: -94.7555357 | S163: 85.2444643 | U163: 1000000000 | V163: 84147598.24 | X163: 17.85169672 | Y163: -35.11569271 | AA163: 37.60095124 | AB163: -59.63984299 | AD163: 0 | AE163: 0
A164: 9226.3 | B164: 9.2263 | C164: 1.945058056 | D164: 1.030810924 | E164: 1.00001214 | F164: 0.004927457086 | G164: 1 | H164: 0 | I164: 17439.00262 | J164: 1.570738984 | K164: 1.769957938 | L164: 0.9703810375 | M164: 1.000048911 | N164: 0.009890271107 | O164: 1.00007856 | P164: 0.01765008094 | Q164: 16.62879363 | R164: -94.75471552 | S164: 85.24528448 | U164: 1000000000 | V164: 85124611.69 | X164: 17.83562563 | Y164: -34.96464737 | AA164: 37.56411842 | AB164: -59.79006815 | AD164: 0 | AE164: 0
A165: 9279.4 | B165: 9.2794 | C165: 1.953299733 | D165: 1.033338139 | E165: 1.00001228 | F165: 0.00495581555 | G165: 1 | H165: 0 | I165: 17539.36908 | J165: 1.570739312 | K165: 1.776899246 | L165: 0.9730535011 | M165: 1.000049475 | N165: 0.009947188707 | O165: 1.000079467 | P165: 0.01775165675 | Q165: 16.5762063 | R165: -94.75386834 | S165: 85.24613166 | U165: 1000000000 | V165: 86107264.36 | X165: 17.8197714 | Y165: -34.81480642 | AA165: 37.52738532 | AB165: -59.93906192 | AD165: 0 | AE165: 0
A166: 9332.5 | B166: 9.3325 | C166: 1.961553779 | D166: 1.035844101 | E166: 1.000012421 | F166: 0.004984174006 | G166: 1 | H166: 0 | I166: 17639.73554 | J166: 1.570739637 | K166: 1.783853147 | L166: 0.9757051477 | M166: 1.000050043 | N166: 0.01000410624 | O166: 1.000080379 | P166: 0.01785323247 | Q166: 16.52393196 | R166: -94.75299599 | S166: 85.24700401 | U166: 1000000000 | V166: 87095556.25 | X166: 17.80413033 | Y166: -34.66615798 | AA166: 37.49075205 | AB166: -60.08683801 | AD166: 0 | AE166: 0
A167: 9386.85 | B167: 9.38685 | C167: 1.970014779 | D167: 1.038387291 | E167: 1.000012566 | F167: 0.005013200026 | G167: 1 | H167: 0 | I167: 17742.46467 | J167: 1.570739965 | K167: 1.790983633 | L167: 0.9783978719 | M167: 1.000050628 | N167: 0.01006236358 | O167: 1.000081318 | P167: 0.01795719924 | Q167: 16.47074747 | R167: -94.75207884 | S167: 85.24792116 | U167: 1000000000 | V167: 88112952.92 | X167: 17.78833802 | Y167: -34.51523296 | AA167: 37.45335986 | AB167: -60.23684588 | AD167: 0 | AE167: 0
A168: 9441.2 | B168: 9.4412 | C168: 1.978488411 | D168: 1.040908714 | E168: 1.000012712 | F168: 0.005042226038 | G168: 1 | H168: 0 | I168: 17845.1938 | J168: 1.570740289 | K168: 1.798127002 | L168: 0.9810692207 | M168: 1.000051216 | N168: 0.01012062084 | O168: 1.000082263 | P168: 0.0180611659 | Q168: 16.41788341 | R168: -94.75113896 | S168: 85.24886104 | U168: 1000000000 | V168: 89136257.44 | X168: 17.77276144 | Y168: -34.36553243 | AA168: 37.4160724 | AB168: -60.38560653 | AD168: 0 | AE168: 0
A169: 9495.55 | B169: 9.49555 | C169: 1.986974514 | D169: 1.043408615 | E169: 1.000012859 | F169: 0.005071252041 | G169: 1 | H169: 0 | I169: 17947.92293 | J169: 1.57074061 | K169: 1.805283101 | L169: 0.98371941 | M169: 1.000051807 | N169: 0.01017887804 | O169: 1.000083212 | P169: 0.01816513247 | Q169: 16.36533612 | R169: -94.75017812 | S169: 85.24982188 | U169: 1000000000 | V169: 90165469.8 | X169: 17.75739684 | Y169: -34.21704404 | AA169: 37.3788897 | AB169: -60.53313408 | AD169: 0 | AE169: 0
A170: 9549.9 | B170: 9.5499 | C170: 1.995472929 | D170: 1.045887238 | E170: 1.000013007 | F170: 0.005100278036 | G170: 1 | H170: 0 | I170: 18050.65207 | J170: 1.570740927 | K170: 1.812451779 | L170: 0.9863486534 | M170: 1.000052402 | N170: 0.01023713517 | O170: 1.000084168 | P170: 0.01826909893 | Q170: 16.31310196 | R170: -94.74919803 | S170: 85.25080197 | U170: 1000000000 | V170: 91200590.01 | X170: 17.74224057 | Y170: -34.06975554 | AA170: 37.34181181 | AB170: -60.67944249 | AD170: 0 | AE170: 0
A171: 9605.525 | B171: 9.605525 | C171: 2.004183294 | D171: 1.048402225 | E171: 1.000013159 | F171: 0.005129984944 | G171: 1 | H171: 0 | I171: 18155.79113 | J171: 1.570741248 | K171: 1.819801498 | L171: 0.9890181082 | M171: 1.000053014 | N171: 0.01029675889 | O171: 1.000085151 | P171: 0.01837550425 | Q171: 16.25996297 | R171: -94.74817676 | S171: 85.25182324 | U171: 1000000000 | V171: 92266110.53 | X171: 17.72694075 | Y171: -33.92024162 | AA171: 37.30397264 | AB171: -60.82793514 | AD171: 0 | AE171: 0
A172: 9661.15 | B172: 9.66115 | C172: 2.012906226 | D172: 1.050895431 | E172: 1.000013311 | F172: 0.005159691843 | G172: 1 | H172: 0 | I172: 18260.93019 | J172: 1.570741565 | K172: 1.82716408 | L172: 0.9916660686 | M172: 1.00005363 | N172: 0.01035638253 | O172: 1.00008614 | P172: 0.01848190946 | Q172: 16.2071445 | R172: -94.74713881 | S172: 85.25286119 | U172: 1000000000 | V172: 93337819.32 | X172: 17.71185165 | Y172: -33.77195902 | AA172: 37.26624327 | AB172: -60.97517979 | AD172: 0 | AE172: 0
A173: 9716.775 | B173: 9.716775 | C173: 2.021641563 | D173: 1.053367106 | E173: 1.000013465 | F173: 0.005189398733 | G173: 1 | H173: 0 | I173: 18366.06925 | J173: 1.570741879 | K173: 1.834539371 | L173: 0.9942927563 | M173: 1.000054249 | N173: 0.0104160061 | O173: 1.000087135 | P173: 0.01858831456 | Q173: 16.15464286 | R173: -94.74608586 | S173: 85.25391414 | U173: 1000000000 | V173: 94415716.4 | X173: 17.69696959 | Y173: -33.62489503 | AA173: 37.22862368 | AB173: -61.12119082 | AD173: 0 | AE173: 0
A174: 9772.4 | B174: 9.7724 | C174: 2.030389143 | D174: 1.055817498 | E174: 1.00001362 | F174: 0.005219105614 | G174: 1 | H174: 0 | I174: 18471.20831 | J174: 1.570742188 | K174: 1.841927218 | L174: 0.996898391 | M174: 1.000054872 | N174: 0.01047562959 | O174: 1.000088135 | P174: 0.01869471955 | Q174: 16.10245441 | R174: -94.74501953 | S174: 85.25498047 | U174: 1000000000 | V174: 95499801.76 | X174: 17.68229099 | Y174: -33.47903709 | AA174: 37.19111383 | AB174: -61.26598244 | AD174: 0 | AE174: 0
A175: 9829.3 | B175: 9.8293 | C175: 2.039349735 | D175: 1.058302291 | E175: 1.000013779 | F175: 0.005249493407 | G175: 1 | H175: 0 | I175: 18578.7573 | J175: 1.570742502 | K175: 1.849497238 | L175: 0.9995421943 | M175: 1.000055513 | N175: 0.01053661966 | O175: 1.000089165 | P175: 0.01880356338 | Q175: 16.04939005 | R175: -94.74391658 | S175: 85.25608342 | U175: 1000000000 | V175: 96615138.49 | X175: 17.66748275 | Y175: -33.33107075 | AA175: 37.15285771 | AB175: -61.41284583 | AD175: 0 | AE175: 0
A176: 9886.2 | B176: 9.8862 | C176: 2.048322807 | D176: 1.06076533 | E176: 1.000013939 | F176: 0.00527988119 | G176: 1 | H176: 0 | I176: 18686.30629 | J176: 1.570742812 | K176: 1.857080081 | L176: 1.002164425 | M176: 1.000056157 | N176: 0.01059760965 | O176: 1.0000902 | P176: 0.01891240709 | Q176: 15.9966459 | R176: -94.74280293 | S176: 85.25719707 | U176: 1000000000 | V176: 97736950.44 | X176: 17.65288001 | Y176: -33.1843402 | AA176: 37.11471631 | AB176: -61.55846273 | AD176: 0 | AE176: 0
A177: 9943.1 | B177: 9.9431 | C177: 2.057308197 | D177: 1.063206868 | E177: 1.0000141 | F177: 0.005310268964 | G177: 1 | H177: 0 | I177: 18793.85528 | J177: 1.570743118 | K177: 1.864675589 | L177: 1.004765312 | M177: 1.000056806 | N177: 0.01065859956 | O177: 1.000091241 | P177: 0.01902125069 | Q177: 15.94421828 | R177: -94.74168016 | S177: 85.25831984 | U177: 1000000000 | V177: 98865237.61 | X177: 17.63847915 | Y177: -33.03883241 | AA177: 37.07668955 | AB177: -61.70284776 | AD177: 0 | AE177: 0
A178: 10000 | B178: 10 | C178: 2.066305744 | D178: 1.065627158 | E178: 1.000014261 | F178: 0.005340656728 | G178: 1 | H178: 0 | I178: 18901.40427 | J178: 1.570743421 | K178: 1.872283608 | L178: 1.007345078 | M178: 1.000057458 | N178: 0.01071958939 | O178: 1.000092289 | P178: 0.01913009417 | Q178: 15.89210353 | R178: -94.74054982 | S178: 85.25945018 | U178: 1000000000 | V178: 100000000 | X178: 17.62427662 | Y178: -32.8945345 | AA178: 37.03877733 | AB178: -61.84601533 | AD178: 0 | AE178: 0
A179: 10058.25 | B179: 10.05825 | C179: 2.075529194 | D179: 1.068083119 | E179: 1.000014428 | F179: 0.005371765457 | G179: 1 | H179: 0 | I179: 19011.50495 | J179: 1.570743727 | K179: 1.880084936 | L179: 1.009964405 | M179: 1.000058129 | N179: 0.01078202617 | O179: 1.000093367 | P179: 0.01924151994 | Q179: 15.83907269 | R179: -94.73938637 | S179: 85.26061363 | U179: 1000000000 | V179: 101168393.1 | X179: 17.60993897 | Y179: -32.748053 | AA179: 37.00008414 | AB179: -61.99133338 | AD179: 0 | AE179: 0
A180: 10116.5 | B180: 10.1165 | C180: 2.084765052 | D180: 1.070517335 | E180: 1.000014596 | F180: 0.005402874175 | G180: 1 | H180: 0 | I180: 19121.60563 | J180: 1.57074403 | K180: 1.887899055 | L180: 1.012562068 | M180: 1.000058804 | N180: 0.01084446287 | O180: 1.000094451 | P180: 0.01935294558 | Q180: 15.78636222 | R180: -94.73821808 | S180: 85.26178192 | U180: 1000000000 | V180: 102343572.2 | X180: 17.5958019 | Y180: -32.60281262 | AA180: 36.96151074 | AB180: -62.13540546 | AD180: 0 | AE180: 0
A181: 10174.75 | B181: 10.17475 | C181: 2.094013154 | D181: 1.072930063 | E181: 1.000014764 | F181: 0.005433982883 | G181: 1 | H181: 0 | I181: 19231.70631 | J181: 1.570744329 | K181: 1.89572581 | L181: 1.015138298 | M181: 1.000059483 | N181: 0.01090689948 | O181: 1.000095542 | P181: 0.0194643711 | Q181: 15.73396842 | R181: -94.73704645 | S181: 85.26295355 | U181: 1000000000 | V181: 103525537.6 | X181: 17.58186185 | Y181: -32.45880002 | AA181: 36.92305699 | AB181: -62.27824643 | AD181: 0 | AE181: 0
A182: 10233 | B182: 10.233 | C182: 2.103273339 | D182: 1.07532156 | E182: 1.000014934 | F182: 0.00546509158 | G182: 1 | H182: 0 | I182: 19341.80699 | J182: 1.570744625 | K182: 1.903565042 | L182: 1.017693326 | M182: 1.000060166 | N182: 0.01096933601 | O182: 1.000096639 | P182: 0.01957579649 | Q182: 15.68188762 | R182: -94.73587292 | S182: 85.26412708 | U182: 1000000000 | V182: 104714289 | X182: 17.56811533 | Y182: -32.31600201 | AA182: 36.88472271 | AB182: -62.41987092 | AD182: 0 | AE182: 0
A183: 10292.5 | B183: 10.2925 | C183: 2.112744549 | D183: 1.077742719 | E183: 1.000015108 | F183: 0.005496867835 | G183: 1 | H183: 0 | I183: 19454.27034 | J183: 1.570744924 | K183: 1.911585222 | L183: 1.02028153 | M183: 1.000060868 | N183: 0.01103311229 | O183: 1.000097766 | P183: 0.01968961286 | Q183: 15.62900863 | R183: -94.73467371 | S183: 85.26532629 | U183: 1000000000 | V183: 105935556.2 | X183: 17.55427008 | Y183: -32.17138005 | AA183: 36.84568897 | AB183: -62.56329365 | AD183: 0 | AE183: 0
A184: 10352 | B184: 10.352 | C184: 2.122228034 | D184: 1.080142253 | E184: 1.000015283 | F184: 0.005528644079 | G184: 1 | H184: 0 | I184: 19566.7337 | J184: 1.57074522 | K184: 1.9196181 | L184: 1.022848091 | M184: 1.000061574 | N184: 0.01109688848 | O184: 1.0000989 | P184: 0.0198034291 | Q184: 15.57644871 | R184: -94.7334754 | S184: 85.2665246 | U184: 1000000000 | V184: 107163904 | X184: 17.54061963 | Y184: -32.02799802 | AA184: 36.8067795 | AB184: -62.70547738 | AD184: 0 | AE184: 0
A185: 10411.5 | B185: 10.4115 | C185: 2.131723629 | D185: 1.082520424 | E185: 1.000015459 | F185: 0.005560420312 | G185: 1 | H185: 0 | I185: 19679.19705 | J185: 1.570745512 | K185: 1.927663517 | L185: 1.025393244 | M185: 1.000062283 | N185: 0.01116066458 | O185: 1.00010004 | P185: 0.01991724521 | Q185: 15.52420417 | R185: -94.7322794 | S185: 85.2677206 | U185: 1000000000 | V185: 108399332.2 | X185: 17.5271605 | Y185: -31.88584233 | AA185: 36.76799409 | AB185: -62.84643707 | AD185: 0 | AE185: 0
A186: 10471 | B186: 10.471 | C186: 2.141231173 | D186: 1.084877489 | E186: 1.000015637 | F186: 0.005592196533 | G186: 1 | H186: 0 | I186: 19791.66041 | J186: 1.5707458 | K186: 1.935721318 | L186: 1.027917223 | M186: 1.000062997 | N186: 0.01122444059 | O186: 1.000101187 | P186: 0.02003106118 | Q186: 15.47227136 | R186: -94.73108704 | S186: 85.26891296 | U186: 1000000000 | V186: 109641841 | X186: 17.51388928 | Y186: -31.74489958 | AA186: 36.7293325 | AB186: -62.98618746 | AD186: 0 | AE186: 0
A187: 10532 | B187: 10.532 | C187: 2.150990643 | D187: 1.08727233 | E187: 1.000015819 | F187: 0.005624773824 | G187: 1 | H187: 0 | I187: 19906.95897 | J187: 1.570746093 | K187: 1.94399495 | L187: 1.030483095 | M187: 1.000063733 | N187: 0.01128982431 | O187: 1.000102369 | P187: 0.02014774633 | Q187: 15.41934919 | R187: -94.72986976 | S187: 85.27013024 | U187: 1000000000 | V187: 110923024 | X187: 17.50047506 | Y187: -31.60164896 | AA187: 36.68982455 | AB187: -63.1282208 | AD187: 0 | AE187: 0
A188: 10593 | B188: 10.593 | C188: 2.160762337 | D188: 1.089645525 | E188: 1.000016003 | F188: 0.005657351104 | G188: 1 | H188: 0 | I188: 20022.25754 | J188: 1.570746382 | K188: 1.952281273 | L188: 1.033027201 | M188: 1.000064474 | N188: 0.01135520793 | O188: 1.000103559 | P188: 0.02026443133 | Q188: 15.3667471 | R188: -94.72865901 | S188: 85.27134099 | U188: 1000000000 | V188: 112211649 | X188: 17.48725131 | Y188: -31.45964517 | AA188: 36.65044621 | AB188: -63.26901384 | AD188: 0 | AE188: 0
A189: 10654 | B189: 10.654 | C189: 2.170546092 | D189: 1.091997338 | E189: 1.000016188 | F189: 0.005689928371 | G189: 1 | H189: 0 | I189: 20137.5561 | J189: 1.570746668 | K189: 1.960580125 | L189: 1.035549786 | M189: 1.000065218 | N189: 0.01142059145 | O189: 1.000104755 | P189: 0.02038111619 | Q189: 15.31446137 | R189: -94.7274561 | S189: 85.2725439 | U189: 1000000000 | V189: 113507716 | X189: 17.47421459 | Y189: -31.31887428 | AA189: 36.6111972 | AB189: -63.40858182 | AD189: 0 | AE189: 0
A190: 10715 | B190: 10.715 | C190: 2.180341744 | D190: 1.094328032 | E190: 1.000016374 | F190: 0.005722505626 | G190: 1 | H190: 0 | I190: 20252.85467 | J190: 1.570746951 | K190: 1.968891348 | L190: 1.03805109 | M190: 1.000065967 | N190: 0.01148597487 | O190: 1.000105958 | P190: 0.02049780092 | Q190: 15.26248833 | R190: -94.72626227 | S190: 85.27373773 | U190: 1000000000 | V190: 114811225 | X190: 17.46136152 | Y190: -31.17932251 | AA190: 36.57207723 | AB190: -63.54693975 | AD190: 0 | AE190: 0
A191: 10777.5 | B191: 10.7775 | C191: 2.190390446 | D191: 1.096694403 | E191: 1.000016565 | F191: 0.005755883948 | G191: 1 | H191: 0 | I191: 20370.98845 | J191: 1.570747237 | K191: 1.977419613 | L191: 1.040592077 | M191: 1.000066739 | N191: 0.01155296598 | O191: 1.000107197 | P191: 0.02061735479 | Q191: 15.2095578 | R191: -94.72504975 | S191: 85.27495025 | U191: 1000000000 | V191: 116154506.2 | X191: 17.44837943 | Y191: -31.03758941 | AA191: 36.53212879 | AB191: -63.68746035 | AD191: 0 | AE191: 0
A192: 10840 | B192: 10.84 | C192: 2.200451301 | D192: 1.099039149 | E192: 1.000016758 | F192: 0.005789262258 | G192: 1 | H192: 0 | I192: 20489.12222 | J192: 1.57074752 | K192: 1.985960535 | L192: 1.043111224 | M192: 1.000067515 | N192: 0.01161995698 | O192: 1.000108444 | P192: 0.0207369085 | Q192: 15.15694792 | R192: -94.72384928 | S192: 85.27615072 | U192: 1000000000 | V192: 117505600 | X192: 17.43558321 | Y192: -30.89710742 | AA192: 36.49231513 | AB192: -63.82674186 | AD192: 0 | AE192: 0
A193: 10902.5 | B193: 10.9025 | C193: 2.210524144 | D193: 1.101362538 | E193: 1.000016952 | F193: 0.005822640554 | G193: 1 | H193: 0 | I193: 20607.256 | J193: 1.5707478 | K193: 1.994513953 | L193: 1.04560878 | M193: 1.000068296 | N193: 0.01168694788 | O193: 1.000109698 | P193: 0.02085646207 | Q193: 15.10465494 | R193: -94.72266205 | S193: 85.27733795 | U193: 1000000000 | V193: 118864506.2 | X193: 17.42296946 | Y193: -30.75786231 | AA193: 36.4526359 | AB193: -63.96479974 | AD193: 0 | AE193: 0
A194: 10965 | B194: 10.965 | C194: 2.220608811 | D194: 1.103664837 | E194: 1.000017147 | F194: 0.005856018838 | G194: 1 | H194: 0 | I194: 20725.38978 | J194: 1.570748077 | K194: 2.003079706 | L194: 1.048084992 | M194: 1.000069082 | N194: 0.01175393868 | O194: 1.00011096 | P194: 0.02097601548 | Q194: 15.05267516 | R194: -94.72148922 | S194: 85.27851078 | U194: 1000000000 | V194: 120231225 | X194: 17.41053487 | Y194: -30.61984 | AA194: 36.41309072 | AB194: -64.10164921 | AD194: 0 | AE194: 0
A195: 11028.75 | B195: 11.02875 | C195: 2.230907187 | D195: 1.105991726 | E195: 1.000017347 | F195: 0.005890064674 | G195: 1 | H195: 0 | I195: 20845.88623 | J195: 1.570748356 | K195: 2.011829318 | L195: 1.050588989 | M195: 1.000069887 | N195: 0.01182226919 | O195: 1.000112254 | P195: 0.02109795981 | Q195: 14.9999747 | R195: -94.72030891 | S195: 85.27969109 | U195: 1000000000 | V195: 121633326.6 | X195: 17.39803278 | Y195: -30.48030258 | AA195: 36.37289234 | AB195: -64.24000633 | AD195: 0 | AE195: 0
A196: 11092.5 | B196: 11.0925 | C196: 2.241217531 | D196: 1.108297218 | E196: 1.000017548 | F196: 0.005924110497 | G196: 1 | H196: 0 | I196: 20966.38268 | J196: 1.570748631 | K196: 2.020591435 | L196: 1.053071284 | M196: 1.000070697 | N196: 0.01189059958 | O196: 1.000113555 | P196: 0.02121990397 | Q196: 14.94759254 | R196: -94.71914586 | S196: 85.28085414 | U196: 1000000000 | V196: 123043556.2 | X196: 17.38571034 | Y196: -30.34200835 | AA196: 36.33283262 | AB196: -64.37713751 | AD196: 0 | AE196: 0
A197: 11156.25 | B197: 11.15625 | C197: 2.251539679 | D197: 1.110581583 | E197: 1.00001775 | F197: 0.005958156305 | G197: 1 | H197: 0 | I197: 21086.87913 | J197: 1.570748904 | K197: 2.029365894 | L197: 1.055532129 | M197: 1.000071512 | N197: 0.01195892986 | O197: 1.000114864 | P197: 0.02134184797 | Q197: 14.89552495 | R197: -94.71800116 | S197: 85.28199884 | U197: 1000000000 | V197: 124461914.1 | X197: 17.37356425 | Y197: -30.20494296 | AA197: 36.29291112 | AB197: -64.51305819 | AD197: 0 | AE197: 0
A198: 11220 | B198: 11.22 | C198: 2.261873468 | D198: 1.112845087 | E198: 1.000017954 | F198: 0.0059922021 | G198: 1 | H198: 0 | I198: 21207.37558 | J198: 1.570749173 | K198: 2.038152538 | L198: 1.057971771 | M198: 1.000072332 | N198: 0.01202726003 | O198: 1.000116181 | P198: 0.0214637918 | Q198: 14.84376829 | R198: -94.71687585 | S198: 85.28312415 | U198: 1000000000 | V198: 125888400 | X198: 17.36159128 | Y198: -30.06909225 | AA198: 36.25312743 | AB198: -64.6477836 | AD198: 0 | AE198: 0
A199: 11285.5 | B199: 11.2855 | C199: 2.272502889 | D199: 1.115149273 | E199: 1.000018164 | F199: 0.006027182471 | G199: 1 | H199: 0 | I199: 21331.17978 | J199: 1.570749447 | K199: 2.047192908 | L199: 1.060456556 | M199: 1.000073179 | N199: 0.01209746582 | O199: 1.000117541 | P199: 0.02158908295 | Q199: 14.79091092 | R199: -94.71574089 | S199: 85.28425911 | U199: 1000000000 | V199: 127362510.2 | X199: 17.34946665 | Y199: -29.93076273 | AA199: 36.21239469 | AB199: -64.78497816 | AD199: 0 | AE199: 0
A200: 11351 | B200: 11.351 | C200: 2.283144263 | D200: 1.117431992 | E200: 1.000018375 | F200: 0.006062162827 | G200: 1 | H200: 0 | I200: 21454.98398 | J200: 1.570749718 | K200: 2.056245807 | L200: 1.062919477 | M200: 1.000074031 | N200: 0.01216767148 | O200: 1.000118909 | P200: 0.02171437392 | Q200: 14.73837413 | R200: -94.7146285 | S200: 85.2853715 | U200: 1000000000 | V200: 128845201 | X200: 17.3375181 | Y200: -29.79368575 | AA200: 36.17180644 | AB200: -64.92094275 | AD200: 0 | AE200: 0
A201: 11416.5 | B201: 11.4165 | C201: 2.293797424 | D201: 1.11969352 | E201: 1.000018588 | F201: 0.006097143168 | G201: 1 | H201: 0 | I201: 21578.78818 | J201: 1.570749985 | K201: 2.065311069 | L201: 1.065360792 | M201: 1.000074887 | N201: 0.01223787703 | O201: 1.000120286 | P201: 0.02183966472 | Q201: 14.68615416 | R201: -94.71353967 | S201: 85.28646033 | U201: 1000000000 | V201: 130336472.2 | X201: 17.32574238 | Y201: -29.65784653 | AA201: 36.1313622 | AB201: -65.05569314 | AD201: 0 | AE201: 0
A202: 11482 | B202: 11.482 | C202: 2.304462207 | D202: 1.121934126 | E202: 1.000018802 | F202: 0.006132123494 | G202: 1 | H202: 0 | I202: 21702.59237 | J202: 1.570750249 | K202: 2.074388533 | L202: 1.067780754 | M202: 1.000075749 | N202: 0.01230808245 | O202: 1.00012167 | P202: 0.02196495534 | Q202: 14.6342473 | R202: -94.71247534 | S202: 85.28752466 | U202: 1000000000 | V202: 131836324 | X202: 17.31413627 | Y202: -29.5232305 | AA202: 36.09106145 | AB202: -65.18924484 | AD202: 0 | AE202: 0
... 433 more rows

Sheet Bode Plot Management (hidden)
J1: Single or dual output (MODE) | N1: 3.3V or 5V fixed (FB1/2)
A2: =CHOOSE(BODE_PLOT_TYPE, "BODE_PLOT_Ch1", "BODE_PLOT_Ch2") -> BODE_PLOT_Ch1 | J2: With/without dither (DITH) | N2: With/without VOUT connected to VCCX
J3: FPWM or DEM (DEMB)
J4: Shunt or inductor DCR current sensing
F6: =INDIRECT(A2) -> 0

Sheet Efficiency Calculations (hidden)
A1: BUCK CONTROLLER POWER DESIGN TOOL
H2: =AV19 -> 0.8741202185 | I2: 10% load
H3: =AV59 -> 0.9309794012 | I3: 50% load | AP3: =IF(MODE=1, (Qg_Q1+Qg_Q2)*Fsw*Vin, (Qg_Q1+Qg_Q2+Qg_Q3+Qg_Q4)*Fsw*Vin) -> 0.48195
H4: =AV109 -> 0.9288533792 | I4: 100% load | AO4: I_VCC | AP4: =(Qg_Q1+Qg_Q2)*Fsw*1000 -> 35.7 | AQ4: mA | AR4: =AP4*5/1000 -> 0.1785
A6: Enter the values of your design and MOSFET datasheet specifications below. Note that thermal resistance (θJA) will change when components are placed on the PCB
G7: Operating Point Condtions | R7: Filter Inductor | V7: Cout | Y7: Cin | AB7: High-side BUCK "Control" MOSFET Losses | AH7: Low-side BUCK "Sync" MOSFET Losses | AL7: External Diode | AM7: Diode/FET | AN7: Sense Rs | AO7: Controller IC Losses | AT7: RESULTS | AZ7: Consolidated Buck/Boost Efficiency & Losses
A8: Input Parameters | G8: Step | H8: Vin | I8: Mode | J8: Iout | K8: Iout/ phase | L8: Iin | M8: Duty Cycle BUCK Leg | N8: Ripple Current pk-pk | O8: Peak Inductor Current | P8: Valley Inductor Current | Q8: SW node voltage at Q1 turn-on | R8: Irms Lf | S8: DCR Loss | T8: Core Loss | U8: Total Inductor Loss | V8: Irms Cout | W8: Cout ESR Loss | X8: Total Cout Loss | Y8: Irms Cin | Z8: Cin ESR Loss | AA8: Total Cin Loss | AB8: Irms | AC8: RDS(on) Loss | AD8: Transition Loss (not including capacitive loss) | AE8: MOSFET Output Capacitance Loss | AF8: Dead Time Loss | AG8: Total Control MOSFET Loss | AH8: Irms | AI8: RDS(on) Loss | AJ8: Deadtime Loss | AK8: Total Sync MOSFET Loss | AL8: Deadtime Loss | AM8: Reverse Recovery Loss | AN8: Isense Shunt Loss | AO8: IQ Loss | AP8: Switching Current Loss | AQ8: Switching Current Diss | AR8: LDO Loss Saved from Gate Drive Current (ext VCC) | AS8: Total IC Loss | AT8: Total Loss | AU8: Pout | AV8: EFF, h | AW8: =IF(Vin>Vout, "Buck ''CONTROL'' MOSFET Temp Rise", "Boost ''CONTROL'' MOSFET Temp Rise") -> Buck ''CONTROL'' MOSFET Temp Rise | AX8: =IF(Vin>Vout, "Buck ''SYNC'' MOSFET Temp Rise", "Boost ''SYNC'' MOSFET Temp Rise") -> Buck ''SYNC'' MOSFET Temp Rise | AZ8: h | BA8: Inductor Cu & Core Loss | BB8: Total MOSFET Loss | BC8: Control MOSFET Loss | BD8: SYNC MOSFET Loss | BE8: Shunt Loss
A9: Design | B9: Input Value | C9: Units | D9: Description | G9: 0 | H9: =Vin -> 13.5 | I9: =MODE -> 1 | J9: 0 | K9: =Iout*G9/100/Number_of_Phases -> 0 | L9: =Vout*K9/(Vin*Efficiency) -> 0 | M9: =(Vout+(Rdson2+Rs+Rdcr)*K9)/(Vin+(Rs+Rdson2-Rdson1)*K9) -> 0.3703703704 | N9: =(Vin-(Rdson1+Rdcr)*K9-Vout)*M9/(Fsw*Lf) -> 2.725669392 | O9: =K9+N9/2 -> 1.362834696 | P9: =K9-N9/2 -> -1.362834696 | Q9: =IF(MIN(Vin, -P9/(Coss_Q1+Coss_Q2)*0.00000002)<0, 0, MIN(Vin, -P9/(Coss_Q1+Coss_Q2)*0.00000002)) -> 13.5 | R9: =SQRT(K9^2+(N9^2)/12) -> 0.7868329787 | S9: =R9^2*Rdcr -> 0.001795407795 | T9: =Core_Loss_Ch1 -> 0.25 | U9: =(T9+S9*(1+Ltc*(Ta-25)))/(1-S9*Ltc*ThetaCa) -> 0.251831579 | V9: =N9/SQRT(12) -> 0.7868329787 | W9: =RCoutEsr*V9^2 -> 0.0006191061364 | X9: =W9 -> 0.0006191061364 | Y9: =SQRT(M9*(1-M9))*SQRT(K9^2+(N9^2)/12) -> 0.3799646998 | Z9: =RCinEsr*Y9^2 -> 0.0001443731731 | AA9: =Z9 -> 0.0001443731731 | AB9: =SQRT(M9)*SQRT(K9^2+(N9^2)/12) -> 0.4788513016 | AC9: =Rdson1*AB9^2 -> 0.001031843561 | AD9: =(Vin*K9/2)*Fsw*(Tr_buck+Tf_buck) -> 0 | AE9: =(0.5*Coss_Q1*(Vin-Q9)^2-0.5*Coss_Q2*(Vin-Q9)^2+(Qoss_Q2*(Vin-Q9)/Vin)*Vin)*Fsw -> 0 | AF9: =IF(K9>N9/2,0,ABS(K9-N9/2)*Vsd_Q1*Deadtime*Fsw) -> 0.03205387205 | AG9: =(AF9+AE9+AD9+AC9*(1+RdsonTopTc*Ta-RdsonTopTc*25))/(1-AC9*RdsonTopTc*ThetaJA_Q1) -> 0.03309254488 | AH9: =SQRT((1-M9))*SQRT(K9^2+(N9^2)/12) -> 0.6243457114 | AI9: =Rdson2*AH9^2 -> 0.001422797621 | AJ9: =IF(K9<N9/2,Deadtime*Fsw*IF(VfdSky_Q2>0,0,Vsd_Q2)*(K9+N9/2),2*Deadtime*Fsw*IF(VfdSky_Q2>0,0,Vsd_Q2)*K9) -> 0.03205387205 | AK9: =(AJ9+AI9*(1+RdsonBotTc*Ta-RdsonBotTc*25))/(1-AI9*RdsonBotTc*ThetaJA_Q2) -> 0.03348619849 | AL9: =2*Deadtime*Fsw*IF(VfdSky_Q2>0,VfdSky_Q2,Vsd_Q2)*K9 -> 0 | AM9: =IF(QrrSky_Q2>0,QrrSky_Q2,Qrr_Q2*K9/(Iout/Number_of_Phases))*Fsw*Vin -> 0 | AN9: =Rs*R9^2 -> 0.002476424545 | AO9: =Iq*Vin -> 0.0004725 | AP9: =IF(Ext_VCC=1, (Qg_Q1+Qg_Q2)*Fsw*VCC, (Qg_Q1+Qg_Q2)*Fsw*Vin) -> 0.1785 | AQ9: =(Vin-VCC)*Fsw*(Qg_Q1+Qg_Q2)+(RdsonDRT+RdsonDRT2)*Fsw*Qg_Q1*VCC/(RdsonDRT+2*Rgate1+RdsonDRT2)+(RdsonDRB+RdsonDRB2)*Fsw*Qg_Q2*VCC/(RdsonDRB+2*Rgate2+RdsonDRB2) -> 0.48195 | AR9: =(Qg_Q1+Qg_Q2)*Fsw*(Vin-VCC) -> 0.30345 | AS9: =SUM(AO9:AP9) -> 0.1789725 | AT9: =SUM(U9,X9,AA9,AG9,AK9,AL9,AM9,AS9,AN9) -> 0.5006227263 | AU9: =Vout*K9 -> 0 | AV9: =AU9/(AU9+AT9) -> 0 | AW9: =ThetaJA_Q1*BC9 -> 1.654627244 | AX9: =ThetaJA_Q2*BD9 -> 1.674309925 | AZ9: =AV9*100 -> 0 | BA9: =U9 -> 0.251831579 | BB9: =AG9+AK9+AM9 -> 0.06657874337 | BC9: =AG9+AM9*0.66 -> 0.03309254488 | BD9: =AK9+AM9*0.33 -> 0.03348619849 | BE9: =AN9 -> 0.002476424545
G10: 1 | H10: 13.5 | I10: 1 | J10: =Iout*G10/100 -> 0.12 | K10: 0.12 | L10: 0.04938271605 | M10: 0.3704537754 | N10: 2.725998379 | O10: =K10+N10/2 -> 1.48299919 | P10: =K10-N10/2 -> -1.24299919 | Q10: 13.5 | R10: =SQRT(K10^2+(N10^2)/12) -> 0.7960248721 | S10: 0.001837601232 | T10: 0.25 | U10: 0.2518746288 | V10: =N10/SQRT(12) -> 0.7869279491 | W10: 0.0006192555971 | X10: =W10 -> 0.0006192555971 | Y10: =SQRT(M10*(1-M10))*SQRT(K10^2+(N10^2)/12) -> 0.3844213169 | Z10: 0.0001477797489 | AA10: =Z10 -> 0.0001477797489 | AB10: =SQRT(M10)*SQRT(K10^2+(N10^2)/12) -> 0.4844998537 | AC10: 0.001056330487 | AD10: 0.005893957176 | AE10: 0 | AF10: 0.02923534094 | AG10: 0.03619327502 | AH10: 0.6315975687 | AI10: 0.001456041534 | AJ10: 0.03488014094 | AK10: 0.03634676696 | AL10: 0.0056448 | AM10: 0.0036855 | AN10: 0.002534622388 | AO10: 0.0004725 | AP10: 0.1785 | AQ10: 0.48195 | AR10: 0.30345 | AS10: 0.1789725 | AT10: 0.5160191286 | AU10: 0.6 | AV10: =AU10/(AU10+AT10) -> 0.5376251936 | AW10: 1.931285251 | AX10: 1.878149098 | AZ10: =AV10*100 -> 53.76251936 | BA10: 0.2518746288 | BB10: 0.07622554198 | BC10: 0.03862570502 | BD10: 0.03756298196 | BE10: 0.002534622388
A11: Vin | B11: =Vin -> 13.5 | C11: V | D11: Vin | G11: 2 | H11: 13.5 | I11: 1 | J11: 0.24 | K11: 0.24 | L11: 0.0987654321 | M11: 0.3705371758 | N11: 2.726327204 | O11: 1.603163602 | P11: -1.123163602 | Q11: 13.5 | R11: 0.8228031368 | S11: 0.001963314506 | T11: 0.25 | U11: 0.2520028954 | V11: 0.7870228726 | W11: 0.000619405002 | X11: 0.000619405002 | Y11: 0.3973716459 | Z11: 0.000157904225 | AA11: 0.000157904225 | AB11: 0.5008547908 | AC11: 0.001128849847 | AD11: 0.01178791435 | AE11: 0 | AF11: 0.02641680792 | AG11: 0.03934245446 | AH11: 0.6528012565 | AI11: 0.001555445604 | AJ11: 0.03770640792 | AK11: 0.03927407126 | AL11: 0.0112896 | AM11: 0.007371 | AN11: 0.002708020008 | AO11: 0.0004725 | AP11: 0.1785 | AQ11: 0.48195 | AR11: 0.30345 | AS11: 0.1789725 | AT11: 0.5317378503 | AU11: 1.2 | AV11: 0.6929455285 | AW11: 2.210365723 | AX11: 2.085325063 | AZ11: 69.29455285 | BA11: 0.2520028954 | BB11: 0.08598752572 | BC11: 0.04420731446 | BD11: 0.04170650126 | BE11: 0.002708020008
A12: Vout | B12: =Vout -> 5 | C12: V | D12: Vout | G12: 3 | H12: 13.5 | I12: 1 | J12: 0.36 | K12: 0.36 | L12: 0.1481481481 | M12: 0.3706205716 | N12: 2.726655866 | O12: 1.723327933 | P12: -1.003327933 | Q12: 13.5 | R12: 0.8655370304 | S12: 0.002172547618 | T12: 0.25 | U12: 0.2522163838 | V12: 0.7871177491 | W12: 0.000619554351 | X12: 0.000619554351 | Y12: 0.4180292642 | Z12: 0.0001747484657 | AA12: 0.0001747484657 | AB12: 0.526926953 | AC12: 0.001249434062 | AD12: 0.01768187153 | AE12: 0 | AF12: 0.02359827298 | AG12: 0.04254020881 | AH12: 0.6866602779 | AI12: 0.001720983531 | AJ12: 0.04053267298 | AK12: 0.04226820509 | AL12: 0.0169344 | AM12: 0.0110565 | AN12: 0.002996617404 | AO12: 0.0004725 | AP12: 0.1785 | AQ12: 0.48195 | AR12: 0.30345 | AS12: 0.1789725 | AT12: 0.5477791179 | AU12: 1.8 | AV12: 0.7666820044 | AW12: 2.491874941 | AX12: 2.295842505 | AZ12: 76.66820044 | BA12: 0.2522163838 | BB12: 0.0958649139 | BC12: 0.04983749881 | BD12: 0.04591685009 | BE12: 0.002996617404
A13: Fsw | B13: =Fsw/1000 -> 2100 | C13: kHz | D13: Switching Frequency | G13: 4 | H13: 13.5 | I13: 1 | J13: 0.48 | K13: 0.48 | L13: 0.1975308642 | M13: 0.3707039626 | N13: 2.726984365 | O13: 1.843492183 | P13: -0.8834921827 | Q13: 13.5 | R13: 0.9220106529 | S13: 0.002465300568 | T13: 0.25 | U13: 0.2525151026 | V13: 0.7872125787 | W13: 0.0006197036441 | X13: 0.0006197036441 | Y13: 0.4453249744 | Z13: 0.0001983143329 | AA13: 0.0001983143329 | AB13: 0.5613704566 | AC13: 0.001418115553 | AD13: 0.02357582871 | AE13: 0 | AF13: 0.02077973614 | AG13: 0.04578666655 | AH13: 0.7314142838 | AI13: 0.001952629019 | AJ13: 0.04335893614 | AK13: 0.0453292674 | AL13: 0.0225792 | AM13: 0.014742 | AN13: 0.003400414576 | AO13: 0.0004725 | AP13: 0.1785 | AQ13: 0.48195 | AR13: 0.30345 | AS13: 0.1789725 | AT13: 0.5641431691 | AU13: 2.4 | AV13: 0.8096774896 | AW13: 2.775819328 | AX13: 2.50970637 | AZ13: 80.96774896 | BA13: 0.2525151026 | BB13: 0.105857934 | BC13: 0.05551638655 | BD13: 0.0501941274 | BE13: 0.003400414576
A14: Iout | B14: =Iout -> 12 | C14: A | D14: Max Output Current | G14: 5 | H14: 13.5 | I14: 1 | J14: 0.6 | K14: 0.6 | L14: 0.2469135802 | M14: 0.370787349 | N14: 2.727312702 | O14: 1.963656351 | P14: -0.7636563511 | Q14: 13.5 | R14: 0.9898751847 | S14: 0.002841573356 | T14: 0.25 | U14: 0.2528990639 | V14: 0.7873073614 | W14: 0.0006198528813 | X14: 0.0006198528813 | Y14: 0.4781251778 | Z14: 0.0002286036856 | AA14: 0.0002286036856 | AB14: 0.602757872 | AC14: 0.001634926735 | AD14: 0.02946978588 | AE14: 0 | AF14: 0.01796119738 | AG14: 0.04908195908 | AH14: 0.7851979553 | AI14: 0.002250355776 | AJ14: 0.04618519738 | AK14: 0.04845736241 | AL14: 0.028224 | AM14: 0.0184275 | AN14: 0.003919411525 | AO14: 0.0004725 | AP14: 0.1785 | AQ14: 0.48195 | AR14: 0.30345 | AS14: 0.1789725 | AT14: 0.5808302534 | AU14: 3 | AV14: 0.8377945302 | AW14: 3.062205454 | AX14: 2.726921871 | AZ14: 83.77945302 | BA14: 0.2528990639 | BB14: 0.1159668215 | BC14: 0.06124410908 | BD14: 0.05453843741 | BE14: 0.003919411525
A15: Ta | B15: =Ta -> 25 | C15: °C | D15: Ambient Temperature | G15: 6 | H15: 13.5 | I15: 1 | J15: 0.72 | K15: 0.72 | L15: 0.2962962963 | M15: 0.3708707308 | N15: 2.727640876 | O15: 2.083820438 | P15: -0.6438204382 | Q15: 13.5 | R15: 1.06695926 | S15: 0.003301365981 | T15: 0.25 | U15: 0.2533682829 | V15: 0.7874020971 | W15: 0.0006200020625 | X15: 0.0006200020625 | Y15: 0.5153817813 | Z15: 0.0002656183805 | AA15: 0.0002656183805 | AB15: 0.6497691935 | AC15: 0.001899900022 | AD15: 0.03536374306 | AE15: 0 | AF15: 0.01514265671 | AG15: 0.0524262207 | AH15: 0.8462872194 | AI15: 0.002614137511 | AJ15: 0.04901145671 | AK15: 0.05165259962 | AL15: 0.0338688 | AM15: 0.022113 | AN15: 0.00455360825 | AO15: 0.0004725 | AP15: 0.1785 | AQ15: 0.48195 | AR15: 0.30345 | AS15: 0.1789725 | AT15: 0.5978406319 | AU15: 3.6 | AV15: 0.8575837712 | AW15: 3.351040035 | AX15: 2.947494481 | AZ15: 85.75837712 | BA15: 0.2533682829 | BB15: 0.1261918203 | BC15: 0.0670208007 | BD15: 0.05894988962 | BE15: 0.00455360825
A16: Vcc | B16: =VCC -> 5 | C16: V | D16: Subregulated VCC Voltage | G16: 7 | H16: 13.5 | I16: 1 | J16: 0.84 | K16: 0.84 | L16: 0.3456790123 | M16: 0.3709541078 | N16: 2.727968888 | O16: 2.203984444 | P16: -0.523984444 | Q16: 13.5 | R16: 1.151412692 | S16: 0.003844678445 | T16: 0.25 | U16: 0.2539227786 | V16: 0.7874967859 | W16: 0.0006201511878 | X16: 0.0006201511878 | Y16: 0.5562016464 | Z16: 0.0003093602715 | AA16: 0.0003093602715 | AB16: 0.7012794372 | AC16: 0.002213067821 | AD16: 0.04125770024 | AE16: 0 | AF16: 0.01232411412 | AG16: 0.05581958869 | AH16: 0.9132131946 | AI16: 0.003043947937 | AJ16: 0.05183771412 | AK16: 0.0549150938 | AL16: 0.0395136 | AM16: 0.0257985 | AN16: 0.005303004751 | AO16: 0.0004725 | AP16: 0.1785 | AQ16: 0.48195 | AR16: 0.30345 | AS16: 0.1789725 | AT16: 0.6151745773 | AU16: 4.2 | AV16: 0.8722425184 | AW16: 3.642329934 | AX16: 3.17142994 | AZ16: 87.22425184 | BA16: 0.2539227786 | BB16: 0.1365331825 | BC16: 0.07284659869 | BD16: 0.0634285988 | BE16: 0.005303004751
A17: Components | B17: Input Value | C17: Units | D17: Description | G17: 8 | H17: 13.5 | I17: 1 | J17: 0.96 | K17: 0.96 | L17: 0.3950617284 | M17: 0.3710374802 | N17: 2.728296737 | O17: 2.324148369 | P17: -0.4041483686 | Q17: 13.5 | R17: 1.241732764 | S17: 0.004471510746 | T17: 0.25 | U17: 0.2545625731 | V17: 0.7875914278 | W17: 0.0006203002572 | X17: 0.0006203002572 | Y17: 0.5998593251 | Z17: 0.00035983121 | AA17: 0.00035983121 | AB17: 0.7563747657 | AC17: 0.002574462538 | AD17: 0.04715165741 | AE17: 0 | AF17: 0.009505569629 | AG17: 0.05926220324 | AH17: 0.9847829563 | AI17: 0.003539760769 | AJ17: 0.05466396963 | AK17: 0.05824496505 | AL17: 0.0451584 | AM17: 0.029484 | AN17: 0.006167601029 | AO17: 0.0004725 | AP17: 0.1785 | AQ17: 0.48195 | AR17: 0.30345 | AS17: 0.1789725 | AT17: 0.6328323739 | AU17: 4.8 | AV17: 0.8835170441 | AW17: 3.936082162 | AX17: 3.398734252 | AZ17: 88.35170441 | BA17: 0.2545625731 | BB17: 0.1469911683 | BC17: 0.07872164324 | BD17: 0.06797468505 | BE17: 0.006167601029
A18: L | B18: =Lf*1000000 -> 0.55 | C18: uH | D18: Filter Inductance | G18: 9 | H18: 13.5 | I18: 1 | J18: 1.08 | K18: 1.08 | L18: 0.4444444444 | M18: 0.3711208479 | N18: 2.728624424 | O18: 2.444312212 | P18: -0.2843122119 | Q18: 9.65406492 | R18: 1.336730815 | S18: 0.005181862884 | T18: 0.25 | U18: 0.2552876921 | V18: 0.7876860228 | W18: 0.0006204492705 | X18: 0.0006204492705 | Y18: 0.6457809571 | Z18: 0.0004170330446 | AA18: 0.0004170330446 | AB18: 0.8143322518 | AC18: 0.002984116574 | AD18: 0.05304561459 | AE18: 0.09581487882 | AF18: 0.006687023224 | AG18: 0.1586263051 | AH18: 1.060052949 | AI18: 0.004101549728 | AJ18: 0.05749022322 | AK18: 0.06164233877 | AL18: 0.0508032 | AM18: 0.0331695 | AN18: 0.007147397082 | AO18: 0.0004725 | AP18: 0.1785 | AQ18: 0.48195 | AR18: 0.30345 | AS18: 0.1789725 | AT18: 0.7466864154 | AU18: 5.4 | AV18: 0.8785221232 | AW18: 9.025908754 | AX18: 3.629413689 | AZ18: 87.85221232 | BA18: 0.2552876921 | BB18: 0.2534381439 | BC18: 0.1805181751 | BD18: 0.07258827377 | BE18: 0.007147397082
A19: Rdcr | B19: =Rdcr*1000 -> 2.9 | C19: mW | D19: Inductor DCR at 25°C | G19: 10 | H19: 13.5 | I19: 1 | J19: 1.2 | K19: 1.2 | L19: 0.4938271605 | M19: 0.371204211 | N19: 2.728951948 | O19: 2.564475974 | P19: -0.164475974 | Q19: 5.584922715 | R19: 1.435478397 | S19: 0.005975734861 | T19: 0.25 | U19: 0.2560981648 | V19: 0.7877805709 | W19: 0.0006205982278 | X19: 0.0006205982278 | Y19: 0.6935182921 | Z19: 0.0004809676215 | AA19: 0.0004809676215 | AB19: 0.8745871822 | AC19: 0.003442062327 | AD19: 0.05893957176 | AE19: 0.1947895058 | AF19: 0.003868474907 | AG19: 0.2612194415 | AH19: 1.138286207 | AI19: 0.004729288533 | AJ19: 0.06031647491 | AK19: 0.06510734573 | AL19: 0.056448 | AM19: 0.036855 | AN19: 0.008242392911 | AO19: 0.0004725 | AP19: 0.1785 | AQ19: 0.48195 | AR19: 0.30345 | AS19: 0.1789725 | AT19: 0.8640444108 | AU19: 6 | AV19: 0.8741202185 | AW19: 14.27718707 | AX19: 3.863474786 | AZ19: 87.41202185 | BA19: 0.2560981648 | BB19: 0.3631817872 | BC19: 0.2855437415 | BD19: 0.07726949573 | BE19: 0.008242392911
A20: LTc | B20: =Ltc*1000000 -> 4000 | C20: ppm | D20: Inductor Series Resistance Temp Co | G20: 11 | H20: 13.5 | I20: 1 | J20: 1.32 | K20: 1.32 | L20: 0.5432098765 | M20: 0.3712875694 | N20: 2.72927931 | O20: 2.684639655 | P20: -0.04463965478 | Q20: 1.515777751 | R20: 1.537253112 | S20: 0.006853126674 | T20: 0.25 | U20: 0.2569940237 | V20: 0.787875072 | W20: 0.0006207471291 | X20: 0.0006207471291 | Y20: 0.7427225486 | Z20: 0.0005516367842 | AA20: 0.0005516367842 | AB20: 0.9367001407 | AC20: 0.003948332191 | AD20: 0.06483352894 | AE20: 0.2912954117 | AF20: 0.00104992468 | AG20: 0.3614125929 | AH20: 1.218909339 | AI20: 0.005422950911 | AJ20: 0.06314272468 | AK20: 0.06864012199 | AL20: 0.0620928 | AM20: 0.0405405 | AN20: 0.009452588517 | AO20: 0.0004725 | AP20: 0.1785 | AQ20: 0.48195 | AR20: 0.30345 | AS20: 0.1789725 | AT20: 0.979277511 | AU20: 6.6 | AV20: 0.8707954011 | AW20: 19.40846614 | AX20: 4.10092435 | AZ20: 87.07954011 | BA20: 0.2569940237 | BB20: 0.4705932149 | BC20: 0.3881693229 | BD20: 0.08201848699 | BE20: 0.009452588517
A21: ThetaCa | B21: =ThetaCa -> 20 | C21: °C/W | D21: Core to Ambient Thermal Resistance | G21: 12 | H21: 13.5 | I21: 1 | J21: 1.44 | K21: 1.44 | L21: 0.5925925926 | M21: 0.3713709231 | N21: 2.729606509 | O21: 2.804803254 | P21: 0.07519674564 | Q21: 0 | R21: 1.641491996 | S21: 0.007814038326 | T21: 0.25 | U21: 0.2579753046 | V21: 0.7879695263 | W21: 0.0006208959744 | X21: 0.0006208959744 | Y21: 0.793121916 | Z21: 0.0006290423737 | AA21: 0.0006290423737 | AB21: 1.000328675 | AC21: 0.004502958557 | AD21: 0.07072748612 | AE21: 0.3266132625 | AF21: 0 | AG21: 0.4022059305 | AH21: 1.301475515 | AI21: 0.006182510588 | AJ21: 0.0677376 | AK21: 0.07401162612 | AL21: 0.0677376 | AM21: 0.044226 | AN21: 0.0107779839 | AO21: 0.0004725 | AP21: 0.1785 | AQ21: 0.48195 | AR21: 0.30345 | AS21: 0.1789725 | AT21: 1.037156884 | AU21: 7.2 | AV21: 0.8740880017 | AW21: 21.56975453 | AX21: 4.430310306 | AZ21: 87.40880017 | BA21: 0.2579753046 | BB21: 0.5204435566 | BC21: 0.4313950905 | BD21: 0.08860620612 | BE21: 0.0107779839
A22: Cin | B22: =Cin*1000000 -> 30 | C22: μF | D22: Input Capacitance | G22: 13 | H22: 13.5 | I22: 1 | J22: 1.56 | K22: 1.56 | L22: 0.6419753086 | M22: 0.3714542721 | N22: 2.729933545 | O22: 2.924966773 | P22: 0.1950332273 | Q22: 0 | R22: 1.747754206 | S22: 0.008858469814 | T22: 0.25 | U22: 0.2590420471 | V22: 0.7880639337 | W22: 0.0006210447635 | X22: 0.0006210447635 | Y22: 0.8445035394 | Z22: 0.0007131862281 | AA22: 0.0007131862281 | AB22: 1.065204603 | AC22: 0.005105973813 | AD22: 0.07662144329 | AE22: 0.3266132625 | AF22: 0 | AG22: 0.4087581012 | AH22: 1.385634842 | AI22: 0.007007941294 | AJ22: 0.0733824 | AK22: 0.0805031736 | AL22: 0.0733824 | AM22: 0.0479115 | AN22: 0.01221857905 | AO22: 0.0004725 | AP22: 0.1785 | AQ22: 0.48195 | AR22: 0.30345 | AS22: 0.1789725 | AT22: 1.062122532 | AU22: 7.8 | AV22: 0.880150322 | AW22: 22.01898456 | AX22: 4.81569843 | AZ22: 88.0150322 | BA22: 0.2590420471 | BB22: 0.5371727748 | BC22: 0.4403796912 | BD22: 0.0963139686 | BE22: 0.01221857905
A23: RCinEsr | B23: =RCinEsr*1000 -> 1 | C23: mW | D23: Input Capacitor ESR | G23: 14 | H23: 13.5 | I23: 1 | J23: 1.68 | K23: 1.68 | L23: 0.6913580247 | M23: 0.3715376165 | N23: 2.73026042 | O23: 3.04513021 | P23: 0.3148697902 | Q23: 0 | R23: 1.855692188 | S23: 0.00998642114 | T23: 0.25 | U23: 0.2601942939 | V23: 0.7881582941 | W23: 0.0006211934966 | X23: 0.0006211934966 | Y23: 0.8966996059 | Z23: 0.0008040701833 | AA23: 0.0008040701833 | AB23: 1.131116493 | AC23: 0.00575741034 | AD23: 0.08251540047 | AE23: 0.3266132625 | AF23: 0 | AG23: 0.4153643579 | AH23: 1.471111477 | AI23: 0.007899216765 | AJ23: 0.0790272 | AK23: 0.08706396419 | AL23: 0.0790272 | AM23: 0.051597 | AN23: 0.01377437399 | AO23: 0.0004725 | AP23: 0.1785 | AQ23: 0.48195 | AR23: 0.30345 | AS23: 0.1789725 | AT23: 1.087418954 | AU23: 8.4 | AV23: 0.8853830574 | AW23: 22.4709189 | AX23: 5.204548709 | AZ23: 88.53830574 | BA23: 0.2601942939 | BB23: 0.5540253221 | BC23: 0.4494183779 | BD23: 0.1040909742 | BE23: 0.01377437399
A24: Cout | B24: =Cout*1000000 -> 85 | C24: μF | D24: Output Capcitance | G24: 15 | H24: 13.5 | I24: 1 | J24: 1.8 | K24: 1.8 | L24: 0.7407407407 | M24: 0.3716209562 | N24: 2.730587131 | O24: 3.165293566 | P24: 0.4347064343 | Q24: 0 | R24: 1.965029815 | S24: 0.0111978923 | T24: 0.25 | U24: 0.2614320914 | V24: 0.7882526077 | W24: 0.0006213421736 | X24: 0.0006213421736 | Y24: 0.9495767859 | Z24: 0.0009016960723 | AA24: 0.0009016960723 | AB24: 1.197896352 | AC24: 0.006457300519 | AD24: 0.08840935765 | AE24: 0.3266132625 | AF24: 0 | AG24: 0.4220249491 | AH24: 1.557686266 | AI24: 0.008856310735 | AJ24: 0.084672 | AK24: 0.09369426784 | AL24: 0.084672 | AM24: 0.0552825 | AN24: 0.01544536869 | AO24: 0.0004725 | AP24: 0.1785 | AQ24: 0.48195 | AR24: 0.30345 | AS24: 0.1789725 | AT24: 1.113046715 | AU24: 9 | AV24: 0.889939526 | AW24: 22.92556995 | AX24: 5.596874642 | AZ24: 88.9939526 | BA24: 0.2614320914 | BB24: 0.5710017169 | BC24: 0.4585113991 | BD24: 0.1119374928 | BE24: 0.01544536869
A25: RCoutEsr | B25: =Cout_ESR*1000 -> 1 | C25: mW | D25: Output Capacitor ESR | G25: 16 | H25: 13.5 | I25: 1 | J25: 1.92 | K25: 1.92 | L25: 0.7901234568 | M25: 0.3717042913 | N25: 2.730913681 | O25: 3.28545684 | P25: 0.5545431596 | Q25: 0 | R25: 2.075545903 | S25: 0.0124928833 | T25: 0.25 | U25: 0.2627554892 | V25: 0.7883468744 | W25: 0.0006214907944 | X25: 0.0006214907944 | Y25: 1.003028278 | Z25: 0.001006065726 | AA25: 0.001006065726 | AB25: 1.265409615 | AC25: 0.007205676726 | AD25: 0.09430331482 | AE25: 0.3266132625 | AF25: 0 | AG25: 0.4287401266 | AH25: 1.645183667 | AI25: 0.009879196944 | AJ25: 0.0903168 | AK25: 0.1003943601 | AL25: 0.0903168 | AM25: 0.058968 | AN25: 0.01723156318 | AO25: 0.0004725 | AP25: 0.1785 | AQ25: 0.48195 | AR25: 0.30345 | AS25: 0.1789725 | AT25: 1.139006396 | AU25: 9.6 | AV25: 0.8939374507 | AW25: 23.38295033 | AX25: 5.992690004 | AZ25: 89.39374507 | BA25: 0.2627554892 | BB25: 0.5881024867 | BC25: 0.4676590066 | BD25: 0.1198538001 | BE25: 0.01723156318
A26: Top Driver | B26: Input Value | C26: Units | D26: Description | G26: 17 | H26: 13.5 | I26: 1 | J26: 2.04 | K26: 2.04 | L26: 0.8395061728 | M26: 0.3717876217 | N26: 2.731240068 | O26: 3.405620034 | P26: 0.6743799661 | Q26: 0 | R26: 2.18706181 | S26: 0.01387139414 | T26: 0.25 | U26: 0.2641645406 | V26: 0.7884410942 | W26: 0.000621639359 | X26: 0.000621639359 | Y26: 1.056967819 | Z26: 0.001117180971 | AA26: 0.001117180971 | AB26: 1.333547594 | AC26: 0.008002571334 | AD26: 0.100197272 | AE26: 0.3266132625 | AF26: 0 | AG26: 0.435510146 | AH26: 1.733461904 | AI26: 0.01096784913 | AJ26: 0.0959616 | AK26: 0.107164522 | AL26: 0.0959616 | AM26: 0.0626535 | AN26: 0.01913295744 | AO26: 0.0004725 | AP26: 0.1785 | AQ26: 0.48195 | AR26: 0.30345 | AS26: 0.1789725 | AT26: 1.165298586 | AU26: 10.2 | AV26: 0.8974687222 | AW26: 23.8430728 | AX26: 6.39200885 | AZ26: 89.74687222 | BA26: 0.2641645406 | BB26: 0.605328168 | BC26: 0.476861456 | BD26: 0.127840177 | BE26: 0.01913295744
A27: RdsonDRT | B27: 0.7 | C27: W | D27: Drain to Source Resistance of pullup Top FET Driver | G27: 18 | H27: 13.5 | I27: 1 | J27: 2.16 | K27: 2.16 | L27: 0.8888888889 | M27: 0.3718709474 | N27: 2.731566292 | O27: 3.525783146 | P27: 0.7942168538 | Q27: 0 | R27: 2.299432075 | S27: 0.01533342482 | T27: 0.25 | U27: 0.2656593022 | V27: 0.7885352671 | W27: 0.0006217878675 | X27: 0.0006217878675 | Y27: 1.11132517 | Z27: 0.001235043634 | AA27: 0.001235043634 | AB27: 1.402221785 | AC27: 0.00884801671 | AD27: 0.1060912292 | AE27: 0.3266132625 | AF27: 0 | AG27: 0.4423352664 | AH27: 1.822405534 | AI27: 0.01212224105 | AJ27: 0.1016064 | AK27: 0.1140050404 | AL27: 0.1016064 | AM27: 0.066339 | AN27: 0.02114955147 | AO27: 0.0004725 | AP27: 0.1785 | AQ27: 0.48195 | AR27: 0.30345 | AS27: 0.1789725 | AT27: 1.191923892 | AU27: 10.8 | AV27: 0.900606116 | AW27: 24.30595032 | AX27: 6.794845518 | AZ27: 90.0606116 | BA27: 0.2656593022 | BB27: 0.6226793067 | BC27: 0.4861190064 | BD27: 0.1358969104 | BE27: 0.02114955147
A28: RdsonDRT2 | B28: =RdsonDRT2 -> 0.5 | C28: W | D28: Drain to Source Resistance of pulldown Top FET Driver | G28: 19 | H28: 13.5 | I28: 1 | J28: 2.28 | K28: 2.28 | L28: 0.9382716049 | M28: 0.3719542685 | N28: 2.731892355 | O28: 3.645946177 | P28: 0.9140538227 | Q28: 0 | R28: 2.41253732 | S28: 0.01687897533 | T28: 0.25 | U28: 0.2672398341 | V28: 0.7886293932 | W28: 0.0006219363198 | X28: 0.0006219363198 | Y28: 1.166042682 | Z28: 0.001359655537 | AA28: 0.001359655537 | AB28: 1.471359554 | AC28: 0.009742045222 | AD28: 0.1119851864 | AE28: 0.3266132625 | AF28: 0 | AG28: 0.4492157501 | AH28: 1.911919816 | AI28: 0.01334234644 | AJ28: 0.1072512 | AK28: 0.1209162076 | AL28: 0.1072512 | AM28: 0.0700245 | AN28: 0.02328134528 | AO28: 0.0004725 | AP28: 0.1785 | AQ28: 0.48195 | AR28: 0.30345 | AS28: 0.1789725 | AT28: 1.218882929 | AU28: 11.4 | AV28: 0.9034080167 | AW28: 24.77159601 | AX28: 7.201214631 | AZ28: 90.34080167 | BA28: 0.2672398341 | BB28: 0.6401564577 | BC28: 0.4954319201 | BD28: 0.1440242926 | BE28: 0.02328134528
A29: Bottom Driver | B29: Input Value | C29: Units | D29: Description | G29: 20 | H29: 13.5 | I29: 1 | J29: 2.4 | K29: 2.4 | L29: 0.987654321 | M29: 0.3720375849 | N29: 2.732218255 | O29: 3.766109127 | P29: 1.033890873 | Q29: 0 | R29: 2.526278828 | S29: 0.01850804568 | T29: 0.25 | U29: 0.2689061999 | V29: 0.7887234724 | W29: 0.0006220847159 | X29: 0.0006220847159 | Y29: 1.221072684 | Z29: 0.001491018501 | AA29: 0.001491018501 | AB29: 1.540900835 | AC29: 0.01068468923 | AD29: 0.1178791435 | AE29: 0.3266132625 | AF29: 0 | AG29: 0.4561518634 | AH29: 2.001926405 | AI29: 0.01462813906 | AJ29: 0.112896 | AK29: 0.1278983219 | AL29: 0.112896 | AM29: 0.07371 | AN29: 0.02552833886 | AO29: 0.0004725 | AP29: 0.1785 | AQ29: 0.48195 | AR29: 0.30345 | AS29: 0.1789725 | AT29: 1.246176327 | AU29: 12 | AV29: 0.9059218074 | AW29: 25.24002317 | AX29: 7.611131097 | AZ29: 90.59218074 | BA29: 0.2689061999 | BB29: 0.6577601854 | BC29: 0.5048004634 | BD29: 0.1522226219 | BE29: 0.02552833886
A30: RdsonDRB | B30: 0.7 | C30: W | D30: Drain to Source Resistance of pullup Bottom FET Driver | G30: 21 | H30: 13.5 | I30: 1 | J30: 2.52 | K30: 2.52 | L30: 1.037037037 | M30: 0.3721208966 | N30: 2.732543992 | O30: 3.886271996 | P30: 1.153728004 | Q30: 0 | R30: 2.64057438 | S30: 0.02022063586 | T30: 0.25 | U30: 0.2706584668 | V30: 0.7888175047 | W30: 0.0006222330557 | X30: 0.0006222330557 | Y30: 1.276375471 | Z30: 0.001629134342 | AA30: 0.001629134342 | AB30: 1.6107956 | AC30: 0.01167598109 | AD30: 0.1237731007 | AE30: 0.3266132625 | AF30: 0 | AG30: 0.4631438761 | AH30: 2.092360053 | AI30: 0.01597959266 | AJ30: 0.1185408 | AK30: 0.1349516873 | AL30: 0.1185408 | AM30: 0.0773955 | AN30: 0.02789053222 | AO30: 0.0004725 | AP30: 0.1785 | AQ30: 0.48195 | AR30: 0.30345 | AS30: 0.1789725 | AT30: 1.27380473 | AU30: 12.6 | AV30: 0.9081863444 | AW30: 25.71124531 | AX30: 8.024610113 | AZ30: 90.81863444 | BA30: 0.2706584668 | BB30: 0.6754910634 | BC30: 0.5142249061 | BD30: 0.1604922023 | BE30: 0.02789053222
A31: RdsonDRB2 | B31: 0.5 | C31: W | D31: Drain to Source Resistance of pulldown Bottom FET Driver | G31: 22 | H31: 13.5 | I31: 1 | J31: 2.64 | K31: 2.64 | L31: 1.086419753 | M31: 0.3722042037 | N31: 2.732869567 | O31: 4.006434784 | P31: 1.273565216 | Q31: 0 | R31: 2.75535503 | S31: 0.02201674588 | T31: 0.25 | U31: 0.2724967051 | V31: 0.7889114901 | W31: 0.0006223813393 | X31: 0.0006223813393 | Y31: 1.331917744 | Z31: 0.001774004875 | AA31: 0.001774004875 | AB31: 1.681001894 | AC31: 0.01271595316 | AD31: 0.1296670579 | AE31: 0.3266132625 | AF31: 0 | AG31: 0.4701920616 | AH31: 2.183166043 | AI31: 0.01739668099 | AJ31: 0.1241856 | AK31: 0.1420766133 | AL31: 0.1241856 | AM31: 0.081081 | AN31: 0.03036792536 | AO31: 0.0004725 | AP31: 0.1785 | AQ31: 0.48195 | AR31: 0.30345 | AS31: 0.1789725 | AT31: 1.301768792 | AU31: 13.2 | AV31: 0.9102337921 | AW31: 26.18527608 | AX31: 8.441667165 | AZ31: 91.02337921 | BA31: 0.2724967051 | BB31: 0.6933496749 | BC31: 0.5237055216 | BD31: 0.1688333433 | BE31: 0.03036792536
A32: Deadtime | B32: 0.5 | C32: Units | D32: Description | G32: 23 | H32: 13.5 | I32: 1 | J32: 2.76 | K32: 2.76 | L32: 1.135802469 | M32: 0.3722875061 | N32: 2.73319498 | O32: 4.12659749 | P32: 1.39340251 | Q32: 0 | R32: 2.870562587 | S32: 0.02389637574 | T32: 0.25 | U32: 0.2744209891 | V32: 0.7890054287 | W32: 0.0006225295665 | X32: 0.0006225295665 | Y32: 1.3876714 | Z32: 0.001925631914 | AA32: 0.001925631914 | AB32: 1.751484309 | AC32: 0.01380463779 | AD32: 0.1355610151 | AE32: 0.3266132625 | AF32: 0 | AG32: 0.477296697 | AH32: 2.274298195 | AI32: 0.01887937782 | AJ32: 0.1298304 | AK32: 0.1492734157 | AL32: 0.1298304 | AM32: 0.0847665 | AN32: 0.03296051827 | AO32: 0.0004725 | AP32: 0.1785 | AQ32: 0.48195 | AR32: 0.30345 | AS32: 0.1789725 | AT32: 1.330069181 | AU32: 13.8 | AV32: 0.9120910046 | AW32: 26.66212935 | AX32: 8.862318033 | AZ32: 91.20910046 | BA32: 0.2744209891 | BB32: 0.7113366126 | BC32: 0.533242587 | BD32: 0.1772463607 | BE32: 0.03296051827
A33: Deadtime | B33: =Deadtime*1000000000 -> 14 | C33: ns | D33: Total Deadtime | G33: 24 | H33: 13.5 | I33: 1 | J33: 2.88 | K33: 2.88 | L33: 1.185185185 | M33: 0.3723708039 | N33: 2.73352023 | O33: 4.246760115 | P33: 1.513239885 | Q33: 0 | R33: 2.986147642 | S33: 0.02585952544 | T33: 0.25 | U33: 0.2764313962 | V33: 0.7890993205 | W33: 0.0006226777375 | X33: 0.0006226777375 | Y33: 1.443612575 | Z33: 0.002084017267 | AA33: 0.002084017267 | AB33: 1.822212777 | AC33: 0.01494206732 | AD33: 0.1414549722 | AE33: 0.3266132625 | AF33: 0 | AG33: 0.4844580631 | AH33: 2.365717298 | AI33: 0.02042765691 | AJ33: 0.1354752 | AK33: 0.1565424159 | AL33: 0.1354752 | AM33: 0.088452 | AN33: 0.03566831095 | AO33: 0.0004725 | AP33: 0.1785 | AQ33: 0.48195 | AR33: 0.30345 | AS33: 0.1789725 | AT33: 1.358706581 | AU33: 14.4 | AV33: 0.9137805775 | AW33: 27.14181915 | AX33: 9.286578793 | AZ33: 91.37805775 | BA33: 0.2764313962 | BB33: 0.7294524789 | BC33: 0.5428363831 | BD33: 0.1857315759 | BE33: 0.03566831095
A34: IQ | B34: Input Value | C34: Units | D34: Description | G34: 25 | H34: 13.5 | I34: 1 | J34: 3 | K34: 3 | L34: 1.234567901 | M34: 0.3724540969 | N34: 2.733845319 | O34: 4.366922659 | P34: 1.633077341 | Q34: 0 | R34: 3.102067996 | S34: 0.02790619497 | T34: 0.25 | U34: 0.2785280075 | V34: 0.7891931653 | W34: 0.0006228258522 | X34: 0.0006228258522 | Y34: 1.499720888 | Z34: 0.002249162742 | AA34: 0.002249162742 | AB34: 1.893161618 | AC34: 0.01612827411 | AD34: 0.1473489294 | AE34: 0.3266132625 | AF34: 0 | AG34: 0.4916764445 | AH34: 2.457389863 | AI34: 0.02204149203 | AJ34: 0.14112 | AK34: 0.1638839413 | AL34: 0.14112 | AM34: 0.0921375 | AN34: 0.03849130341 | AO34: 0.0004725 | AP34: 0.1785 | AQ34: 0.48195 | AR34: 0.30345 | AS34: 0.1789725 | AT34: 1.387681685 | AU34: 15 | AV34: 0.9153216598 | AW34: 27.62435973 | AX34: 9.714465817 | AZ34: 91.53216598 | BA34: 0.2785280075 | BB34: 0.7476978859 | BC34: 0.5524871945 | BD34: 0.1942893163 | BE34: 0.03849130341
A35: IQ | B35: =Iq*1000 -> 0.035 | C35: mA | D35: Quiescent Current Of Controller (Not Switching!) | G35: 26 | H35: 13.5 | I35: 1 | J35: 3.12 | K35: 3.12 | L35: 1.283950617 | M35: 0.3725373854 | N35: 2.734170245 | O35: 4.487085122 | P35: 1.752914878 | Q35: 0 | R35: 3.218287419 | S35: 0.03003638434 | T35: 0.25 | U35: 0.2807109076 | V35: 0.7892869634 | W35: 0.0006229739105 | X35: 0.0006229739105 | Y35: 1.555978838 | Z35: 0.002421070143 | AA35: 0.002421070143 | AB35: 1.964308783 | AC35: 0.01736329048 | AD35: 0.1532428866 | AE35: 0.3266132625 | AF35: 0 | AG35: 0.4989521297 | AH35: 2.549287139 | AI35: 0.02372085694 | AJ35: 0.1467648 | AK35: 0.1712983256 | AL35: 0.1467648 | AM35: 0.095823 | AN35: 0.04142949564 | AO35: 0.0004725 | AP35: 0.1785 | AQ35: 0.48195 | AR35: 0.30345 | AS35: 0.1789725 | AT35: 1.416995203 | AU35: 15.6 | AV35: 0.9167305869 | AW35: 28.10976549 | AX35: 10.14599578 | AZ35: 91.67305869 | BA35: 0.2807109076 | BB35: 0.7660734553 | BC35: 0.5621953097 | BD35: 0.2029199156 | BE35: 0.04142949564
A36: High-side FET | B36: Input Value | C36: Units | D36: Description | G36: 27 | H36: 13.5 | I36: 1 | J36: 3.24 | K36: 3.24 | L36: 1.333333333 | M36: 0.3726206691 | N36: 2.734495008 | O36: 4.607247504 | P36: 1.872752496 | Q36: 0 | R36: 3.334774642 | S36: 0.03225009355 | T36: 0.25 | U36: 0.2829801845 | V36: 0.7893807146 | W36: 0.0006231219125 | X36: 0.0006231219125 | Y36: 1.61237132 | Z36: 0.002599741272 | AA36: 0.002599741272 | AB36: 2.035635242 | AC36: 0.01864714878 | AD36: 0.1591368438 | AE36: 0.3266132625 | AF36: 0 | AG36: 0.5062854109 | AH36: 2.64138431 | AI36: 0.02546572541 | AJ36: 0.1524096 | AK36: 0.178785908 | AL36: 0.1524096 | AM36: 0.0995085 | AN36: 0.04448288765 | AO36: 0.0004725 | AP36: 0.1785 | AQ36: 0.48195 | AR36: 0.30345 | AS36: 0.1789725 | AT36: 1.446647854 | AU36: 16.2 | AV36: 0.9180213791 | AW36: 28.59805105 | AX36: 10.58118565 | AZ36: 91.80213791 | BA36: 0.2829801845 | BB36: 0.7845798189 | BC36: 0.5719610209 | BD36: 0.211623713 | BE36: 0.04448288765
A37: RdsonTop | B37: =Rdson1*1000 -> 4.5 | C37: mW | D37: Drain-Source Resistance of Top FET | G37: 28 | H37: 13.5 | I37: 1 | J37: 3.36 | K37: 3.36 | L37: 1.382716049 | M37: 0.3727039483 | N37: 2.73481961 | O37: 4.727409805 | P37: 1.992590195 | Q37: 0 | R37: 3.451502551 | S37: 0.03454732259 | T37: 0.25 | U37: 0.28533593 | V37: 0.7894744189 | W37: 0.0006232698581 | X37: 0.0006232698581 | Y37: 1.668885235 | Z37: 0.002785177929 | AA37: 0.002785177929 | AB37: 2.107124494 | AC37: 0.01997988134 | AD37: 0.1650308009 | AE37: 0.3266132625 | AF37: 0 | AG37: 0.5136765842 | AH37: 2.733659859 | AI37: 0.02727607123 | AJ37: 0.1580544 | AK37: 0.1863470342 | AL37: 0.1580544 | AM37: 0.103194 | AN37: 0.04765147943 | AO37: 0.0004725 | AP37: 0.1785 | AQ37: 0.48195 | AR37: 0.30345 | AS37: 0.1789725 | AT37: 1.476640376 | AU37: 16.8 | AV37: 0.9192061372 | AW37: 29.08923121 | AX37: 11.02005271 | AZ37: 91.92061372 | BA37: 0.28533593 | BB37: 0.8032176184 | BC37: 0.5817846242 | BD37: 0.2204010542 | BE37: 0.04765147943
A38: RdsonTopTc | B38: =RdsonTopTc*1000000 -> 4000 | C38: ppm | D38: Drain to Source Resistance Temp Co | G38: 29 | H38: 13.5 | I38: 1 | J38: 3.48 | K38: 3.48 | L38: 1.432098765 | M38: 0.3727872227 | N38: 2.735144049 | O38: 4.847572024 | P38: 2.112427976 | Q38: 0 | R38: 3.568447526 | S38: 0.03692807147 | T38: 0.25 | U38: 0.2877782391 | V38: 0.7895680764 | W38: 0.0006234177473 | X38: 0.0006234177473 | Y38: 1.725509174 | Z38: 0.002977381909 | AA38: 0.002977381909 | AB38: 2.178762161 | AC38: 0.02136152049 | AD38: 0.1709247581 | AE38: 0.3266132625 | AF38: 0 | AG38: 0.5211259496 | AH38: 2.826095044 | AI38: 0.02915186816 | AJ38: 0.1636992 | AK38: 0.193982056 | AL38: 0.1636992 | AM38: 0.1068795 | AN38: 0.05093527099 | AO38: 0.0004725 | AP38: 0.1785 | AQ38: 0.48195 | AR38: 0.30345 | AS38: 0.1789725 | AT38: 1.506973515 | AU38: 17.4 | AV38: 0.9202953601 | AW38: 29.58332098 | AX38: 11.46261455 | AZ38: 92.02953601 | BA38: 0.2877782391 | BB38: 0.8219875057 | BC38: 0.5916664196 | BD38: 0.229252291 | BE38: 0.05093527099
A39: QgTop | B39: =Qg_Q1*1000000000 -> 8 | C39: nC | D39: Gate Charge Of Top FET | G39: 30 | H39: 13.5 | I39: 1 | J39: 3.6 | K39: 3.6 | L39: 1.481481481 | M39: 0.3728704925 | N39: 2.735468326 | O39: 4.967734163 | P39: 2.232265837 | Q39: 0 | R39: 3.685588905 | S39: 0.03939234018 | T39: 0.25 | U39: 0.2903072106 | V39: 0.7896616871 | W39: 0.0006235655801 | X39: 0.0006235655801 | Y39: 1.782233152 | Z39: 0.003176355008 | AA39: 0.003176355008 | AB39: 2.250535667 | AC39: 0.02279209854 | AD39: 0.1768187153 | AE39: 0.3266132625 | AF39: 0 | AG39: 0.5286338111 | AH39: 2.918673465 | AI39: 0.03109308999 | AJ39: 0.169344 | AK39: 0.2016913313 | AL39: 0.169344 | AM39: 0.110565 | AN39: 0.05433426232 | AO39: 0.0004725 | AP39: 0.1785 | AQ39: 0.48195 | AR39: 0.30345 | AS39: 0.1789725 | AT39: 1.537648036 | AU39: 18 | AV39: 0.9212982016 | AW39: 30.08033556 | AX39: 11.90888907 | AZ39: 92.12982016 | BA39: 0.2903072106 | BB39: 0.8408901425 | BC39: 0.6016067111 | BD39: 0.2381777813 | BE39: 0.05433426232
A40: QgdTop | B40: =Qgd_Q1*1000000000 -> 3.1 | C40: nC | D40: Gate to Drain Charge | G40: 31 | H40: 13.5 | I40: 1 | J40: 3.72 | K40: 3.72 | L40: 1.530864198 | M40: 0.3729537576 | N40: 2.73579244 | O40: 5.08789622 | P40: 2.35210378 | Q40: 0 | R40: 3.802908539 | S40: 0.04194012873 | T40: 0.25 | U40: 0.2929229468 | V40: 0.789755251 | W40: 0.0006237133564 | X40: 0.0006237133564 | Y40: 1.8390484 | Z40: 0.003382099016 | AA40: 0.003382099016 | AB40: 2.322433964 | AC40: 0.02427164784 | AD40: 0.1827126725 | AE40: 0.3266132625 | AF40: 0 | AG40: 0.5362004766 | AH40: 3.011380719 | AI40: 0.03309971051 | AJ40: 0.1749888 | AK40: 0.2094752244 | AL40: 0.1749888 | AM40: 0.1142505 | AN40: 0.05784845343 | AO40: 0.0004725 | AP40: 0.1785 | AQ40: 0.48195 | AR40: 0.30345 | AS40: 0.1789725 | AT40: 1.568664714 | AU40: 18.6 | AV40: 0.9222226788 | AW40: 30.58029033 | AX40: 12.35889447 | AZ40: 92.22226788 | BA40: 0.2929229468 | BB40: 0.859926201 | BC40: 0.6116058066 | BD40: 0.2471778894 | BE40: 0.05784845343
A41: QgsTop | B41: =Qgs_Q1*1000000000 -> 2.9 | C41: nC | G41: 32 | H41: =Vin -> 13.5 | I41: =MODE -> 1 | J41: 3.84 | K41: =Iout*G41/100/Number_of_Phases -> 3.84 | L41: =Vout*K41/(Vin*Efficiency) -> 1.580246914 | M41: =(Vout+(Rdson2+Rs+Rdcr)*K41)/(Vin+(Rs+Rdson2-Rdson1)*K41) -> 0.3730370181 | N41: =(Vin-(Rdson1+Rdcr)*K41-Vout)*M41/(Fsw*Lf) -> 2.736116393 | O41: 5.208058196 | P41: 2.471941804 | Q41: =IF(MIN(Vin, -P41/(Coss_Q1+Coss_Q2)*0.00000002)<0, 0, MIN(Vin, -P41/(Coss_Q1+Coss_Q2)*0.00000002)) -> 0 | R41: 3.920390424 | S41: =R41^2*Rdcr -> 0.04457143712 | T41: =Core_Loss_Ch1 -> 0.25 | U41: =(T41+S41*(1+Ltc*(Ta-25)))/(1-S41*Ltc*ThetaCa) -> 0.2956255536 | V41: 0.789848768 | W41: 0.0006238610763 | X41: 0.0006238610763 | Y41: 1.895947184 | Z41: 0.003594615723 | AA41: 0.003594615723 | AB41: 2.394447312 | AC41: =Rdson1*AB41^2 -> 0.02580020068 | AD41: =(Vin*K41/2)*Fsw*(Tr_buck+Tf_buck) -> 0.1886066296 | AE41: =(0.5*Coss_Q1*(Vin-Q41)^2-0.5*Coss_Q2*(Vin-Q41)^2+(Qoss_Q2*(Vin-Q41)/Vin)*Vin)*Fsw -> 0.3266132625 | AF41: =IF(K41>N41/2,0,ABS(K41-N41/2)*Vsd_Q1*Deadtime*Fsw) -> 0 | AG41: =(AF41+AE41+AD41+AC41*(1+RdsonTopTc*Ta-RdsonTopTc*25))/(1-AC41*RdsonTopTc*ThetaJA_Q1) -> 0.5438262581 | AH41: =SQRT((1-M41))*SQRT(K41^2+(N41^2)/12) -> 3.104204108 | AI41: =Rdson2*AH41^2 -> 0.03517170349 | AJ41: =IF(K41<N41/2,Deadtime*Fsw*IF(VfdSky_Q2>0,0,Vsd_Q2)*(K41+N41/2),2*Deadtime*Fsw*IF(VfdSky_Q2>0,0,Vsd_Q2)*K41) -> 0.1806336 | AK41: =(AJ41+AI41*(1+RdsonBotTc*Ta-RdsonBotTc*25))/(1-AI41*RdsonBotTc*ThetaJA_Q2) -> 0.2173341056 | AL41: =2*Deadtime*Fsw*IF(VfdSky_Q2>0,VfdSky_Q2,Vsd_Q2)*K41 -> 0.1806336 | AM41: =IF(QrrSky_Q2>0,QrrSky_Q2,Qrr_Q2*K41/(Iout/Number_of_Phases))*Fsw*Vin -> 0.117936 | AN41: =Rs*R41^2 -> 0.06147784431 | AO41: =Iq*Vin -> 0.0004725 | AP41: =IF(Ext_VCC=1, (Qg_Q1+Qg_Q2)*Fsw*VCC, (Qg_Q1+Qg_Q2)*Fsw*Vin) -> 0.1785 | AQ41: 0.48195 | AR41: =(Qg_Q1+Qg_Q2)*Fsw*(Vin-VCC) -> 0.30345 | AS41: =SUM(AO41:AP41) -> 0.1789725 | AT41: =SUM(U41,X41,AA41,AG41,AK41,AL41,AM41,AS41,AN41) -> 1.600024338 | AU41: =Vout*K41 -> 19.2 | AV41: 0.923075843 | AW41: =ThetaJA_Q1*BC41 -> 31.08320091 | AX41: =ThetaJA_Q2*BD41 -> 12.81264928 | AZ41: 92.3075843 | BA41: =U41 -> 0.2956255536 | BB41: =AG41+AK41+AM41 -> 0.8790963638 | BC41: =AG41+AM41*0.66 -> 0.6216640181 | BD41: =AK41+AM41*0.33 -> 0.2562529856 | BE41: =AN41 -> 0.06147784431
A42: RGateTop | B42: =Rgate1 -> 0 | C42: W | D42: Gate Resistance | G42: 33 | H42: 13.5 | I42: 1 | J42: =Iout*G42/100 -> 3.96 | K42: 3.96 | L42: 1.62962963 | M42: 0.3731202739 | N42: 2.736440183 | O42: 5.328220092 | P42: 2.591779908 | Q42: 0 | R42: 4.038020399 | S42: 0.04728626535 | T42: 0.25 | U42: 0.2984151403 | V42: 0.7899422382 | W42: 0.0006240087397 | X42: 0.0006240087397 | Y42: 1.95292266 | Z42: 0.003813906915 | AA42: 0.003813906915 | AB42: 2.466567088 | AC42: 0.0273777894 | AD42: 0.1945005868 | AE42: 0.3266132625 | AF42: 0 | AG42: 0.5515114717 | AH42: 3.197132393 | AI42: 0.03730904272 | AJ42: 0.1862784 | AK42: 0.225268352 | AL42: 0.1862784 | AM42: 0.1216215 | AN42: 0.06522243496 | AO42: 0.0004725 | AP42: 0.1785 | AQ42: 0.48195 | AR42: 0.30345 | AS42: 0.1789725 | AT42: 1.631727715 | AU42: 19.8 | AV42: 0.923863921 | AW42: 31.58908309 | AX42: 13.27017235 | AZ42: 92.3863921 | BA42: 0.2984151403 | BB42: 0.8984013237 | BC42: 0.6317816617 | BD42: 0.265403447 | BE42: 0.06522243496
A43: GfsTop | B43: =Gfs_Q1 -> 71 | C43: S | D43: Transconductance of Top FET | G43: 34 | H43: 13.5 | I43: 1 | J43: 4.08 | K43: 4.08 | L43: 1.679012346 | M43: 0.3732035251 | N43: 2.736763811 | O43: 5.448381906 | P43: 2.711618094 | Q43: 0 | R43: 4.155785888 | S43: 0.05008461341 | T43: 0.25 | U43: 0.3012918202 | V43: 0.7900356616 | W43: 0.0006241563466 | X43: 0.0006241563466 | Y43: 2.00996875 | Z43: 0.004039974376 | AA43: 0.004039974376 | AB43: 2.538785637 | AC43: 0.02900444629 | AD43: 0.200394544 | AE43: 0.3266132625 | AF43: 0 | AG43: 0.5592564374 | AH43: 3.290155595 | AI43: 0.03951170201 | AJ43: 0.1919232 | AK43: 0.2332783469 | AL43: 0.1919232 | AM43: 0.125307 | AN43: 0.06908222539 | AO43: 0.0004725 | AP43: 0.1785 | AQ43: 0.48195 | AR43: 0.30345 | AS43: 0.1789725 | AT43: 1.663775661 | AU43: 20.4 | AV43: 0.9245924321 | AW43: 32.09795287 | AX43: 13.73148285 | AZ43: 92.45924321 | BA43: 0.3012918202 | BB43: 0.9178417844 | BC43: 0.6419590574 | BD43: 0.2746296569 | BE43: 0.06908222539
A44: VthTop | B44: =Vth_Q1 -> 3.2 | C44: V | D44: Threshold Voltage of Top FET | G44: 35 | H44: 13.5 | I44: 1 | J44: 4.2 | K44: 4.2 | L44: 1.728395062 | M44: 0.3732867716 | N44: 2.737087277 | O44: 5.568543639 | P44: 2.831456361 | Q44: 0 | R44: 4.273675689 | S44: 0.0529664813 | T44: 0.25 | U44: 0.3042557096 | V44: 0.7901290382 | W44: 0.000624303897 | X44: 0.000624303897 | Y44: 2.067080039 | Z44: 0.004272819886 | AA44: 0.004272819886 | AB44: 2.611096137 | AC44: 0.03068020366 | AD44: 0.2062885012 | AE44: 0.3266132625 | AF44: 0 | AG44: 0.5670614797 | AH44: 3.383264823 | AI44: 0.04177965514 | AJ44: 0.197568 | AK44: 0.2413644801 | AL44: 0.197568 | AM44: 0.1289925 | AN44: 0.07305721559 | AO44: 0.0004725 | AP44: 0.1785 | AQ44: 0.48195 | AR44: 0.30345 | AS44: 0.1789725 | AT44: 1.696169009 | AU44: 21 | AV44: 0.9252662858 | AW44: 32.60982648 | AX44: 14.19660025 | AZ44: 92.52662858 | BA44: 0.3042557096 | BB44: 0.9374184598 | BC44: 0.6521965297 | BD44: 0.2839320051 | BE44: 0.07305721559
A45: VspTop | B45: =Vsp_Q1 -> 3.369014085 | C45: V | G45: 36 | H45: 13.5 | I45: 1 | J45: 4.32 | K45: 4.32 | L45: 1.777777778 | M45: 0.3733700134 | N45: 2.737410581 | O45: 5.688705291 | P45: 2.951294709 | Q45: 0 | R45: 4.391679791 | S45: 0.05593186903 | T45: 0.25 | U45: 0.3073069291 | V45: 0.790222368 | W45: 0.0006244513908 | X45: 0.0006244513908 | Y45: 2.124251686 | Z45: 0.004512445225 | AA45: 0.004512445225 | AB45: 2.683492493 | AC45: 0.03240509383 | AD45: 0.2121824584 | AE45: 0.3266132625 | AF45: 0 | AG45: 0.5749269269 | AH45: 3.476452132 | AI45: 0.04411287591 | AJ45: 0.2032128 | AK45: 0.2495271479 | AL45: 0.2032128 | AM45: 0.132678 | AN45: 0.07714740556 | AO45: 0.0004725 | AP45: 0.1785 | AQ45: 0.48195 | AR45: 0.30345 | AS45: 0.1789725 | AT45: 1.728908606 | AU45: 21.6 | AV45: 0.9258898633 | AW45: 33.12472034 | AX45: 14.6655444 | AZ45: 92.58898633 | BA45: 0.3073069291 | BB45: 0.9571320748 | BC45: 0.6624944069 | BD45: 0.2933108879 | BE45: 0.07714740556
A46: VsdTop | B46: =Vsd_Q1 -> 0.8 | C46: V | G46: 37 | H46: 13.5 | I46: 1 | J46: 4.44 | K46: 4.44 | L46: 1.827160494 | M46: 0.3734532506 | N46: 2.737733723 | O46: 5.808866861 | P46: 3.071133139 | Q46: 0 | R46: 4.509789222 | S46: 0.0589807766 | T46: 0.25 | U46: 0.3104456024 | V46: 0.7903156509 | W46: 0.0006245988281 | X46: 0.0006245988281 | Y46: 2.181479353 | Z46: 0.004758852168 | AA46: 0.004758852168 | AB46: 2.755969242 | AC46: 0.03417914908 | AD46: 0.2180764155 | AE46: 0.3266132625 | AF46: 0 | AG46: 0.5828531118 | AH46: 3.569710403 | AI46: 0.04651133813 | AJ46: 0.2088576 | AK46: 0.2577667535 | AL46: 0.2088576 | AM46: 0.1363635 | AN46: 0.08135279531 | AO46: 0.0004725 | AP46: 0.1785 | AQ46: 0.48195 | AR46: 0.30345 | AS46: 0.1789725 | AT46: 1.761995314 | AU46: 22.2 | AV46: 0.9264670871 | AW46: 33.64265109 | AX46: 15.13833542 | AZ46: 92.64670871 | BA46: 0.3104456024 | BB46: 0.9769833653 | BC46: 0.6728530218 | BD46: 0.3027667085 | BE46: 0.08135279531
A47: θJATop | B47: =ThetaJA_Q1 -> 50 | C47: °C/W | D47: Junction to Ambient Resistance | G47: 38 | H47: 13.5 | I47: 1 | J47: 4.56 | K47: 4.56 | L47: 1.87654321 | M47: 0.3735364831 | N47: 2.738056702 | O47: 5.929028351 | P47: 3.190971649 | Q47: 0 | R47: 4.627995917 | S47: 0.06211320401 | T47: 0.25 | U47: 0.3136718571 | V47: 0.7904088871 | W47: 0.0006247462088 | X47: 0.0006247462088 | Y47: 2.238759141 | Z47: 0.005012042489 | AA47: 0.005012042489 | AB47: 2.828521472 | AC47: 0.03600240173 | AD47: 0.2239703727 | AE47: 0.3266132625 | AF47: 0 | AG47: 0.5908403714 | AH47: 3.663033237 | AI47: 0.0489750156 | AJ47: 0.2145024 | AK47: 0.2660837063 | AL47: 0.2145024 | AM47: 0.140049 | AN47: 0.08567338484 | AO47: 0.0004725 | AP47: 0.1785 | AQ47: 0.48195 | AR47: 0.30345 | AS47: 0.1789725 | AT47: 1.795430008 | AU47: 22.8 | AV47: 0.9270014792 | AW47: 34.16363557 | AX47: 15.61499382 | AZ47: 92.70014792 | BA47: 0.3136718571 | BB47: 0.9969730777 | BC47: 0.6832727114 | BD47: 0.3122998763 | BE47: 0.08567338484
A48: Low-side FET | B48: Input Value | C48: Units | D48: Description | G48: 39 | H48: 13.5 | I48: 1 | J48: 4.68 | K48: 4.68 | L48: 1.925925926 | M48: 0.373619711 | N48: 2.73837952 | O48: 6.04918976 | P48: 3.31081024 | Q48: 0 | R48: 4.746292609 | S48: 0.06532915125 | T48: 0.25 | U48: 0.3169858244 | V48: 0.7905020765 | W48: 0.0006248935329 | X48: 0.0006248935329 | Y48: 2.296087533 | Z48: 0.005272017959 | AA48: 0.005272017959 | AB48: 2.901144757 | AC48: 0.03787488405 | AD48: 0.2298643299 | AE48: 0.3266132625 | AF48: 0 | AG48: 0.5988890471 | AH48: 3.756414864 | AI48: 0.05150388211 | AJ48: 0.2201472 | AK48: 0.274478423 | AL48: 0.2201472 | AM48: 0.1437345 | AN48: 0.09010917413 | AO48: 0.0004725 | AP48: 0.1785 | AQ48: 0.48195 | AR48: 0.30345 | AS48: 0.1789725 | AT48: 1.82921358 | AU48: 23.4 | AV48: 0.9274962109 | AW48: 34.68769085 | AX48: 16.0955404 | AZ48: 92.74962109 | BA48: 0.3169858244 | BB48: 1.01710197 | BC48: 0.6937538171 | BD48: 0.321910808 | BE48: 0.09010917413
A49: RdsonBot | B49: =Rdson2*1000 -> 3.65 | C49: mW | D49: Drain-Source Resistance of Low-side FET | G49: 40 | H49: 13.5 | I49: 1 | J49: 4.8 | K49: 4.8 | L49: 1.975308642 | M49: 0.3737029342 | N49: 2.738702175 | O49: 6.169351088 | P49: 3.430648912 | Q49: 0 | R49: 4.864672733 | S49: 0.06862861832 | T49: 0.25 | U49: 0.3203876392 | V49: 0.7905952191 | W49: 0.0006250408004 | X49: 0.0006250408004 | Y49: 2.353461354 | Z49: 0.005538780345 | AA49: 0.005538780345 | AB49: 2.973835097 | AC49: 0.03979662833 | AD49: 0.2357582871 | AE49: 0.3266132625 | AF49: 0 | AG49: 0.6069994845 | AH49: 3.849850077 | AI49: 0.0540979115 | AJ49: 0.225792 | AK49: 0.2829513267 | AL49: 0.225792 | AM49: 0.14742 | AN49: 0.0946601632 | AO49: 0.0004725 | AP49: 0.1785 | AQ49: 0.48195 | AR49: 0.30345 | AS49: 0.1789725 | AT49: 1.863346935 | AU49: 24 | AV49: 0.9279541453 | AW49: 35.21483422 | AX49: 16.57999633 | AZ49: 92.79541453 | BA49: 0.3203876392 | BB49: 1.037370811 | BC49: 0.7042966845 | BD49: 0.3315999267 | BE49: 0.0946601632
A50: RdsonBotTc | B50: =RdsonBotTc*1000000 -> 4000 | C50: ppm | D50: Drain To Source Resitance Temp Co | G50: 41 | H50: 13.5 | I50: 1 | J50: 4.92 | K50: 4.92 | L50: 2.024691358 | M50: 0.3737861528 | N50: 2.739024669 | O50: 6.289512334 | P50: 3.550487666 | Q50: 0 | R50: 4.983130343 | S50: 0.07201160523 | T50: 0.25 | U50: 0.32387744 | V50: 0.7906883149 | W50: 0.0006251880112 | X50: 0.0006251880112 | Y50: 2.410877727 | Z50: 0.005812331414 | AA50: 0.005812331414 | AB50: 3.046588871 | AC50: 0.04176766687 | AD50: 0.2416522442 | AE50: 0.3266132625 | AF50: 0 | AG50: 0.6151720337 | AH50: 3.943334155 | AI50: 0.05675707756 | AJ50: 0.2314368 | AK50: 0.2915028475 | AL50: 0.2314368 | AM50: 0.1511055 | AN50: 0.09932635204 | AO50: 0.0004725 | AP50: 0.1785 | AQ50: 0.48195 | AR50: 0.30345 | AS50: 0.1789725 | AT50: 1.897830993 | AU50: 24.6 | AV50: 0.9283778739 | AW50: 35.74508319 | AX50: 17.06838312 | AZ50: 92.83778739 | BA50: 0.32387744 | BB50: 1.057780381 | BC50: 0.7149016637 | BD50: 0.3413676625 | BE50: 0.09932635204
A51: QgBot | B51: =Qg_Q2*1000000000 -> 9 | C51: nC | D51: Gate Charge Of Top FET | G51: 42 | H51: 13.5 | I51: 1 | J51: 5.04 | K51: 5.04 | L51: 2.074074074 | M51: 0.3738693667 | N51: 2.739347 | O51: 6.4096735 | P51: 3.6703265 | Q51: 0 | R51: 5.10166004 | S51: 0.07547811198 | T51: 0.25 | U51: 0.327455369 | V51: 0.7907813639 | W51: 0.0006253351654 | X51: 0.0006253351654 | Y51: 2.468334039 | Z51: 0.006092672928 | AA51: 0.006092672928 | AB51: 3.11940279 | AC51: 0.04378803195 | AD51: 0.2475462014 | AE51: 0.3266132625 | AF51: 0 | AG51: 0.6234070494 | AH51: 4.036862816 | AI51: 0.05948135411 | AJ51: 0.2370816 | AK51: 0.3001334226 | AL51: 0.2370816 | AM51: 0.154791 | AN51: 0.1041077407 | AO51: 0.0004725 | AP51: 0.1785 | AQ51: 0.48195 | AR51: 0.30345 | AS51: 0.1789725 | AT51: 1.93266669 | AU51: 25.2 | AV51: 0.9287697479 | AW51: 36.27845547 | AX51: 17.56072263 | AZ51: 92.87697479 | BA51: 0.327455369 | BB51: 1.078331472 | BC51: 0.7255691094 | BD51: 0.3512144526 | BE51: 0.1041077407
A52: RGateBot | B52: =Rgate2 -> 0 | C52: W | D52: Gate Resistance | G52: 43 | H52: 13.5 | I52: 1 | J52: 5.16 | K52: 5.16 | L52: 2.12345679 | M52: 0.3739525759 | N52: 2.739669169 | O52: 6.529834584 | P52: 3.790165416 | Q52: 0 | R52: 5.220256915 | S52: 0.07902813856 | T52: 0.25 | U52: 0.3311215723 | V52: 0.7908743661 | W52: 0.0006254822629 | X52: 0.0006254822629 | Y52: 2.525827913 | Z52: 0.006379806648 | AA52: 0.006379806648 | AB52: 3.192273862 | AC52: 0.04585775584 | AD52: 0.2534401586 | AE52: 0.3266132625 | AF52: 0 | AG52: 0.6317048907 | AH52: 4.130432163 | AI52: 0.06227071497 | AJ52: 0.2427264 | AK52: 0.308843496 | AL52: 0.2427264 | AM52: 0.1584765 | AN52: 0.1090043291 | AO52: 0.0004725 | AP52: 0.1785 | AQ52: 0.48195 | AR52: 0.30345 | AS52: 0.1789725 | AT52: 1.967854977 | AU52: 25.8 | AV52: 0.9291319053 | AW52: 36.81496903 | AX52: 18.05703705 | AZ52: 92.91319053 | BA52: 0.3311215723 | BB52: 1.099024887 | BC52: 0.7362993807 | BD52: 0.361140741 | BE52: 0.1090043291
A53: VsdBot | B53: =Vsd_Q2 -> 0.8 | C53: V | D53: Diode Forward Voltage of Bottom FET Body Diode | G53: 44 | H53: 13.5 | I53: 1 | J53: 5.28 | K53: 5.28 | L53: 2.172839506 | M53: 0.3740357805 | N53: 2.739991176 | O53: 6.649995588 | P53: 3.910004412 | Q53: 0 | R53: 5.338916492 | S53: 0.08266168498 | T53: 0.25 | U53: 0.3348761995 | V53: 0.7909673215 | W53: 0.0006256293037 | X53: 0.0006256293037 | Y53: 2.583357182 | Z53: 0.006673734332 | AA53: 0.006673734332 | AB53: 3.265199358 | AC53: 0.04797687082 | AD53: 0.2593341158 | AE53: 0.3266132625 | AF53: 0 | AG53: 0.6400659211 | AH53: 4.224038643 | AI53: 0.06512513396 | AJ53: 0.2483712 | AK53: 0.3176335191 | AL53: 0.2483712 | AM53: 0.162162 | AN53: 0.1140161172 | AO53: 0.0004725 | AP53: 0.1785 | AQ53: 0.48195 | AR53: 0.30345 | AS53: 0.1789725 | AT53: 2.00339682 | AU53: 26.4 | AV53: 0.9294662947 | AW53: 37.35464205 | AX53: 18.55734895 | AZ53: 92.94662947 | BA53: 0.3348761995 | BB53: 1.11986144 | BC53: 0.7470928411 | BD53: 0.3711469791 | BE53: 0.1140161172
A54: QrrBot | B54: =Qrr_Q2*1000000000 -> 13 | C54: nC | D54: Reverse Recovery Charge of Body Diode | G54: 45 | H54: 13.5 | I54: 1 | J54: 5.4 | K54: 5.4 | L54: 2.222222222 | M54: 0.3741189805 | N54: 2.740313021 | O54: 6.770156511 | P54: 4.029843489 | Q54: 0 | R54: 5.457634679 | S54: 0.08637875123 | T54: 0.25 | U54: 0.338719404 | V54: 0.7910602302 | W54: 0.0006257762878 | X54: 0.0006257762878 | Y54: 2.640919865 | Z54: 0.006974457735 | AA54: 0.006974457735 | AB54: 3.338176786 | AC54: 0.05014540916 | AD54: 0.2652280729 | AE54: 0.3266132625 | AF54: 0 | AG54: 0.648490509 | AH54: 4.31767901 | AI54: 0.06804458491 | AJ54: 0.254016 | AK54: 0.3265039501 | AL54: 0.254016 | AM54: 0.1658475 | AN54: 0.1191431052 | AO54: 0.0004725 | AP54: 0.1785 | AQ54: 0.48195 | AR54: 0.30345 | AS54: 0.1789725 | AT54: 2.039293202 | AU54: 27 | AV54: 0.9297746957 | AW54: 37.89749295 | AX54: 19.06168125 | AZ54: 92.97746957 | BA54: 0.338719404 | BB54: 1.140841959 | BC54: 0.757949859 | BD54: 0.3812336251 | BE54: 0.1191431052
A55: TrrBot | B55: =Trr_Q2*1000000000 -> 40 | C55: ns | D55: Reverse Recovery Time of Body Diode | G55: 46 | H55: 13.5 | I55: 1 | J55: 5.52 | K55: 5.52 | L55: 2.271604938 | M55: 0.3742021757 | N55: 2.740634704 | O55: 6.890317352 | P55: 4.149682648 | Q55: 0 | R55: 5.576407734 | S55: 0.09017933732 | T55: 0.25 | U55: 0.342651343 | V55: 0.7911530921 | W55: 0.0006259232152 | X55: 0.0006259232152 | Y55: 2.698514149 | Z55: 0.00728197861 | AA55: 0.00728197861 | AB55: 3.411203864 | AC55: 0.05236340312 | AD55: 0.2711220301 | AE55: 0.3266132625 | AF55: 0 | AG55: 0.6569790273 | AH55: 4.411350293 | AI55: 0.07102904165 | AJ55: 0.2596608 | AK55: 0.3354552547 | AL55: 0.2596608 | AM55: 0.169533 | AN55: 0.1243852929 | AO55: 0.0004725 | AP55: 0.1785 | AQ55: 0.48195 | AR55: 0.30345 | AS55: 0.1789725 | AT55: 2.07554512 | AU55: 27.6 | AV55: 0.9300587365 | AW55: 38.44354036 | AX55: 19.57005723 | AZ55: 93.00587365 | BA55: 0.342651343 | BB55: 1.161967282 | BC55: 0.7688708073 | BD55: 0.3914011447 | BE55: 0.1243852929
A56: θJABot | B56: =ThetaJA_Q2 -> 50 | C56: °C/W | D56: Junction to Ambient Resistance | G56: 47 | H56: 13.5 | I56: 1 | J56: 5.64 | K56: 5.64 | L56: 2.320987654 | M56: 0.3742853664 | N56: 2.740956225 | O56: 7.010478113 | P56: 4.269521887 | Q56: 0 | R56: 5.695232224 | S56: 0.09406344325 | T56: 0.25 | U56: 0.3466721775 | V56: 0.7912459073 | W56: 0.0006260700857 | X56: 0.0006260700857 | Y56: 2.756138369 | Z56: 0.007596298706 | AA56: 0.007596298706 | AB56: 3.484278499 | AC56: 0.05463088498 | AD56: 0.2770159873 | AE56: 0.3266132625 | AF56: 0 | AG56: 0.6655318536 | AH56: 4.505049769 | AI56: 0.074078478 | AJ56: 0.2653056 | AK56: 0.3444879059 | AL56: 0.2653056 | AM56: 0.1732185 | AN56: 0.1297426803 | AO56: 0.0004725 | AP56: 0.1785 | AQ56: 0.48195 | AR56: 0.30345 | AS56: 0.1789725 | AT56: 2.112153586 | AU56: 28.2 | AV56: 0.9303199101 | AW56: 38.99280318 | AX56: 20.08250055 | AZ56: 93.03199101 | BA56: 0.3466721775 | BB56: 1.18323826 | BC56: 0.7798560636 | BD56: 0.4016500109 | BE56: 0.1297426803
A57: Bottom Schottky | B57: Input Value | C57: Units | D57: Std Units | G57: 48 | H57: 13.5 | I57: 1 | J57: 5.76 | K57: 5.76 | L57: 2.37037037 | M57: 0.3743685524 | N57: 2.741277584 | O57: 7.130638792 | P57: 4.389361208 | Q57: 0 | R57: 5.814104996 | S57: 0.09803106901 | T57: 0.25 | U57: 0.3507820723 | V57: 0.7913386756 | W57: 0.0006262168996 | X57: 0.0006262168996 | Y57: 2.813790997 | Z57: 0.007917419772 | AA57: 0.007917419772 | AB57: 3.557398768 | AC57: 0.05694788699 | AD57: 0.2829099445 | AE57: 0.3266132625 | AF57: 0 | AG57: 0.6741493704 | AH57: 4.598774935 | AI57: 0.07719286779 | AJ57: 0.2709504 | AK57: 0.3536023842 | AL57: 0.2709504 | AM57: 0.176904 | AN57: 0.1352152676 | AO57: 0.0004725 | AP57: 0.1785 | AQ57: 0.48195 | AR57: 0.30345 | AS57: 0.1789725 | AT57: 2.149119631 | AU57: 28.8 | AV57: 0.9305595876 | AW57: 39.54530052 | AX57: 20.59903521 | AZ57: 93.05595876 | BA57: 0.3507820723 | BB57: 1.204655755 | BC57: 0.7909060104 | BD57: 0.4119807042 | BE57: 0.1352152676
A58: VfdSky | B58: =VfdSky_Q2 -> 0 | C58: V | D58: Diode Forward Voltage | G58: 49 | H58: 13.5 | I58: 1 | J58: 5.88 | K58: 5.88 | L58: 2.419753086 | M58: 0.3744517337 | N58: 2.741598782 | O58: 7.250799391 | P58: 4.509200609 | Q58: 0 | R58: 5.933023146 | S58: 0.1020822146 | T58: 0.25 | U58: 0.3549811959 | V58: 0.7914313973 | W58: 0.0006263636566 | X58: 0.0006263636566 | Y58: 2.871470625 | Z58: 0.008245343553 | AA58: 0.008245343553 | AB58: 3.630562901 | AC58: 0.0593144414 | AD58: 0.2888039016 | AE58: 0.3266132625 | AF58: 0 | AG58: 0.6828319649 | AH58: 4.692523487 | AI58: 0.08037218487 | AJ58: 0.2765952 | AK58: 0.3627991774 | AL58: 0.2765952 | AM58: 0.1805895 | AN58: 0.1408030546 | AO58: 0.0004725 | AP58: 0.1785 | AQ58: 0.48195 | AR58: 0.30345 | AS58: 0.1789725 | AT58: 2.1864443 | AU58: 29.4 | AV58: 0.9307790304 | AW58: 40.10105174 | AX58: 21.11968562 | AZ58: 93.07790304 | BA58: 0.3549811959 | BB58: 1.226220642 | BC58: 0.8020210349 | BD58: 0.4223937124 | BE58: 0.1408030546
A59: QrrSky | B59: =QrrSky_Q2*1000000000 -> 0 | C59: nC | D59: Diode Reverse Recovery Charge | G59: 50 | H59: 13.5 | I59: 1 | J59: 6 | K59: 6 | L59: 2.469135802 | M59: 0.3745349104 | N59: 2.741919817 | O59: 7.370959908 | P59: 4.629040092 | Q59: 0 | R59: 6.051984002 | S59: 0.10621688 | T59: 0.25 | U59: 0.3592697207 | V59: 0.7915240721 | W59: 0.0006265103568 | X59: 0.0006265103568 | Y59: 2.929175957 | Z59: 0.00858007179 | AA59: 0.00858007179 | AB59: 3.703769266 | AC59: 0.06173058048 | AD59: 0.2946978588 | AE59: 0.3266132625 | AF59: 0 | AG59: 0.6915800291 | AH59: 4.786293303 | AI59: 0.08361640308 | AJ59: 0.28224 | AK59: 0.3720787809 | AL59: 0.28224 | AM59: 0.184275 | AN59: 0.1465060414 | AO59: 0.0004725 | AP59: 0.1785 | AQ59: 0.48195 | AR59: 0.30345 | AS59: 0.1789725 | AT59: 2.224128654 | AU59: 30 | AV59: 0.9309794012 | AW59: 40.66007646 | AX59: 21.64447655 | AZ59: 93.09794012 | BA59: 0.3592697207 | BB59: 1.24793381 | BC59: 0.8132015291 | BD59: 0.4328895309 | BE59: 0.1465060414
A60: Ireverse | B60: =Ireverse -> 0 | C60: mA | D60: Reverse Leakage Current | G60: 51 | H60: 13.5 | I60: 1 | J60: 6.12 | K60: 6.12 | L60: 2.518518519 | M60: 0.3746180824 | N60: 2.74224069 | O60: 7.491120345 | P60: 4.748879655 | Q60: 0 | R60: 6.170985092 | S60: 0.1104350653 | T60: 0.25 | U60: 0.363647823 | V60: 0.7916167002 | W60: 0.0006266570001 | X60: 0.0006266570001 | Y60: 2.986905794 | Z60: 0.008921606224 | AA60: 0.008921606224 | AB60: 3.777016356 | AC60: 0.06419633647 | AD60: 0.300591816 | AE60: 0.3266132625 | AF60: 0 | AG60: 0.7003939602 | AH60: 4.880082422 | AI60: 0.08692549624 | AJ60: 0.2878848 | AK60: 0.381441698 | AL60: 0.2878848 | AM60: 0.1879605 | AN60: 0.152324228 | AO60: 0.0004725 | AP60: 0.1785 | AQ60: 0.48195 | AR60: 0.30345 | AS60: 0.1789725 | AT60: 2.262173772 | AU60: 30.6 | AV60: 0.9311617732 | AW60: 41.22239451 | AX60: 22.17343315 | AZ60: 93.11617732 | BA60: 0.363647823 | BB60: 1.269796158 | BC60: 0.8244478902 | BD60: 0.443468663 | BE60: 0.152324228
A61: Controller | B61: Input Value | C61: Units | D61: Std Units | G61: 52 | H61: 13.5 | I61: 1 | J61: 6.24 | K61: 6.24 | L61: 2.567901235 | M61: 0.3747012498 | N61: 2.742561401 | O61: 7.611280701 | P61: 4.868719299 | Q61: 0 | R61: 6.290024132 | S61: 0.1147367704 | T61: 0.25 | U61: 0.3681156828 | V61: 0.7917092816 | W61: 0.0006268035866 | X61: 0.0006268035866 | Y61: 3.044659027 | Z61: 0.009269948591 | AA61: 0.009269948591 | AB61: 3.850302777 | AC61: 0.06671174162 | AD61: 0.3064857732 | AE61: 0.3266132625 | AF61: 0 | AG61: 0.7092741602 | AH61: 4.973889033 | AI61: 0.09029943822 | AJ61: 0.2935296 | AK61: 0.3908884395 | AL61: 0.2935296 | AM61: 0.191646 | AN61: 0.1582576143 | AO61: 0.0004725 | AP61: 0.1785 | AQ61: 0.48195 | AR61: 0.30345 | AS61: 0.1789725 | AT61: 2.300580749 | AU61: 31.2 | AV61: 0.9313271383 | AW61: 41.78802601 | AX61: 22.70658098 | AZ61: 93.13271383 | BA61: 0.3681156828 | BB61: 1.2918086 | BC61: 0.8357605202 | BD61: 0.4541316195 | BE61: 0.1582576143
A62: θJA | B62: 30 | C62: °C/W | D62: Junction to Ambient Resistance | G62: 53 | H62: 13.5 | I62: 1 | J62: 6.36 | K62: 6.36 | L62: 2.617283951 | M62: 0.3747844125 | N62: 2.742881951 | O62: 7.731440975 | P62: 4.988559025 | Q62: 0 | R62: 6.40909901 | S62: 0.1191219953 | T62: 0.25 | U62: 0.3726734841 | V62: 0.7918018162 | W62: 0.0006269501162 | X62: 0.0006269501162 | Y62: 3.102434629 | Z62: 0.009625100627 | AA62: 0.009625100627 | AB62: 3.923627238 | AC62: 0.06927682817 | AD62: 0.3123797304 | AE62: 0.3266132625 | AF62: 0 | AG62: 0.7182210361 | AH62: 5.067711457 | AI62: 0.09373820286 | AJ62: 0.2991744 | AK62: 0.4004195242 | AL62: 0.2991744 | AM62: 0.1953315 | AN62: 0.1643062005 | AO62: 0.0004725 | AP62: 0.1785 | AQ62: 0.48195 | AR62: 0.30345 | AS62: 0.1789725 | AT62: 2.339350696 | AU62: 31.8 | AV62: 0.9314764151 | AW62: 42.3569913 | AX62: 23.24394596 | AZ62: 93.14764151 | BA62: 0.3726734841 | BB62: 1.31397206 | BC62: 0.8471398261 | BD62: 0.4648789192 | BE62: 0.1643062005
A63: Theta Ja | B63: 2 | C63: °C/W | D63: Junction to Ambient Resistance | G63: 54 | H63: 13.5 | I63: 1 | J63: 6.48 | K63: 6.48 | L63: 2.666666667 | M63: 0.3748675706 | N63: 2.743202338 | O63: 7.851601169 | P63: 5.108398831 | Q63: 0 | R63: 6.528207762 | S63: 0.1235907401 | T63: 0.25 | U63: 0.3773214147 | V63: 0.7918943041 | W63: 0.0006270965889 | X63: 0.0006270965889 | Y63: 3.160231647 | Z63: 0.009987064063 | AA63: 0.009987064063 | AB63: 3.996988543 | AC63: 0.07189162835 | AD63: 0.3182736875 | AE63: 0.3266132625 | AF63: 0 | AG63: 0.727235 | AH63: 5.161548138 | AI63: 0.097241764 | AJ63: 0.3048192 | AK63: 0.4100354786 | AL63: 0.3048192 | AM63: 0.199017 | AN63: 0.1704699864 | AO63: 0.0004725 | AP63: 0.1785 | AQ63: 0.48195 | AR63: 0.30345 | AS63: 0.1789725 | AT63: 2.37848474 | AU63: 32.4 | AV63: 0.9316104552 | AW63: 42.929311 | AX63: 23.78555443 | AZ63: 93.16104552 | BA63: 0.3773214147 | BB63: 1.336287479 | BC63: 0.85858622 | BD63: 0.4757110886 | BE63: 0.1704699864
G64: 55 | H64: 13.5 | I64: 1 | J64: 6.6 | K64: 6.6 | L64: 2.716049383 | M64: 0.374950724 | N64: 2.743522564 | O64: 7.971761282 | P64: 5.228238718 | Q64: 0 | R64: 6.64734857 | S64: 0.1281430047 | T64: 0.25 | U64: 0.3820596666 | V64: 0.7919867453 | W64: 0.0006272430047 | X64: 0.0006272430047 | Y64: 3.218049196 | Z64: 0.01035584063 | AA64: 0.01035584063 | AB64: 4.070385578 | AC64: 0.07455617441 | AD64: 0.3241676447 | AE64: 0.3266132625 | AF64: 0 | AG64: 0.7363164694 | AH64: 5.25539763 | AI64: 0.1008100955 | AJ64: 0.310464 | AK64: 0.4197368376 | AL64: 0.310464 | AM64: 0.2027025 | AN64: 0.176748972 | AO64: 0.0004725 | AP64: 0.1785 | AQ64: 0.48195 | AR64: 0.30345 | AS64: 0.1789725 | AT64: 2.417984029 | AU64: 33 | AV64: 0.9317300491 | AW64: 43.50500597 | AX64: 24.33143313 | AZ64: 93.17300491 | BA64: 0.3820596666 | BB64: 1.358755807 | BC64: 0.8701001194 | BD64: 0.4866286626 | BE64: 0.176748972
G65: 56 | H65: 13.5 | I65: 1 | J65: 6.72 | K65: 6.72 | L65: 2.765432099 | M65: 0.3750338728 | N65: 2.743842627 | O65: 8.091921314 | P65: 5.348078686 | Q65: 0 | R65: 6.766519738 | S65: 0.1327787892 | T65: 0.25 | U65: 0.3868884354 | V65: 0.7920791397 | W65: 0.0006273893636 | X65: 0.0006273893636 | Y65: 3.275886453 | Z65: 0.01073143205 | AA65: 0.01073143205 | AB65: 4.143817311 | AC65: 0.07727049857 | AD65: 0.3300616019 | AE65: 0.3266132625 | AF65: 0 | AG65: 0.7454658668 | AH65: 5.34925859 | AI65: 0.1044431712 | AJ65: 0.3161088 | AK65: 0.429524144 | AL65: 0.3161088 | AM65: 0.206388 | AN65: 0.1831431575 | AO65: 0.0004725 | AP65: 0.1785 | AQ65: 0.48195 | AR65: 0.30345 | AS65: 0.1789725 | AT65: 2.457849725 | AU65: 33.6 | AV65: 0.9318359319 | AW65: 44.08409734 | AX65: 24.8816092 | AZ65: 93.18359319 | BA65: 0.3868884354 | BB65: 1.381378011 | BC65: 0.8816819468 | BD65: 0.497632184 | BE65: 0.1831431575
A66: Outputs | G66: 57 | H66: 13.5 | I66: 1 | J66: 6.84 | K66: 6.84 | L66: 2.814814815 | M66: 0.3751170169 | N66: 2.744162529 | O66: 8.212081265 | P66: 5.467918735 | Q66: 0 | R66: 6.885719691 | S66: 0.1374980934 | T66: 0.25 | U66: 0.3918079208 | V66: 0.7921714874 | W66: 0.0006275356655 | X66: 0.0006275356655 | Y66: 3.33374265 | Z66: 0.01111384006 | AA66: 0.01111384006 | AB66: 4.217282776 | AC66: 0.08003463307 | AD66: 0.3359555591 | AE66: 0.3266132625 | AF66: 0 | AG66: 0.7546836199 | AH66: 5.443129766 | AI66: 0.108140965 | AJ66: 0.3217536 | AK66: 0.4393979487 | AL66: 0.3217536 | AM66: 0.2100735 | AN66: 0.1896525427 | AO66: 0.0004725 | AP66: 0.1785 | AQ66: 0.48195 | AR66: 0.30345 | AS66: 0.1789725 | AT66: 2.498083008 | AU66: 34.2 | AV66: 0.9319287875 | AW66: 44.6666065 | AX66: 25.43611018 | AZ66: 93.19287875 | BA66: 0.3918079208 | BB66: 1.404155069 | BC66: 0.8933321299 | BD66: 0.5087222037 | BE66: 0.1896525427
A67: Design | B67: Value | C67: Units | G67: 58 | H67: 13.5 | I67: 1 | J67: 6.96 | K67: 6.96 | L67: 2.864197531 | M67: 0.3752001564 | N67: 2.744482269 | O67: 8.332241135 | P67: 5.587758865 | Q67: 0 | R67: 7.00494696 | S67: 0.1423009175 | T67: 0.25 | U67: 0.3968183265 | V67: 0.7922637884 | W67: 0.0006276819104 | X67: 0.0006276819104 | Y67: 3.391617072 | Z67: 0.01150306636 | AA67: 0.01150306636 | AB67: 4.290781077 | AC67: 0.08284861012 | AD67: 0.3418495162 | AE67: 0.3266132625 | AF67: 0 | AG67: 0.7639701621 | AH67: 5.537009993 | AI67: 0.1119034508 | AJ67: 0.3273984 | AK67: 0.4493588111 | AL67: 0.3273984 | AM67: 0.213759 | AN67: 0.1962771276 | AO67: 0.0004725 | AP67: 0.1785 | AQ67: 0.48195 | AR67: 0.30345 | AS67: 0.1789725 | AT67: 2.538685076 | AU67: 34.8 | AV67: 0.9320092534 | AW67: 45.2525551 | AX67: 25.99496405 | AZ67: 93.20092534 | BA67: 0.3968183265 | BB67: 1.427087973 | BC67: 0.9050511021 | BD67: 0.5198992811 | BE67: 0.1962771276
A68: Dmax | B68: =D1_Vinmin -> 0.625 | C68: index | G68: 59 | H68: 13.5 | I68: 1 | J68: 7.08 | K68: 7.08 | L68: 2.913580247 | M68: 0.3752832913 | N68: 2.744801847 | O68: 8.452400924 | P68: 5.707599076 | Q68: 0 | R68: 7.124200173 | S68: 0.1471872615 | T68: 0.25 | U68: 0.4019198602 | V68: 0.7923560427 | W68: 0.0006278280984 | X68: 0.0006278280984 | Y68: 3.449509051 | Z68: 0.01189911269 | AA68: 0.01189911269 | AB68: 4.364311374 | AC68: 0.08571246195 | AD68: 0.3477434734 | AE68: 0.3266132625 | AF68: 0 | AG68: 0.7733259318 | AH68: 5.630898182 | AI68: 0.1157306023 | AJ68: 0.3330432 | AK68: 0.459407299 | AL68: 0.3330432 | AM68: 0.2174445 | AN68: 0.2030169124 | AO68: 0.0004725 | AP68: 0.1785 | AQ68: 0.48195 | AR68: 0.30345 | AS68: 0.1789725 | AT68: 2.579657144 | AU68: 35.4 | AV68: 0.9320779244 | AW68: 45.84196509 | AX68: 26.5581992 | AZ68: 93.20779244 | BA68: 0.4019198602 | BB68: 1.450177731 | BC68: 0.9168393018 | BD68: 0.531163984 | BE68: 0.2030169124
A69: Dprime | B69: =1-B68 -> 0.375 | C69: index | G69: 60 | H69: 13.5 | I69: 1 | J69: 7.2 | K69: 7.2 | L69: 2.962962963 | M69: 0.3753664214 | N69: 2.745121264 | O69: 8.572560632 | P69: 5.827439368 | Q69: 0 | R69: 7.243478048 | S69: 0.1521571253 | T69: 0.25 | U69: 0.4071127335 | V69: 0.7924482502 | W69: 0.0006279742293 | X69: 0.0006279742293 | Y69: 3.507417962 | Z69: 0.01230198076 | AA69: 0.01230198076 | AB69: 4.437872883 | AC69: 0.08862622077 | AD69: 0.3536374306 | AE69: 0.3266132625 | AF69: 0 | AG69: 0.7827513731 | AH69: 5.724793315 | AI69: 0.1196223935 | AJ69: 0.338688 | AK69: 0.4695439887 | AL69: 0.338688 | AM69: 0.22113 | AN69: 0.2098718969 | AO69: 0.0004725 | AP69: 0.1785 | AQ69: 0.48195 | AR69: 0.30345 | AS69: 0.1789725 | AT69: 2.621000447 | AU69: 36 | AV69: 0.932135356 | AW69: 46.43485865 | AX69: 27.12584443 | AZ69: 93.2135356 | BA69: 0.4071127335 | BB69: 1.473425362 | BC69: 0.9286971731 | BD69: 0.5425168887 | BE69: 0.2098718969
A70: Ipp | B70: =Iripple_Vinnom -> 2.760989625 | C70: A | G70: 61 | H70: 13.5 | I70: 1 | J70: 7.32 | K70: 7.32 | L70: 3.012345679 | M70: 0.375449547 | N70: 2.745440518 | O70: 8.692720259 | P70: 5.947279741 | Q70: 0 | R70: 7.362779387 | S70: 0.1572105089 | T70: 0.25 | U70: 0.4123971623 | V70: 0.7925404111 | W70: 0.0006281203032 | X70: 0.0006281203032 | Y70: 3.565343221 | Z70: 0.01271167228 | AA70: 0.01271167228 | AB70: 4.511464872 | AC70: 0.0915899188 | AD70: 0.3595313878 | AE70: 0.3266132625 | AF70: 0 | AG70: 0.7922469356 | AH70: 5.818694442 | AI70: 0.1235787983 | AJ70: 0.3443328 | AK70: 0.4797694651 | AL70: 0.3443328 | AM70: 0.2248155 | AN70: 0.2168420812 | AO70: 0.0004725 | AP70: 0.1785 | AQ70: 0.48195 | AR70: 0.30345 | AS70: 0.1789725 | AT70: 2.662716237 | AU70: 36.6 | AV70: 0.9321820676 | AW70: 47.03125828 | AX70: 27.697929 | AZ70: 93.21820676 | BA70: 0.4123971623 | BB70: 1.496831901 | BC70: 0.9406251656 | BD70: 0.5539585801 | BE70: 0.2168420812
A71: Top FET | B71: Value | C71: Units | G71: 62 | H71: 13.5 | I71: 1 | J71: 7.44 | K71: 7.44 | L71: 3.061728395 | M71: 0.3755326679 | N71: 2.745759611 | O71: 8.812879805 | P71: 6.067120195 | Q71: 0 | R71: 7.482103068 | S71: 0.1623474123 | T71: 0.25 | U71: 0.4177733663 | V71: 0.7926325252 | W71: 0.00062826632 | X71: 0.00062826632 | Y71: 3.62328428 | Z71: 0.01312818897 | AA71: 0.01312818897 | AB71: 4.585086653 | AC71: 0.09460358825 | AD71: 0.3654253449 | AE71: 0.3266132625 | AF71: 0 | AG71: 0.8018130745 | AH71: 5.912600672 | AI71: 0.1275997905 | AJ71: 0.3499776 | AK71: 0.4900843218 | AL71: 0.3499776 | AM71: 0.228501 | AN71: 0.2239274653 | AO71: 0.0004725 | AP71: 0.1785 | AQ71: 0.48195 | AR71: 0.30345 | AS71: 0.1789725 | AT71: 2.704805783 | AU71: 37.2 | AV71: 0.9322185454 | AW71: 47.63118672 | AX71: 28.27448259 | AZ71: 93.22185454 | BA71: 0.4177733663 | BB71: 1.520398396 | BC71: 0.9526237345 | BD71: 0.5654896518 | BE71: 0.2239274653
A72: Tr | B72: =(Qgd_Q1+Qgs_Q1/2)*(RdsonDRT+Rgate1)/(VCC-Vsp_Q1)*1000000000 -> 2.789723661 | C72: ns | D72: Turn on of MOSFET -> Rise time of current | G72: 63 | H72: 13.5 | I72: 1 | J72: 7.56 | K72: 7.56 | L72: 3.111111111 | M72: 0.3756157841 | N72: 2.746078542 | O72: 8.933039271 | P72: 6.186960729 | Q72: 0 | R72: 7.601448038 | S72: 0.1675678356 | T72: 0.25 | U72: 0.4232415695 | V72: 0.7927245926 | W72: 0.0006284122798 | X72: 0.0006284122798 | Y72: 3.681240624 | Z72: 0.01355153253 | AA72: 0.01355153253 | AB72: 4.658737581 | AC72: 0.09766726133 | AD72: 0.3713193021 | AE72: 0.3266132625 | AF72: 0 | AG72: 0.8114502507 | AH72: 6.006511169 | AI72: 0.131685344 | AJ72: 0.3556224 | AK72: 0.5004891614 | AL72: 0.3556224 | AM72: 0.2321865 | AN72: 0.2311280491 | AO72: 0.0004725 | AP72: 0.1785 | AQ72: 0.48195 | AR72: 0.30345 | AS72: 0.1789725 | AT72: 2.747270376 | AU72: 37.8 | AV72: 0.9322452449 | AW72: 48.23466703 | AX72: 28.85553532 | AZ72: 93.22452449 | BA72: 0.4232415695 | BB72: 1.544125912 | BC72: 0.9646933407 | BD72: 0.5771107064 | BE72: 0.2311280491
A73: Tf | B73: =(Qgd_Q1+Qgs_Q1/2)*(RdsonDRT2+Rgate1)/(Vsp_Q1)*1000000000 -> 0.6752717391 | C73: ns | D73: Turn off of MOSFET -> Fall time of current | G73: 64 | H73: =Vin -> 13.5 | I73: =MODE -> 1 | J73: 7.68 | K73: =Iout*G73/100/Number_of_Phases -> 7.68 | L73: =Vout*K73/(Vin*Efficiency) -> 3.160493827 | M73: =(Vout+(Rdson2+Rs+Rdcr)*K73)/(Vin+(Rs+Rdson2-Rdson1)*K73) -> 0.3756988957 | N73: =(Vin-(Rdson1+Rdcr)*K73-Vout)*M73/(Fsw*Lf) -> 2.746397311 | O73: 9.053198655 | P73: 6.306801345 | Q73: =IF(MIN(Vin, -P73/(Coss_Q1+Coss_Q2)*0.00000002)<0, 0, MIN(Vin, -P73/(Coss_Q1+Coss_Q2)*0.00000002)) -> 0 | R73: 7.720813311 | S73: =R73^2*Rdcr -> 0.1728717787 | T73: =Core_Loss_Ch1 -> 0.25 | U73: =(T73+S73*(1+Ltc*(Ta-25)))/(1-S73*Ltc*ThetaCa) -> 0.4288019999 | V73: 0.7928166134 | W73: 0.0006285581824 | X73: 0.0006285581824 | Y73: 3.739211771 | Z73: 0.01398170467 | AA73: 0.01398170467 | AB73: 4.732417053 | AC73: =Rdson1*AB73^2 -> 0.1007809702 | AD73: =(Vin*K73/2)*Fsw*(Tr_buck+Tf_buck) -> 0.3772132593 | AE73: =(0.5*Coss_Q1*(Vin-Q73)^2-0.5*Coss_Q2*(Vin-Q73)^2+(Qoss_Q2*(Vin-Q73)/Vin)*Vin)*Fsw -> 0.3266132625 | AF73: =IF(K73>N73/2,0,ABS(K73-N73/2)*Vsd_Q1*Deadtime*Fsw) -> 0 | AG73: =(AF73+AE73+AD73+AC73*(1+RdsonTopTc*Ta-RdsonTopTc*25))/(1-AC73*RdsonTopTc*ThetaJA_Q1) -> 0.8211589308 | AH73: =SQRT((1-M73))*SQRT(K73^2+(N73^2)/12) -> 6.100425151 | AI73: =Rdson2*AH73^2 -> 0.1358354326 | AJ73: =IF(K73<N73/2,Deadtime*Fsw*IF(VfdSky_Q2>0,0,Vsd_Q2)*(K73+N73/2),2*Deadtime*Fsw*IF(VfdSky_Q2>0,0,Vsd_Q2)*K73) -> 0.3612672 | AK73: =(AJ73+AI73*(1+RdsonBotTc*Ta-RdsonBotTc*25))/(1-AI73*RdsonBotTc*ThetaJA_Q2) -> 0.5109845953 | AL73: =2*Deadtime*Fsw*IF(VfdSky_Q2>0,VfdSky_Q2,Vsd_Q2)*K73 -> 0.3612672 | AM73: =IF(QrrSky_Q2>0,QrrSky_Q2,Qrr_Q2*K73/(Iout/Number_of_Phases))*Fsw*Vin -> 0.235872 | AN73: =Rs*R73^2 -> 0.2384438327 | AO73: =Iq*Vin -> 0.0004725 | AP73: =IF(Ext_VCC=1, (Qg_Q1+Qg_Q2)*Fsw*VCC, (Qg_Q1+Qg_Q2)*Fsw*Vin) -> 0.1785 | AQ73: =(Vin-VCC)*Fsw*(Qg_Q1+Qg_Q2)+(RdsonDRT+RdsonDRT2)*Fsw*Qg_Q1*VCC/(RdsonDRT+2*Rgate1+RdsonDRT2)+(RdsonDRB+RdsonDRB2)*Fsw*Qg_Q2*VCC/(RdsonDRB+2*Rgate2+RdsonDRB2) -> 0.48195 | AR73: =(Qg_Q1+Qg_Q2)*Fsw*(Vin-VCC) -> 0.30345 | AS73: 0.1789725 | AT73: =SUM(U73,X73,AA73,AG73,AK73,AL73,AM73,AS73,AN73) -> 2.790111322 | AU73: =Vout*K73 -> 38.4 | AV73: 0.9322625933 | AW73: =ThetaJA_Q1*BC73 -> 48.84172254 | AX73: =ThetaJA_Q2*BD73 -> 29.44111777 | AZ73: 93.22625933 | BA73: =U73 -> 0.4288019999 | BB73: 1.568015526 | BC73: 0.9768344508 | BD73: 0.5888223553 | BE73: 0.2384438327
A74: Part Power | B74: Value | C74: Units | G74: 65 | H74: 13.5 | I74: 1 | J74: =Iout*G74/100 -> 7.8 | K74: 7.8 | L74: 3.209876543 | M74: 0.3757820027 | N74: 2.746715918 | O74: =K74+N74/2 -> 9.173357959 | P74: =K74-N74/2 -> 6.426642041 | Q74: 0 | R74: =SQRT(K74^2+(N74^2)/12) -> 7.840197958 | S74: 0.1782592417 | T74: 0.25 | U74: 0.4344548896 | V74: =N74/SQRT(12) -> 0.7929085874 | W74: =RCoutEsr*V74^2 -> 0.000628704028 | X74: =W74 -> 0.000628704028 | Y74: =SQRT(M74*(1-M74))*SQRT(K74^2+(N74^2)/12) -> 3.797197268 | Z74: =RCinEsr*Y74^2 -> 0.01441870709 | AA74: =Z74 -> 0.01441870709 | AB74: =SQRT(M74)*SQRT(K74^2+(N74^2)/12) -> 4.806124499 | AC74: 0.1039447472 | AD74: 0.3831072165 | AE74: 0.3266132625 | AF74: 0 | AG74: 0.8309395872 | AH74: 6.19434188 | AI74: 0.1400500303 | AJ74: 0.366912 | AK74: 0.5215712441 | AL74: 0.366912 | AM74: 0.2395575 | AN74: 0.2458748161 | AO74: 0.0004725 | AP74: 0.1785 | AQ74: 0.48195 | AR74: 0.30345 | AS74: 0.1789725 | AT74: 2.833329948 | AU74: 39 | AV74: =AU74/(AU74+AT74) -> 0.9322709918 | AW74: 49.45237686 | AX74: 30.03126095 | AZ74: =AV74*100 -> 93.22709918 | BA74: 0.4344548896 | BB74: =AG74+AK74+AM74 -> 1.592068331 | BC74: =AG74+AM74*0.66 -> 0.9890475372 | BD74: =AK74+AM74*0.33 -> 0.6006252191 | BE74: =AN74 -> 0.2458748161
A75: Power Dis | B75: =AS9 -> 0.1789725 | C75: W | G75: 66 | H75: 13.5 | I75: 1 | J75: 7.92 | K75: 7.92 | L75: 3.259259259 | M75: 0.375865105 | N75: 2.747034364 | O75: 9.293517182 | P75: 6.546482818 | Q75: 0 | R75: 7.959601109 | S75: 0.1837302245 | T75: 0.25 | U75: 0.440200475 | V75: 0.7930005147 | W75: 0.0006288498164 | X75: 0.0006288498164 | Y75: 3.855196687 | Z75: 0.0148625415 | AA75: 0.0148625415 | AB75: 4.879859386 | AC75: 0.1071586243 | AD75: 0.3890011736 | AE75: 0.3266132625 | AF75: 0 | AG75: 0.8407926982 | AH75: 6.288260665 | AI75: 0.144329111 | AJ75: 0.3725568 | AK75: 0.5322497373 | AL75: 0.3725568 | AM75: 0.243243 | AN75: 0.2534209993 | AO75: 0.0004725 | AP75: 0.1785 | AQ75: 0.48195 | AR75: 0.30345 | AS75: =SUM(AO75:AP75) -> 0.1789725 | AT75: 2.876927601 | AU75: 39.6 | AV75: 0.932270817 | AW75: 50.06665391 | AX75: 30.62599636 | AZ75: 93.2270817 | BA75: 0.440200475 | BB75: 1.616285436 | BC75: 1.001333078 | BD75: 0.6125199273 | BE75: 0.2534209993
A76: Temp rise | B76: =B75*B62 -> 5.369175 | C76: °C | G76: 67 | H76: 13.5 | I76: 1 | J76: 8.04 | K76: 8.04 | L76: 3.308641975 | M76: 0.3759482027 | N76: 2.747352648 | O76: 9.413676324 | P76: 6.666323676 | Q76: 0 | R76: 8.079021943 | S76: 0.1892847271 | T76: 0.25 | U76: 0.4460389967 | V76: 0.7930923954 | W76: 0.0006289955476 | X76: 0.0006289955476 | Y76: 3.913209627 | Z76: 0.01531320959 | AA76: 0.01531320959 | AB76: 4.953621209 | AC76: 0.1104226339 | AD76: 0.3948951308 | AE76: 0.3266132625 | AF76: 0 | AG76: 0.8507187482 | AH76: 6.382180855 | AI76: 0.1486726485 | AJ76: 0.3782016 | AK76: 0.543020714 | AL76: 0.3782016 | AM76: 0.2469285 | AN76: 0.2610823822 | AO76: 0.0004725 | AP76: 0.1785 | AQ76: 0.48195 | AR76: 0.30345 | AS76: 0.1789725 | AT76: 2.920905646 | AU76: 40.2 | AV76: 0.9322624235 | AW76: 50.68457791 | AX76: 31.22535595 | AZ76: 93.22624235 | BA76: 0.4460389967 | BB76: 1.640667962 | BC76: 1.013691558 | BD76: 0.624507119 | BE76: 0.2610823822
A77: Current (switching) | B77: =(Qg_Q1+Qg_Q2)*Fsw+Iq -> 0.035735 | C77: A | G77: 68 | H77: 13.5 | I77: 1 | J77: 8.16 | K77: 8.16 | L77: 3.358024691 | M77: 0.3760312957 | N77: 2.74767077 | O77: 9.533835385 | P77: 6.786164615 | Q77: 0 | R77: 8.198459686 | S77: 0.1949227495 | T77: 0.25 | U77: 0.4519706993 | V77: 0.7931842294 | W77: 0.0006291412217 | X77: 0.0006291412217 | Y77: 3.971235709 | Z77: 0.01577071305 | AA77: 0.01577071305 | AB77: 5.027409495 | AC77: 0.113736808 | AD77: 0.400789088 | AE77: 0.3266132625 | AF77: 0 | AG77: 0.8607182273 | AH77: 6.476101836 | AI77: 0.1530806167 | AJ77: 0.3838464 | AK77: 0.5538848228 | AL77: 0.3838464 | AM77: 0.250614 | AN77: 0.2688589649 | AO77: 0.0004725 | AP77: 0.1785 | AQ77: 0.48195 | AR77: 0.30345 | AS77: 0.1789725 | AT77: 2.965265468 | AU77: 40.8 | AV77: 0.9322461446 | AW77: 51.30617336 | AX77: 31.82937214 | AZ77: 93.22461446 | BA77: 0.4519706993 | BB77: 1.66521705 | BC77: 1.026123467 | BD77: 0.6365874428 | BE77: 0.2688589649
A78: Qrr Current | B78: =Qrr_Q2*Fsw -> 0.0273 | C78: A | G78: 69 | H78: 13.5 | I78: 1 | J78: 8.28 | K78: 8.28 | L78: 3.407407407 | M78: 0.376114384 | N78: 2.747988731 | O78: 9.653994365 | P78: 6.906005635 | Q78: 0 | R78: 8.317913611 | S78: 0.2006442918 | T78: 0.25 | U78: 0.4579958318 | V78: 0.7932760167 | W78: 0.0006292868386 | X78: 0.0006292868386 | Y78: 4.029274574 | Z78: 0.0162350536 | AA78: 0.0162350536 | AB78: 5.101223796 | AC78: 0.117101179 | AD78: 0.4066830452 | AE78: 0.3266132625 | AF78: 0 | AG78: 0.870791632 | AH78: 6.57002303 | AI78: 0.1575529896 | AJ78: 0.3894912 | AK78: 0.5648427214 | AL78: 0.3894912 | AM78: 0.2542995 | AN78: 0.2767507474 | AO78: 0.0004725 | AP78: 0.1785 | AQ78: 0.48195 | AR78: 0.30345 | AS78: 0.1789725 | AT78: 3.010008473 | AU78: 41.4 | AV78: 0.9322222946 | AW78: 51.9314651 | AX78: 32.43807782 | AZ78: 93.22222946 | BA78: 0.4579958318 | BB78: 1.689933853 | BC78: 1.038629302 | BD78: 0.6487615564 | BE78: 0.2767507474
A79: Diode Current | B79: =Deadtime*Fsw*(Iripple_Vinnom/2)*(Vsd_Q2)/Vin -> 0.00240512874 | G79: 70 | H79: 13.5 | I79: 1 | J79: 8.4 | K79: 8.4 | L79: 3.456790123 | M79: 0.3761974678 | N79: 2.748306529 | O79: 9.774153265 | P79: 7.025846735 | Q79: 0 | R79: 8.43738303 | S79: 0.206449354 | T79: 0.25 | U79: 0.4641146475 | V79: 0.7933677573 | W79: 0.0006294323983 | X79: 0.0006294323983 | Y79: 4.087325886 | Z79: 0.0167062329 | AA79: 0.0167062329 | AB79: 5.175063691 | AC79: 0.1205157789 | AD79: 0.4125770024 | AE79: 0.3266132625 | AF79: 0 | AG79: 0.8809394649 | AH79: 6.663943892 | AI79: 0.1620897409 | AJ79: 0.395136 | AK79: 0.5758950777 | AL79: 0.395136 | AM79: 0.257985 | AN79: 0.2847577296 | AO79: 0.0004725 | AP79: 0.1785 | AQ79: 0.48195 | AR79: 0.30345 | AS79: 0.1789725 | AT79: 3.055136085 | AU79: 42 | AV79: 0.9321911695 | AW79: 52.56047825 | AX79: 33.05150639 | AZ79: 93.21911695 | BA79: 0.4641146475 | BB79: 1.714819543 | BC79: 1.051209565 | BD79: 0.6610301277 | BE79: 0.2847577296
A80: Total | B80: =SUM(B77:B79) -> 0.06544012874 | C80: A | G80: 71 | H80: 13.5 | I80: 1 | J80: 8.52 | K80: 8.52 | L80: 3.50617284 | M80: 0.3762805469 | N80: 2.748624167 | O80: 9.894312083 | P80: 7.145687917 | Q80: 0 | R80: 8.556867295 | S80: 0.2123379359 | T80: 0.25 | U80: 0.4703274039 | V80: 0.7934594512 | W80: 0.0006295779008 | X80: 0.0006295779008 | Y80: 4.145389325 | Z80: 0.01718425266 | AA80: 0.01718425266 | AB80: 5.248928779 | AC80: 0.12398064 | AD80: 0.4184709595 | AE80: 0.3266132625 | AF80: 0 | AG80: 0.8911622348 | AH80: 6.757863906 | AI80: 0.1666908447 | AJ80: 0.4007808 | AK80: 0.587042569 | AL80: 0.4007808 | AM80: 0.2616705 | AN80: 0.2928799116 | AO80: 0.0004725 | AP80: 0.1785 | AQ80: 0.48195 | AR80: 0.30345 | AS80: 0.1789725 | AT80: 3.10064975 | AU80: 42.6 | AV80: 0.9321530489 | AW80: 53.19323824 | AX80: 33.6696917 | AZ80: 93.21530489 | BA80: 0.4703274039 | BB80: 1.739875304 | BC80: 1.063864765 | BD80: 0.673393834 | BE80: 0.2928799116
G81: 72 | H81: 13.5 | I81: 1 | J81: 8.64 | K81: 8.64 | L81: 3.555555556 | M81: 0.3763636213 | N81: 2.748941642 | O81: 10.01447082 | P81: 7.265529179 | Q81: 0 | R81: 8.676365791 | S81: 0.2183100377 | T81: 0.25 | U81: 0.476634363 | V81: 0.7935510985 | W81: 0.000629723346 | X81: 0.000629723346 | Y81: 4.203464589 | Z81: 0.01766911455 | AA81: 0.01766911455 | AB81: 5.322818684 | AC81: 0.1274957943 | AD81: 0.4243649167 | AE81: 0.3266132625 | AF81: 0 | AG81: 0.901460457 | AH81: 6.851782586 | AI81: 0.1713562748 | AJ81: 0.4064256 | AK81: 0.5982858828 | AL81: 0.4064256 | AM81: 0.265356 | AN81: 0.3011172934 | AO81: 0.0004725 | AP81: 0.1785 | AQ81: 0.48195 | AR81: 0.30345 | AS81: 0.1789725 | AT81: 3.146550934 | AU81: 43.2 | AV81: 0.9321081964 | AW81: 53.82977085 | AX81: 34.29266814 | AZ81: 93.21081964 | BA81: 0.476634363 | BB81: 1.76510234 | BC81: 1.076595417 | BD81: 0.6858533628 | BE81: 0.3011172934
G82: 73 | H82: 13.5 | I82: 1 | J82: 8.76 | K82: 8.76 | L82: 3.604938272 | M82: 0.3764466911 | N82: 2.749258956 | O82: 10.13462948 | P82: 7.385370522 | Q82: 0 | R82: 8.79587794 | S82: 0.2243656593 | T82: 0.25 | U82: 0.4830357908 | V82: 0.7936426992 | W82: 0.0006298687339 | X82: 0.0006298687339 | Y82: 4.261551392 | Z82: 0.01816082027 | AA82: 0.01816082027 | AB82: 5.396733049 | AC82: 0.1310612742 | AD82: 0.4302588739 | AE82: 0.3266132625 | AF82: 0 | AG82: 0.9118346529 | AH82: 6.94569947 | AI82: 0.1760860051 | AJ82: 0.4120704 | AK82: 0.6096257165 | AL82: 0.4120704 | AM82: 0.2690415 | AN82: 0.3094698749 | AO82: 0.0004725 | AP82: 0.1785 | AQ82: 0.48195 | AR82: 0.30345 | AS82: 0.1789725 | AT82: 3.192841124 | AU82: 43.8 | AV82: 0.9320568613 | AW82: 54.47010214 | AX82: 34.92047058 | AZ82: 93.20568613 | BA82: 0.4830357908 | BB82: 1.790501869 | BC82: 1.089402043 | BD82: 0.6984094115 | BE82: 0.3094698749
G83: 74 | H83: 13.5 | I83: 1 | J83: 8.88 | K83: 8.88 | L83: 3.654320988 | M83: 0.3765297563 | N83: 2.749576108 | O83: 10.25478805 | P83: 7.505211946 | Q83: 0 | R83: 8.915403191 | S83: 0.2305048008 | T83: 0.25 | U83: 0.4895319581 | V83: 0.7937342531 | W83: 0.0006300140646 | X83: 0.0006300140646 | Y83: 4.319649463 | Z83: 0.01865937149 | AA83: 0.01865937149 | AB83: 5.470671536 | AC83: 0.1346771117 | AD83: 0.4361528311 | AE83: 0.3266132625 | AF83: 0 | AG83: 0.9222853508 | AH83: 7.039614124 | AI83: 0.1808800096 | AJ83: 0.4177152 | AK83: 0.6210627778 | AL83: 0.4177152 | AM83: 0.272727 | AN83: 0.3179376563 | AO83: 0.0004725 | AP83: 0.1785 | AQ83: 0.48195 | AR83: 0.30345 | AS83: 0.1789725 | AT83: 3.239521828 | AU83: 44.4 | AV83: 0.9319992791 | AW83: 55.11425854 | AX83: 35.55313439 | AZ83: 93.19992791 | BA83: 0.4895319581 | BB83: 1.816075129 | BC83: 1.102285171 | BD83: 0.7110626878 | BE83: 0.3179376563
G84: 75 | H84: 13.5 | I84: 1 | J84: 9 | K84: 9 | L84: 3.703703704 | M84: 0.3766128168 | N84: 2.749893099 | O84: 10.37494655 | P84: 7.625053451 | Q84: 0 | R84: 9.034941026 | S84: 0.2367274621 | T84: 0.25 | U84: 0.4961231398 | V84: 0.7938257604 | W84: 0.0006301593379 | X84: 0.0006301593379 | Y84: 4.377758546 | Z84: 0.01916476988 | AA84: 0.01916476988 | AB84: 5.544633824 | AC84: 0.1383433391 | AD84: 0.4420467882 | AE84: 0.3266132625 | AF84: 0 | AG84: 0.9328130852 | AH84: 7.133526133 | AI84: 0.1857382621 | AJ84: 0.42336 | AK84: 0.6325977847 | AL84: 0.42336 | AM84: 0.2764125 | AN84: 0.3265206374 | AO84: 0.0004725 | AP84: 0.1785 | AQ84: 0.48195 | AR84: 0.30345 | AS84: 0.1789725 | AT84: 3.286594576 | AU84: 45 | AV84: 0.9319356727 | AW84: 55.76226676 | AX84: 36.19069549 | AZ84: 93.19356727 | BA84: 0.4961231398 | BB84: 1.84182337 | BC84: 1.115245335 | BD84: 0.7238139097 | BE84: 0.3265206374
G85: 76 | H85: 13.5 | I85: 1 | J85: 9.12 | K85: 9.12 | L85: 3.75308642 | M85: 0.3766958727 | N85: 2.750209928 | O85: 10.49510496 | P85: 7.744895036 | Q85: 0 | R85: 9.15449095 | S85: 0.2430336432 | T85: 0.25 | U85: 0.5028096154 | V85: 0.7939172211 | W85: 0.0006303045539 | X85: 0.0006303045539 | Y85: 4.435878395 | Z85: 0.01967701714 | AA85: 0.01967701714 | AB85: 5.618619609 | AC85: 0.1420599884 | AD85: 0.4479407454 | AE85: 0.3266132625 | AF85: 0 | AG85: 0.9434183977 | AH85: 7.227435108 | AI85: 0.1906607366 | AJ85: 0.4290048 | AK85: 0.6442314657 | AL85: 0.4290048 | AM85: 0.280098 | AN85: 0.3352188182 | AO85: 0.0004725 | AP85: 0.1785 | AQ85: 0.48195 | AR85: 0.30345 | AS85: 0.1789725 | AT85: 3.334060919 | AU85: 45.6 | AV85: 0.9318662532 | AW85: 56.41415388 | AX85: 36.83319029 | AZ85: 93.18662532 | BA85: 0.5028096154 | BB85: 1.867747863 | BC85: 1.128283078 | BD85: 0.7366638057 | BE85: 0.3352188182
G86: 77 | H86: 13.5 | I86: 1 | J86: 9.24 | K86: 9.24 | L86: 3.802469136 | M86: 0.3767789239 | N86: 2.750526595 | O86: 10.6152633 | P86: 7.864736702 | Q86: 0 | R86: 9.274052497 | S86: 0.2494233442 | T86: 0.25 | U86: 0.5095916688 | V86: 0.7940086351 | W86: 0.0006304497126 | X86: 0.0006304497126 | Y86: 4.49400878 | Z86: 0.02019611492 | AA86: 0.02019611492 | AB86: 5.692628603 | AC86: 0.1458270919 | AD86: 0.4538347026 | AE86: 0.3266132625 | AF86: 0 | AG86: 0.9541018362 | AH86: 7.321340676 | AI86: 0.1956474069 | AJ86: 0.4346496 | AK86: 0.65596456 | AL86: 0.4346496 | AM86: 0.2837835 | AN86: 0.3440321989 | AO86: 0.0004725 | AP86: 0.1785 | AQ86: 0.48195 | AR86: 0.30345 | AS86: 0.1789725 | AT86: 3.381922428 | AU86: 46.2 | AV86: 0.9317912202 | AW86: 57.06994731 | AX86: 37.48065575 | AZ86: 93.17912202 | BA86: 0.5095916688 | BB86: 1.893849896 | BC86: 1.141398946 | BD86: 0.749613115 | BE86: 0.3440321989
G87: 78 | H87: 13.5 | I87: 1 | J87: 9.36 | K87: 9.36 | L87: 3.851851852 | M87: 0.3768619705 | N87: 2.750843101 | O87: 10.73542155 | P87: 7.984578449 | Q87: 0 | R87: 9.393625222 | S87: 0.255896565 | T87: 0.25 | U87: 0.5164695884 | V87: 0.7941000024 | W87: 0.0006305948139 | X87: 0.0006305948139 | Y87: 4.552149481 | Z87: 0.0207220649 | AA87: 0.0207220649 | AB87: 5.766660532 | AC87: 0.1496446816 | AD87: 0.4597286598 | AE87: 0.3266132625 | AF87: 0 | AG87: 0.9648639558 | AH87: 7.415242486 | AI87: 0.2006982471 | AJ87: 0.4402944 | AK87: 0.6677978174 | AL87: 0.4402944 | AM87: 0.287469 | AN87: 0.3529607793 | AO87: 0.0004725 | AP87: 0.1785 | AQ87: 0.48195 | AR87: 0.30345 | AS87: 0.1789725 | AT87: 3.430180701 | AU87: 46.8 | AV87: 0.9317107633 | AW87: 57.72967479 | AX87: 38.13312937 | AZ87: 93.17107633 | BA87: 0.5164695884 | BB87: 1.920130773 | BC87: 1.154593496 | BD87: 0.7626625874 | BE87: 0.3529607793
G88: 79 | H88: 13.5 | I88: 1 | J88: 9.48 | K88: 9.48 | L88: 3.901234568 | M88: 0.3769450124 | N88: 2.751159445 | O88: 10.85557972 | P88: 8.104420277 | Q88: 0 | R88: 9.513208705 | S88: 0.2624533056 | T88: 0.25 | U88: 0.5234436672 | V88: 0.7941913232 | W88: 0.0006307398578 | X88: 0.0006307398578 | Y88: 4.610300288 | Z88: 0.02125486874 | AA88: 0.02125486874 | AB88: 5.840715135 | AC88: 0.1535127898 | AD88: 0.4656226169 | AE88: 0.3266132625 | AF88: 0 | AG88: 0.9757053183 | AH88: 7.509140202 | AI88: 0.205813231 | AJ88: 0.4459392 | AK88: 0.6797319987 | AL88: 0.4459392 | AM88: 0.2911545 | AN88: 0.3620045594 | AO88: 0.0004725 | AP88: 0.1785 | AQ88: 0.48195 | AR88: 0.30345 | AS88: 0.1789725 | AT88: 3.478837352 | AU88: 47.4 | AV88: 0.9316250619 | AW88: 58.39336442 | AX88: 38.79064919 | AZ88: 93.16250619 | BA88: 0.5234436672 | BB88: 1.946591817 | BC88: 1.167867288 | BD88: 0.7758129837 | BE88: 0.3620045594
G89: 80 | H89: 13.5 | I89: 1 | J89: 9.6 | K89: 9.6 | L89: 3.950617284 | M89: 0.3770280498 | N89: 2.751475628 | O89: 10.97573781 | P89: 8.224262186 | Q89: 0 | R89: 9.632802544 | S89: 0.269093566 | T89: 0.25 | U89: 0.5305142027 | V89: 0.7942825972 | W89: 0.0006308848443 | X89: 0.0006308848443 | Y89: 4.668461001 | Z89: 0.02179452812 | AA89: 0.02179452812 | AB89: 5.914792164 | AC89: 0.1574314486 | AD89: 0.4715165741 | AE89: 0.3266132625 | AF89: 0 | AG89: 0.9866264928 | AH89: 7.603033506 | AI89: 0.2109923325 | AJ89: 0.451584 | AK89: 0.6917678761 | AL89: 0.451584 | AM89: 0.29484 | AN89: 0.3711635394 | AO89: 0.0004725 | AP89: 0.1785 | AQ89: 0.48195 | AR89: 0.30345 | AS89: 0.1789725 | AT89: 3.527894024 | AU89: 48 | AV89: 0.9315342866 | AW89: 59.06104464 | AX89: 39.4532538 | AZ89: 93.15342866 | BA89: 0.5305142027 | BB89: 1.973234369 | BC89: 1.181220893 | BD89: 0.7890650761 | BE89: 0.3711635394
G90: 81 | H90: 13.5 | I90: 1 | J90: 9.72 | K90: 9.72 | L90: 4 | M90: 0.3771110824 | N90: 2.751791649 | O90: 11.09589582 | P90: 8.344104175 | Q90: 0 | R90: 9.752406358 | S90: 0.2758173463 | T90: 0.25 | U90: 0.537681497 | V90: 0.7943738247 | W90: 0.0006310297734 | X90: 0.0006310297734 | Y90: 4.726631432 | Z90: 0.02234104469 | AA90: 0.02234104469 | AB90: 5.988891384 | AC90: 0.1614006901 | AD90: 0.4774105313 | AE90: 0.3266132625 | AF90: 0 | AG90: 0.9976280551 | AH90: 7.696922097 | AI90: 0.2162355256 | AJ90: 0.4572288 | AK90: 0.7039062325 | AL90: 0.4572288 | AM90: 0.2985255 | AN90: 0.3804377191 | AO90: 0.0004725 | AP90: 0.1785 | AQ90: 0.48195 | AR90: 0.30345 | AS90: 0.1789725 | AT90: 3.577352378 | AU90: 48.6 | AV90: 0.931438599 | AW90: 59.73274426 | AX90: 40.12098237 | AZ90: 93.1438599 | BA90: 0.537681497 | BB90: 2.000059788 | BC90: 1.194654885 | BD90: 0.8024196475 | BE90: 0.3804377191
G91: 82 | H91: 13.5 | I91: 1 | J91: 9.84 | K91: 9.84 | L91: 4.049382716 | M91: 0.3771941105 | N91: 2.752107509 | O91: 11.21605375 | P91: 8.463946246 | Q91: 0 | R91: 9.872019785 | S91: 0.2826246465 | T91: 0.25 | U91: 0.5449458569 | V91: 0.7944650055 | W91: 0.000631174645 | X91: 0.000631174645 | Y91: 4.784811399 | Z91: 0.02289442012 | AA91: 0.02289442012 | AB91: 6.06301257 | AC91: 0.1654205464 | AD91: 0.4833044885 | AE91: 0.3266132625 | AF91: 0 | AG91: 1.008710589 | AH91: 7.790805685 | AI91: 0.2215427843 | AJ91: 0.4628736 | AK91: 0.7161478625 | AL91: 0.4628736 | AM91: 0.302211 | AN91: 0.3898270986 | AO91: 0.0004725 | AP91: 0.1785 | AQ91: 0.48195 | AR91: 0.30345 | AS91: 0.1789725 | AT91: 3.627214101 | AU91: 49.2 | AV91: 0.9313381528 | AW91: 60.40849244 | AX91: 40.79387463 | AZ91: 93.13381528 | BA91: 0.5449458569 | BB91: 2.027069451 | BC91: 1.208169849 | BD91: 0.8158774925 | BE91: 0.3898270986
G92: 83 | H92: 13.5 | I92: 1 | J92: 9.96 | K92: 9.96 | L92: 4.098765432 | M92: 0.3772771339 | N92: 2.752423207 | O92: 11.3362116 | P92: 8.583788397 | Q92: 0 | R92: 9.991642481 | S92: 0.2895154664 | T92: 0.25 | U92: 0.5523075937 | V92: 0.7945561397 | W92: 0.0006313194592 | X92: 0.0006313194592 | Y92: 4.843000729 | Z92: 0.02345465606 | AA92: 0.02345465606 | AB92: 6.137155507 | AC92: 0.1694910497 | AD92: 0.4891984456 | AE92: 0.3266132625 | AF92: 0 | AG92: 1.019874684 | AH92: 7.884683997 | AI92: 0.2269140824 | AJ92: 0.4685184 | AK92: 0.7284935724 | AL92: 0.4685184 | AM92: 0.3058965 | AN92: 0.3993316778 | AO92: 0.0004725 | AP92: 0.1785 | AQ92: 0.48195 | AR92: 0.30345 | AS92: 0.1789725 | AT92: 3.677480904 | AU92: 49.8 | AV92: 0.931233094 | AW92: 61.0883187 | AX92: 41.47197087 | AZ92: 93.1233094 | BA92: 0.5523075937 | BB92: 2.054264756 | BC92: 1.221766374 | BD92: 0.8294394174 | BE92: 0.3993316778
G93: 84 | H93: 13.5 | I93: 1 | J93: 10.08 | K93: 10.08 | L93: 4.148148148 | M93: 0.3773601526 | N93: 2.752738744 | O93: 11.45636937 | P93: 8.703630628 | Q93: 0 | R93: 10.11127411 | S93: 0.2964898062 | T93: 0.25 | U93: 0.5597670235 | V93: 0.7946472273 | W93: 0.0006314642159 | X93: 0.0006314642159 | Y93: 4.901199258 | Z93: 0.02402175417 | AA93: 0.02402175417 | AB93: 6.211319992 | AC93: 0.1736122322 | AD93: 0.4950924028 | AE93: 0.3266132625 | AF93: 0 | AG93: 1.031120939 | AH93: 7.978556772 | AI93: 0.2323493938 | AJ93: 0.4741632 | AK93: 0.74094418 | AL93: 0.4741632 | AM93: 0.309582 | AN93: 0.4089514569 | AO93: 0.0004725 | AP93: 0.1785 | AQ93: 0.48195 | AR93: 0.30345 | AS93: 0.1789725 | AT93: 3.728154518 | AU93: 50.4 | AV93: 0.9311235613 | AW93: 61.77225296 | AX93: 42.155312 | AZ93: 93.11235613 | BA93: 0.5597670235 | BB93: 2.081647119 | BC93: 1.235445059 | BD93: 0.84310624 | BE93: 0.4089514569
G94: 85 | H94: 13.5 | I94: 1 | J94: 10.2 | K94: 10.2 | L94: 4.197530864 | M94: 0.3774431667 | N94: 2.753054119 | O94: 11.57652706 | P94: 8.823472941 | Q94: 0 | R94: 10.23091437 | S94: 0.3035476659 | T94: 0.25 | U94: 0.5673244673 | V94: 0.7947382683 | W94: 0.000631608915 | X94: 0.000631608915 | Y94: 4.959406829 | Z94: 0.0245957161 | AA94: 0.0245957161 | AB94: 6.28550583 | AC94: 0.1777841259 | AD94: 0.50098636 | AE94: 0.3266132625 | AF94: 0 | AG94: 1.042449959 | AH94: 8.072423761 | AI94: 0.2378486926 | AJ94: 0.479808 | AK94: 0.7535005151 | AL94: 0.479808 | AM94: 0.3132675 | AN94: 0.4186864357 | AO94: 0.0004725 | AP94: 0.1785 | AQ94: 0.48195 | AR94: 0.30345 | AS94: 0.1789725 | AT94: 3.779236702 | AU94: 51 | AV94: 0.9310096867 | AW94: 62.46032547 | AX94: 42.84393951 | AZ94: 93.10096867 | BA94: 0.5673244673 | BB94: 2.109217974 | BC94: 1.249206509 | BD94: 0.8568787901 | BE94: 0.4186864357
G95: 86 | H95: 13.5 | I95: 1 | J95: 10.32 | K95: 10.32 | L95: 4.24691358 | M95: 0.3775261762 | N95: 2.753369332 | O95: 11.69668467 | P95: 8.943315334 | Q95: 0 | R95: 10.35056296 | S95: 0.3106890453 | T95: 0.25 | U95: 0.5749802505 | V95: 0.7948292626 | W95: 0.0006317535567 | X95: 0.0006317535567 | Y95: 5.017623291 | Z95: 0.02517654349 | AA95: 0.02517654349 | AB95: 6.359712834 | AC95: 0.182006763 | AD95: 0.5068803172 | AE95: 0.3266132625 | AF95: 0 | AG95: 1.053862358 | AH95: 8.166284726 | AI95: 0.2434119527 | AJ95: 0.4854528 | AK95: 0.7661634195 | AL95: 0.4854528 | AM95: 0.316953 | AN95: 0.4285366142 | AO95: 0.0004725 | AP95: 0.1785 | AQ95: 0.48195 | AR95: 0.30345 | AS95: 0.1789725 | AT95: 3.830729239 | AU95: 51.6 | AV95: 0.9308915958 | AW95: 63.1525669 | AX95: 43.53789548 | AZ95: 93.08915958 | BA95: 0.5749802505 | BB95: 2.136978777 | BC95: 1.263051338 | BD95: 0.8707579095 | BE95: 0.4285366142
G96: 87 | H96: 13.5 | I96: 1 | J96: 10.44 | K96: 10.44 | L96: 4.296296296 | M96: 0.3776091811 | N96: 2.753684385 | O96: 11.81684219 | P96: 9.063157808 | Q96: 0 | R96: 10.47021958 | S96: 0.3179139446 | T96: 0.25 | U96: 0.5827347037 | V96: 0.7949202104 | W96: 0.0006318981408 | X96: 0.0006318981408 | Y96: 5.075848501 | Z96: 0.02576423801 | AA96: 0.02576423801 | AB96: 6.433940828 | AC96: 0.1862801756 | AD96: 0.5127742744 | AE96: 0.3266132625 | AF96: 0 | AG96: 1.065358756 | AH96: 8.26013944 | AI96: 0.249039148 | AJ96: 0.4910976 | AK96: 0.7789337474 | AL96: 0.4910976 | AM96: 0.3206385 | AN96: 0.4385019926 | AO96: 0.0004725 | AP96: 0.1785 | AQ96: 0.48195 | AR96: 0.30345 | AS96: 0.1789725 | AT96: 3.882633935 | AU96: 52.2 | AV96: 0.9307694082 | AW96: 63.84900828 | AX96: 44.23722262 | AZ96: 93.07694082 | BA96: 0.5827347037 | BB96: 2.164931003 | BC96: 1.276980166 | BD96: 0.8847444524 | BE96: 0.4385019926
G97: 88 | H97: 13.5 | I97: 1 | J97: 10.56 | K97: 10.56 | L97: 4.345679012 | M97: 0.3776921813 | N97: 2.753999275 | O97: 11.93699964 | P97: 9.183000362 | Q97: 0 | R97: 10.58988398 | S97: 0.3252223637 | T97: 0.25 | U97: 0.590588162 | V97: 0.7950111115 | W97: 0.0006320426674 | X97: 0.0006320426674 | Y97: 5.134082322 | Z97: 0.02635880129 | AA97: 0.02635880129 | AB97: 6.508189641 | AC97: 0.1906043958 | AD97: 0.5186682315 | AE97: 0.3266132625 | AF97: 0 | AG97: 1.076939781 | AH97: 8.353987687 | AI97: 0.2547302525 | AJ97: 0.4967424 | AK97: 0.7918123652 | AL97: 0.4967424 | AM97: 0.324324 | AN97: 0.4485825707 | AO97: 0.0004725 | AP97: 0.1785 | AQ97: 0.48195 | AR97: 0.30345 | AS97: 0.1789725 | AT97: 3.934952623 | AU97: 52.8 | AV97: 0.9306432377 | AW97: 64.54968105 | AX97: 44.94196426 | AZ97: 93.06432377 | BA97: 0.590588162 | BB97: 2.193076146 | BC97: 1.290993621 | BD97: 0.8988392852 | BE97: 0.4485825707
G98: 89 | H98: 13.5 | I98: 1 | J98: 10.68 | K98: 10.68 | L98: 4.395061728 | M98: 0.3777751769 | N98: 2.754314005 | O98: 12.057157 | P98: 9.302842998 | Q98: 0 | R98: 10.70955588 | S98: 0.3326143027 | T98: 0.25 | U98: 0.5985409656 | V98: 0.795101966 | W98: 0.0006321871364 | X98: 0.0006321871364 | Y98: 5.192324621 | Z98: 0.02696023497 | AA98: 0.02696023497 | AB98: 6.58245911 | AC98: 0.1949794557 | AD98: 0.5245621887 | AE98: 0.3266132625 | AF98: 0 | AG98: 1.088606071 | AH98: 8.447829259 | AI98: 0.2604852401 | AJ98: 0.5023872 | AK98: 0.8048001522 | AL98: 0.5023872 | AM98: 0.3280095 | AN98: 0.4587783485 | AO98: 0.0004725 | AP98: 0.1785 | AQ98: 0.48195 | AR98: 0.30345 | AS98: 0.1789725 | AT98: 3.987687159 | AU98: 53.4 | AV98: 0.9305131927 | AW98: 65.25461704 | AX98: 45.65216436 | AZ98: 93.05131927 | BA98: 0.5985409656 | BB98: 2.221415723 | BC98: 1.305092341 | BD98: 0.9130432872 | BE98: 0.4587783485
G99: 90 | H99: 13.5 | I99: 1 | J99: 10.8 | K99: 10.8 | L99: 4.444444444 | M99: 0.3778581678 | N99: 2.754628573 | O99: 12.17731429 | P99: 9.422685714 | Q99: 0 | R99: 10.82923504 | S99: 0.3400897615 | T99: 0.25 | U99: 0.6065934595 | V99: 0.795192774 | W99: 0.0006323315478 | X99: 0.0006323315478 | Y99: 5.250575273 | Z99: 0.02756854069 | AA99: 0.02756854069 | AB99: 6.656749081 | AC99: 0.1994053875 | AD99: 0.5304561459 | AE99: 0.3266132625 | AF99: 0 | AG99: 1.100358269 | AH99: 8.541663961 | AI99: 0.2663040847 | AJ99: 0.508032 | AK99: 0.8178980004 | AL99: 0.508032 | AM99: 0.331695 | AN99: 0.4690893262 | AO99: 0.0004725 | AP99: 0.1785 | AQ99: 0.48195 | AR99: 0.30345 | AS99: 0.1789725 | AT99: 4.040839428 | AU99: 54 | AV99: 0.9303793765 | AW99: 65.96384846 | AX99: 46.36786752 | AZ99: 93.03793765 | BA99: 0.6065934595 | BB99: 2.24995127 | BC99: 1.319276969 | BD99: 0.9273573504 | BE99: 0.4690893262
G100: 91 | H100: 13.5 | I100: 1 | J100: 10.92 | K100: 10.92 | L100: 4.49382716 | M100: 0.3779411541 | N100: 2.754942979 | O100: 12.29747149 | P100: 9.54252851 | Q100: 0 | R100: 10.94892122 | S100: 0.3476487401 | T100: 0.25 | U100: 0.6147459937 | V100: 0.7952835353 | W100: 0.0006324759015 | X100: 0.0006324759015 | Y100: 5.308834157 | Z100: 0.0281837201 | AA100: 0.0281837201 | AB100: 6.731059405 | AC100: 0.2038822232 | AD100: 0.5363501031 | AE100: 0.3266132625 | AF100: 0 | AG100: 1.112197029 | AH100: 8.635491601 | AI100: 0.2721867605 | AJ100: 0.5136768 | AK100: 0.8311068148 | AL100: 0.5136768 | AM100: 0.3353805 | AN100: 0.4795155036 | AO100: 0.0004725 | AP100: 0.1785 | AQ100: 0.48195 | AR100: 0.30345 | AS100: 0.1789725 | AT100: 4.094411337 | AU100: 54.6 | AV100: 0.9302418877 | AW100: 66.67740797 | AX100: 47.08911899 | AZ100: 93.02418877 | BA100: 0.6147459937 | BB100: 2.278684344 | BC100: 1.333548159 | BD100: 0.9417823798 | BE100: 0.4795155036
G101: 92 | H101: 13.5 | I101: 1 | J101: 11.04 | K101: 11.04 | L101: 4.543209877 | M101: 0.3780241358 | N101: 2.755257224 | O101: 12.41762861 | P101: 9.662371388 | Q101: 0 | R101: 11.06861419 | S101: 0.3552912386 | T101: 0.25 | U101: 0.6229989233 | V101: 0.7953742501 | W101: 0.0006326201977 | X101: 0.0006326201977 | Y101: 5.367101157 | Z101: 0.02880577483 | AA101: 0.02880577483 | AB101: 6.805389938 | AC101: 0.2084099949 | AD101: 0.5422440602 | AE101: 0.3266132625 | AF101: 0 | AG101: 1.124123012 | AH101: 8.729312 | AI101: 0.2781332412 | AJ101: 0.5193216 | AK101: 0.8444275134 | AL101: 0.5193216 | AM101: 0.339066 | AN101: 0.4900568808 | AO101: 0.0004725 | AP101: 0.1785 | AQ101: 0.48195 | AR101: 0.30345 | AS101: 0.1789725 | AT101: 4.148404824 | AU101: 55.2 | AV101: 0.9301008201 | AW101: 67.3953286 | AX101: 47.81596467 | AZ101: 93.01008201 | BA101: 0.6229989233 | BB101: 2.307616525 | BC101: 1.347906572 | BD101: 0.9563192934 | BE101: 0.4900568808
G102: 93 | H102: 13.5 | I102: 1 | J102: 11.16 | K102: 11.16 | L102: 4.592592593 | M102: 0.3781071128 | N102: 2.755571308 | O102: 12.53778565 | P102: 9.782214346 | Q102: 0 | R102: 11.18831374 | S102: 0.3630172569 | T102: 0.25 | U102: 0.6313526082 | V102: 0.7954649182 | W102: 0.0006327644362 | X102: 0.0006327644362 | Y102: 5.425376162 | Z102: 0.0294347065 | AA102: 0.0294347065 | AB102: 6.879740545 | AC102: 0.2129887348 | AD102: 0.5481380174 | AE102: 0.3266132625 | AF102: 0 | AG102: 1.136136886 | AH102: 8.823124984 | AI102: 0.2841435008 | AJ102: 0.5249664 | AK102: 0.857861028 | AL102: 0.5249664 | AM102: 0.3427515 | AN102: 0.5007134577 | AO102: 0.0004725 | AP102: 0.1785 | AQ102: 0.48195 | AR102: 0.30345 | AS102: 0.1789725 | AT102: 4.202821851 | AU102: 55.8 | AV102: 0.9299562634 | AW102: 68.11764382 | AX102: 48.54845115 | AZ102: 92.99562634 | BA102: 0.6313526082 | BB102: 2.336749414 | BC102: 1.362352876 | BD102: 0.970969023 | BE102: 0.5007134577
G103: 94 | H103: 13.5 | I103: 1 | J103: 11.28 | K103: 11.28 | L103: 4.641975309 | M103: 0.3781900852 | N103: 2.75588523 | O103: 12.65794262 | P103: 9.902057385 | Q103: 0 | R103: 11.30801966 | S103: 0.370826795 | T103: 0.25 | U103: 0.6398074136 | V103: 0.7955555398 | W103: 0.000632908617 | X103: 0.000632908617 | Y103: 5.483659066 | Z103: 0.03007051675 | AA103: 0.03007051675 | AB103: 6.954111093 | AC103: 0.2176184749 | AD103: 0.5540319746 | AE103: 0.3266132625 | AF103: 0 | AG103: 1.14823933 | AH103: 8.916930387 | AI103: 0.2902175134 | AJ103: 0.5306112 | AK103: 0.8714083037 | AL103: 0.5306112 | AM103: 0.346437 | AN103: 0.5114852345 | AO103: 0.0004725 | AP103: 0.1785 | AQ103: 0.48195 | AR103: 0.30345 | AS103: 0.1789725 | AT103: 4.257664408 | AU103: 56.4 | AV103: 0.9298083029 | AW103: 68.84438752 | AX103: 49.28662568 | AZ103: 92.98083029 | BA103: 0.6398074136 | BB103: 2.366084634 | BC103: 1.37688775 | BD103: 0.9857325137 | BE103: 0.5114852345
G104: 95 | H104: 13.5 | I104: 1 | J104: 11.4 | K104: 11.4 | L104: 4.691358025 | M104: 0.3782730529 | N104: 2.756198992 | O104: 12.7780995 | P104: 10.0219005 | Q104: 0 | R104: 11.42773174 | S104: 0.3787198529 | T104: 0.25 | U104: 0.6483637096 | V104: 0.7956461149 | W104: 0.0006330527401 | X104: 0.0006330527401 | Y104: 5.541949765 | Z104: 0.0307132072 | AA104: 0.0307132072 | AB104: 7.028501459 | AC104: 0.2222992474 | AD104: 0.5599259318 | AE104: 0.3266132625 | AF104: 0 | AG104: 1.160431031 | AH104: 9.01072805 | AI104: 0.296355253 | AJ104: 0.536256 | AK104: 0.8850702994 | AL104: 0.536256 | AM104: 0.3501225 | AN104: 0.522372211 | AO104: 0.0004725 | AP104: 0.1785 | AQ104: 0.48195 | AR104: 0.30345 | AS104: 0.1789725 | AT104: 4.312934511 | AU104: 57 | AV104: 0.9296570203 | AW104: 69.57559403 | AX104: 50.03053622 | AZ104: 92.96570203 | BA104: 0.6483637096 | BB104: 2.39562383 | BC104: 1.391511881 | BD104: 1.000610724 | BE104: 0.522372211
G105: 96 | H105: 13.5 | I105: 1 | J105: 11.52 | K105: 11.52 | L105: =Vout*K105/(Vin*Efficiency) -> 4.740740741 | M105: 0.3783560161 | N105: =(Vin-(Rdson1+Rdcr)*K105-Vout)*M105/(Fsw*Lf) -> 2.756512591 | O105: 12.8982563 | P105: 10.1417437 | Q105: =IF(MIN(Vin, -P105/(Coss_Q1+Coss_Q2)*0.00000002)<0, 0, MIN(Vin, -P105/(Coss_Q1+Coss_Q2)*0.00000002)) -> 0 | R105: 11.5474498 | S105: =R105^2*Rdcr -> 0.3866964307 | T105: 0.25 | U105: =(T105+S105*(1+Ltc*(Ta-25)))/(1-S105*Ltc*ThetaCa) -> 0.6570218718 | V105: 0.7957366433 | W105: 0.0006331968055 | X105: 0.0006331968055 | Y105: 5.600248163 | Z105: 0.03136277949 | AA105: 0.03136277949 | AB105: 7.10291152 | AC105: =Rdson1*AB105^2 -> 0.2270310842 | AD105: 0.5658198889 | AE105: 0.3266132625 | AF105: 0 | AG105: =(AF105+AE105+AD105+AC105*(1+RdsonTopTc*Ta-RdsonTopTc*25))/(1-AC105*RdsonTopTc*ThetaJA_Q1) -> 1.172712682 | AH105: 9.104517821 | AI105: =Rdson2*AH105^2 -> 0.3025566933 | AJ105: 0.5419008 | AK105: =(AJ105+AI105*(1+RdsonBotTc*Ta-RdsonBotTc*25))/(1-AI105*RdsonBotTc*ThetaJA_Q2) -> 0.8988479884 | AL105: 0.5419008 | AM105: 0.353808 | AN105: 0.5333743872 | AO105: 0.0004725 | AP105: 0.1785 | AQ105: 0.48195 | AR105: 0.30345 | AS105: 0.1789725 | AT105: =SUM(U105,X105,AA105,AG105,AK105,AL105,AM105,AS105,AN105) -> 4.368634206 | AU105: 57.6 | AV105: 0.9295024933 | AW105: 70.3112981 | AX105: 50.78023142 | AZ105: 92.95024933 | BA105: 0.6570218718 | BB105: 2.42536867 | BC105: 1.406225962 | BD105: 1.015604628 | BE105: 0.5333743872
G106: 97 | H106: 13.5 | I106: 1 | J106: 11.64 | K106: 11.64 | L106: 4.790123457 | M106: 0.3784389746 | N106: 2.75682603 | O106: 13.01841301 | P106: 10.26158699 | Q106: 0 | R106: 11.66717364 | S106: 0.3947565284 | T106: 0.25 | U106: 0.6657822805 | V106: 0.7958271252 | W106: 0.0006333408131 | X106: 0.0006333408131 | Y106: 5.658554164 | Z106: 0.03201923522 | AA106: 0.03201923522 | AB106: 7.177341161 | AC106: 0.2318140176 | AD106: 0.5717138461 | AE106: 0.3266132625 | AF106: 0 | AG106: 1.185084989 | AH106: 9.198299554 | AI106: 0.3088218086 | AJ106: 0.5475456 | AK106: 0.9127423577 | AL106: 0.5475456 | AM106: 0.3574935 | AN106: 0.5444917633 | AO106: 0.0004725 | AP106: 0.1785 | AQ106: 0.48195 | AR106: 0.30345 | AS106: 0.1789725 | AT106: 4.424765566 | AU106: 58.2 | AV106: 0.9293447963 | AW106: 71.05153494 | AX106: 51.53576064 | AZ106: 92.93447963 | BA106: 0.6657822805 | BB106: 2.455320846 | BC106: 1.421030699 | BD106: 1.030715213 | BE106: 0.5444917633
G107: 98 | H107: 13.5 | I107: 1 | J107: 11.76 | K107: 11.76 | L107: 4.839506173 | M107: 0.3785219284 | N107: 2.757139307 | O107: 13.13856965 | P107: 10.38143035 | Q107: 0 | R107: 11.7869031 | S107: 0.4029001458 | T107: 0.25 | U107: 0.6746453217 | V107: 0.7959175605 | W107: 0.0006334847631 | X107: 0.0006334847631 | Y107: 5.716867676 | Z107: 0.03268257603 | AA107: 0.03268257603 | AB107: 7.25179027 | AC107: 0.2366480795 | AD107: 0.5776078033 | AE107: 0.3266132625 | AF107: 0 | AG107: 1.197548664 | AH107: 9.292073108 | AI107: 0.3151505726 | AJ107: 0.5531904 | AK107: 0.9267544092 | AL107: 0.5531904 | AM107: 0.361179 | AN107: 0.5557243391 | AO107: 0.0004725 | AP107: 0.1785 | AQ107: 0.48195 | AR107: 0.30345 | AS107: 0.1789725 | AT107: 4.481330694 | AU107: 58.8 | AV107: 0.9291840003 | AW107: 71.79634018 | AX107: 52.29717396 | AZ107: 92.91840003 | BA107: 0.6746453217 | BB107: 2.485482073 | BC107: 1.435926804 | BD107: 1.045943479 | BE107: 0.5557243391
G108: 99 | H108: 13.5 | I108: 1 | J108: 11.88 | K108: 11.88 | L108: 4.888888889 | M108: 0.3786048776 | N108: 2.757452423 | O108: 13.25872621 | P108: 10.50127379 | Q108: 0 | R108: 11.90663801 | S108: 0.4111272831 | T108: 0.25 | U108: 0.6836113865 | V108: 0.7960079492 | W108: 0.0006336286552 | X108: 0.0006336286552 | Y108: 5.775188613 | Z108: 0.03335280352 | AA108: 0.03335280352 | AB108: 7.326258741 | AC108: 0.2415333021 | AD108: 0.5835017605 | AE108: 0.3266132625 | AF108: 0 | AG108: 1.210104429 | AH108: 9.385838349 | AI108: 0.3215429595 | AJ108: 0.5588352 | AK108: 0.9408851593 | AL108: 0.5588352 | AM108: 0.3648645 | AN108: 0.5670721146 | AO108: 0.0004725 | AP108: 0.1785 | AQ108: 0.48195 | AR108: 0.30345 | AS108: 0.1789725 | AT108: 4.538331721 | AU108: 59.4 | AV108: 0.929020173 | AW108: 72.54574994 | AX108: 53.06452221 | AZ108: 92.9020173 | BA108: 0.6836113865 | BB108: 2.515854088 | BC108: 1.450914999 | BD108: 1.061290444 | BE108: 0.5670721146
G109: 100 | H109: 13.5 | I109: 1 | J109: 12 | K109: 12 | L109: 4.938271605 | M109: 0.3786878222 | N109: 2.757765377 | O109: 13.37888269 | P109: 10.62111731 | Q109: 0 | R109: 12.0263782 | S109: 0.4194379402 | T109: 0.25 | U109: 0.6926808712 | V109: 0.7960982914 | W109: 0.0006337724896 | X109: 0.0006337724896 | Y109: 5.833516891 | Z109: 0.03402991931 | AA109: 0.03402991931 | AB109: 7.400746471 | AC109: 0.2464697175 | AD109: 0.5893957176 | AE109: 0.3266132625 | AF109: 0 | AG109: 1.222753016 | AH109: 9.479595148 | AI109: 0.3279989432 | AJ109: 0.56448 | AK109: 0.9551356392 | AL109: 0.56448 | AM109: 0.36855 | AN109: 0.57853509 | AO109: 0.0004725 | AP109: 0.1785 | AQ109: 0.48195 | AR109: 0.30345 | AS109: 0.1789725 | AT109: 4.595770808 | AU109: 60 | AV109: 0.9288533792 | AW109: 73.29980078 | AX109: 53.83785696 | AZ109: 92.88533792 | BA109: 0.6926808712 | BB109: 2.546438655 | BC109: 1.465996016 | BD109: 1.076757139 | BE109: 0.57853509

Sheet Efficiency Plot Management (hidden)
A2: =IF(PLOT_TYPE=1, "EFF_Ch1", "EFF_Ch2") -> EFF_Ch1

Sheet Schematic Management (hidden)
N1: 3.3V or 5V fixed (FB1/2)
A2: =IF(DITHER=1, CHOOSE(SCH_SETTING, "SCH_ADJ_VOUT", "SCH_5V_FIXED", "SCH_3V3_FIXED", "SCH_ADJ_VOUT_NO_RT", "SCH_5V_FIXED_NO_RT", "SCH_3V3_FIXED_NO_RT"), CHOOSE(SCH_SETTING, "SCH_ADJ_VOUT_NO_DITH", "SCH_5V_FIXED_NO_DITH", "SCH_3V3_FIXED_NO_DITH", "SCH_ADJ_VOUT_NO_RT_NO_DITH", "SCH_5V_FIXED_NO_RT_NO_DITH", "SCH_3V3_FIXED_NO_RT_NO_DITH")) -> SCH_5V_FIXED | J2: With/without dither (DITH) | N2: With/without VOUT connected to VCCX
J3: FPWM or DEM (DEMB)
J4: Shunt or inductor DCR current sensing

Sheet Standard Value Calculator (hidden)
A2: Capacitors | B2: Css | C2: Cc1ea | D2: Cc2ea | E2: Cout | F2: Cin | G2: Cres | H2: Cdither | I2: Cc3ea | J2: Cc4ea
A3: Inputs | B3: =Css -> 5.5e-08 | C3: =Cc1ea -> 4.9667247e-09 | D3: =Cc2ea -> -3.449704656e-12 | E3: =Cout -> 8.5e-05 | F3: =Cin -> 3e-05 | G3: =Cres -> 3.333333333e-07 | H3: =Cdither_init -> 1.041666667e-08 | I3: =Cc3ea -> 0 | J3: =Cc4ea -> 0 | M3: Resistors | N3: inputs | O3: Standard Result
A4: Standard Result | B4: =SUM(B6:B158)/1000000000000 -> 5.6e-08 | C4: =IF(C3="OPEN","OPEN",SUM(C6:C158)/1000000000000) -> 4.7e-09 | D4: =SUM(D6:D158)/1000000000000 -> 0 | E4: =SUM(E6:E158)/1000000000000 -> 8.2e-05 | F4: =SUM(F6:F158)/1000000000000 -> 3.3e-05 | G4: =SUM(G6:G158)/1000000000000 -> 3.3e-07 | H4: =IF(H3="OPEN","OPEN",SUM(H6:H158)/1000000000000) -> 1e-08 | I4: 0 | J4: 0 | M4: Rt | N4: =Rfadj -> 52.3 | O4: =IF(N4>(INT(0.5+100*POWER(10,IF(96*(LOG(N4)-INT(LOG(N4)))-ROUND(96*(LOG(N4)-INT(LOG(N4))),0)<0,ROUND(96*(LOG(N4)-INT(LOG(N4))),0)-1,ROUND(96*(LOG(N4)-INT(LOG(N4))),0))/96))*POWER(10,INT(LOG(N4))-2)+INT(0.5+100*POWER(10,(IF(96*(LOG(N4)-INT(LOG(N4)))-ROUND(96*(LOG(N4)-INT(LOG(N4))),0)<0,ROUND(96*(LOG(N4)-INT(LOG(N4))),0)-1,ROUND(96*(LOG(N4)-INT(LOG(N4))),0))+1)/96))*POWER(10,INT(LOG(N4))-2))/2,INT(0.5+100*POWER(10,(IF(96*(LOG(N4)-INT(LOG(N4)))-ROUND(96*(LOG(N4)-INT(LOG(N4))),0)<0,ROUND(96*(LOG(N4)-INT(LOG(N4))),0)-1,ROUND(96*(LOG(N4)-INT(LOG(N4))),0))+1)/96))*POWER(10,INT(LOG(N4))-2),INT(0.5+100*POWER(10,IF(96*(LOG(N4)-INT(LOG(N4)))-ROUND(96*(LOG(N4)-INT(LOG(N4))),0)<0,ROUND(96*(LOG(N4)-INT(LOG(N4))),0)-1,ROUND(96*(LOG(N4)-INT(LOG(N4))),0))/96))*POWER(10,INT(LOG(N4))-2)) -> 52.3 | P4: Ω
A5: (pF)
A6: 0.47 | B6: =IF(IF((B$3*10^12-$A7)*(B$3*10^12-$A6)*-1<0,0,1)*IF(ABS(B$3*10^12-$A7)>(B$3*10^12-$A6),$A6,$A7)=B7,0,IF((B$3*10^12-$A7)*(B$3*10^12-$A6)*-1<0,0,1)*IF(ABS(B$3*10^12-$A7)>(B$3*10^12-$A6),$A6,$A7)) -> 0 | C6: 0 | D6: 0 | E6: 0 | F6: 0 | G6: 0 | H6: 0 | I6: 0 | J6: 0
A7: 0.56 | B7: =IF(IF((B$3*10^12-$A8)*(B$3*10^12-$A7)*-1<0,0,1)*IF(ABS(B$3*10^12-$A8)>(B$3*10^12-$A7),$A7,$A8)=B8,0,IF((B$3*10^12-$A8)*(B$3*10^12-$A7)*-1<0,0,1)*IF(ABS(B$3*10^12-$A8)>(B$3*10^12-$A7),$A7,$A8)) -> 0 | C7: =IF(IF((C$3*10^12-$A8)*(C$3*10^12-$A7)*-1<0,0,1)*IF(ABS(C$3*10^12-$A8)>(C$3*10^12-$A7),$A7,$A8)=C8,0,IF((C$3*10^12-$A8)*(C$3*10^12-$A7)*-1<0,0,1)*IF(ABS(C$3*10^12-$A8)>(C$3*10^12-$A7),$A7,$A8)) -> 0 | D7: =IF(IF((D$3*10^12-$A8)*(D$3*10^12-$A7)*-1<0,0,1)*IF(ABS(D$3*10^12-$A8)>(D$3*10^12-$A7),$A7,$A8)=D8,0,IF((D$3*10^12-$A8)*(D$3*10^12-$A7)*-1<0,0,1)*IF(ABS(D$3*10^12-$A8)>(D$3*10^12-$A7),$A7,$A8)) -> 0 | E7: =IF(IF((E$3*10^12-$A8)*(E$3*10^12-$A7)*-1<0,0,1)*IF(ABS(E$3*10^12-$A8)>(E$3*10^12-$A7),$A7,$A8)=E8,0,IF((E$3*10^12-$A8)*(E$3*10^12-$A7)*-1<0,0,1)*IF(ABS(E$3*10^12-$A8)>(E$3*10^12-$A7),$A7,$A8)) -> 0 | F7: =IF(IF((F$3*10^12-$A8)*(F$3*10^12-$A7)*-1<0,0,1)*IF(ABS(F$3*10^12-$A8)>(F$3*10^12-$A7),$A7,$A8)=F8,0,IF((F$3*10^12-$A8)*(F$3*10^12-$A7)*-1<0,0,1)*IF(ABS(F$3*10^12-$A8)>(F$3*10^12-$A7),$A7,$A8)) -> 0 | G7: =IF(IF((G$3*10^12-$A8)*(G$3*10^12-$A7)*-1<0,0,1)*IF(ABS(G$3*10^12-$A8)>(G$3*10^12-$A7),$A7,$A8)=G8,0,IF((G$3*10^12-$A8)*(G$3*10^12-$A7)*-1<0,0,1)*IF(ABS(G$3*10^12-$A8)>(G$3*10^12-$A7),$A7,$A8)) -> 0 | H7: 0 | I7: 0 | J7: 0 | M7: Rc1ea | N7: =Rcea1 -> 5340.707505 | O7: 5360 | P7: Ω
A8: 0.68 | B8: 0 | C8: 0 | D8: 0 | E8: 0 | F8: 0 | G8: 0 | H8: 0 | I8: 0 | J8: 0 | M8: Rc1ea | N8: =Rcea2 -> 0 | O8: =IF(N8>(INT(0.5+100*POWER(10,IF(96*(LOG(N8)-INT(LOG(N8)))-ROUND(96*(LOG(N8)-INT(LOG(N8))),0)<0,ROUND(96*(LOG(N8)-INT(LOG(N8))),0)-1,ROUND(96*(LOG(N8)-INT(LOG(N8))),0))/96))*POWER(10,INT(LOG(N8))-2)+INT(0.5+100*POWER(10,(IF(96*(LOG(N8)-INT(LOG(N8)))-ROUND(96*(LOG(N8)-INT(LOG(N8))),0)<0,ROUND(96*(LOG(N8)-INT(LOG(N8))),0)-1,ROUND(96*(LOG(N8)-INT(LOG(N8))),0))+1)/96))*POWER(10,INT(LOG(N8))-2))/2,INT(0.5+100*POWER(10,(IF(96*(LOG(N8)-INT(LOG(N8)))-ROUND(96*(LOG(N8)-INT(LOG(N8))),0)<0,ROUND(96*(LOG(N8)-INT(LOG(N8))),0)-1,ROUND(96*(LOG(N8)-INT(LOG(N8))),0))+1)/96))*POWER(10,INT(LOG(N8))-2),INT(0.5+100*POWER(10,IF(96*(LOG(N8)-INT(LOG(N8)))-ROUND(96*(LOG(N8)-INT(LOG(N8))),0)<0,ROUND(96*(LOG(N8)-INT(LOG(N8))),0)-1,ROUND(96*(LOG(N8)-INT(LOG(N8))),0))/96))*POWER(10,INT(LOG(N8))-2)) ->  | P8: Ω
A9: 0.82 | B9: 0 | C9: 0 | D9: 0 | E9: 0 | F9: 0 | G9: 0 | H9: 0 | I9: 0 | J9: 0
A10: 1 | B10: 0 | C10: 0 | D10: 0 | E10: 0 | F10: 0 | G10: 0 | H10: 0 | I10: 0 | J10: 0 | M10: Rfb1 | N10: =Rfb1_ -> 49900 | O10: =IF(N10>(INT(0.5+100*POWER(10,IF(96*(LOG(N10)-INT(LOG(N10)))-ROUND(96*(LOG(N10)-INT(LOG(N10))),0)<0,ROUND(96*(LOG(N10)-INT(LOG(N10))),0)-1,ROUND(96*(LOG(N10)-INT(LOG(N10))),0))/96))*POWER(10,INT(LOG(N10))-2)+INT(0.5+100*POWER(10,(IF(96*(LOG(N10)-INT(LOG(N10)))-ROUND(96*(LOG(N10)-INT(LOG(N10))),0)<0,ROUND(96*(LOG(N10)-INT(LOG(N10))),0)-1,ROUND(96*(LOG(N10)-INT(LOG(N10))),0))+1)/96))*POWER(10,INT(LOG(N10))-2))/2,INT(0.5+100*POWER(10,(IF(96*(LOG(N10)-INT(LOG(N10)))-ROUND(96*(LOG(N10)-INT(LOG(N10))),0)<0,ROUND(96*(LOG(N10)-INT(LOG(N10))),0)-1,ROUND(96*(LOG(N10)-INT(LOG(N10))),0))+1)/96))*POWER(10,INT(LOG(N10))-2),INT(0.5+100*POWER(10,IF(96*(LOG(N10)-INT(LOG(N10)))-ROUND(96*(LOG(N10)-INT(LOG(N10))),0)<0,ROUND(96*(LOG(N10)-INT(LOG(N10))),0)-1,ROUND(96*(LOG(N10)-INT(LOG(N10))),0))/96))*POWER(10,INT(LOG(N10))-2)) -> 49900 | P10: Ω
A11: 1.2 | B11: 0 | C11: 0 | D11: 0 | E11: 0 | F11: 0 | G11: 0 | H11: 0 | I11: 0 | J11: 0 | M11: Rfb2 | N11: =Rfb2_ -> 15757.89474 | O11: =IF(N11="OPEN","OPEN",IF(N11>(INT(0.5+100*POWER(10,IF(96*(LOG(N11)-INT(LOG(N11)))-ROUND(96*(LOG(N11)-INT(LOG(N11))),0)<0,ROUND(96*(LOG(N11)-INT(LOG(N11))),0)-1,ROUND(96*(LOG(N11)-INT(LOG(N11))),0))/96))*POWER(10,INT(LOG(N11))-2)+INT(0.5+100*POWER(10,(IF(96*(LOG(N11)-INT(LOG(N11)))-ROUND(96*(LOG(N11)-INT(LOG(N11))),0)<0,ROUND(96*(LOG(N11)-INT(LOG(N11))),0)-1,ROUND(96*(LOG(N11)-INT(LOG(N11))),0))+1)/96))*POWER(10,INT(LOG(N11))-2))/2,INT(0.5+100*POWER(10,(IF(96*(LOG(N11)-INT(LOG(N11)))-ROUND(96*(LOG(N11)-INT(LOG(N11))),0)<0,ROUND(96*(LOG(N11)-INT(LOG(N11))),0)-1,ROUND(96*(LOG(N11)-INT(LOG(N11))),0))+1)/96))*POWER(10,INT(LOG(N11))-2),INT(0.5+100*POWER(10,IF(96*(LOG(N11)-INT(LOG(N11)))-ROUND(96*(LOG(N11)-INT(LOG(N11))),0)<0,ROUND(96*(LOG(N11)-INT(LOG(N11))),0)-1,ROUND(96*(LOG(N11)-INT(LOG(N11))),0))/96))*POWER(10,INT(LOG(N11))-2))) -> 15800 | P11: Ω
A12: 1.5 | B12: 0 | C12: 0 | D12: 0 | E12: 0 | F12: 0 | G12: 0 | H12: 0 | I12: 0 | J12: 0 | M12: Rt1 | N12: ='Variable Management'!B27*1000 -> 52859.3577 | O12: =IF(N12>(INT(0.5+100*POWER(10,IF(96*(LOG(N12)-INT(LOG(N12)))-ROUND(96*(LOG(N12)-INT(LOG(N12))),0)<0,ROUND(96*(LOG(N12)-INT(LOG(N12))),0)-1,ROUND(96*(LOG(N12)-INT(LOG(N12))),0))/96))*POWER(10,INT(LOG(N12))-2)+INT(0.5+100*POWER(10,(IF(96*(LOG(N12)-INT(LOG(N12)))-ROUND(96*(LOG(N12)-INT(LOG(N12))),0)<0,ROUND(96*(LOG(N12)-INT(LOG(N12))),0)-1,ROUND(96*(LOG(N12)-INT(LOG(N12))),0))+1)/96))*POWER(10,INT(LOG(N12))-2))/2,INT(0.5+100*POWER(10,(IF(96*(LOG(N12)-INT(LOG(N12)))-ROUND(96*(LOG(N12)-INT(LOG(N12))),0)<0,ROUND(96*(LOG(N12)-INT(LOG(N12))),0)-1,ROUND(96*(LOG(N12)-INT(LOG(N12))),0))+1)/96))*POWER(10,INT(LOG(N12))-2),INT(0.5+100*POWER(10,IF(96*(LOG(N12)-INT(LOG(N12)))-ROUND(96*(LOG(N12)-INT(LOG(N12))),0)<0,ROUND(96*(LOG(N12)-INT(LOG(N12))),0)-1,ROUND(96*(LOG(N12)-INT(LOG(N12))),0))/96))*POWER(10,INT(LOG(N12))-2)) -> 52300 | P12: Ω
A13: 1.8 | B13: 0 | C13: 0 | D13: 0 | E13: 0 | F13: 0 | G13: 0 | H13: 0 | I13: 0 | J13: 0 | M13: Rt2 | N13: ='Variable Management'!B28*1000 -> 10275.34392 | O13: =IF(N13="OPEN","OPEN",IF(N13>(INT(0.5+100*POWER(10,IF(96*(LOG(N13)-INT(LOG(N13)))-ROUND(96*(LOG(N13)-INT(LOG(N13))),0)<0,ROUND(96*(LOG(N13)-INT(LOG(N13))),0)-1,ROUND(96*(LOG(N13)-INT(LOG(N13))),0))/96))*POWER(10,INT(LOG(N13))-2)+INT(0.5+100*POWER(10,(IF(96*(LOG(N13)-INT(LOG(N13)))-ROUND(96*(LOG(N13)-INT(LOG(N13))),0)<0,ROUND(96*(LOG(N13)-INT(LOG(N13))),0)-1,ROUND(96*(LOG(N13)-INT(LOG(N13))),0))+1)/96))*POWER(10,INT(LOG(N13))-2))/2,INT(0.5+100*POWER(10,(IF(96*(LOG(N13)-INT(LOG(N13)))-ROUND(96*(LOG(N13)-INT(LOG(N13))),0)<0,ROUND(96*(LOG(N13)-INT(LOG(N13))),0)-1,ROUND(96*(LOG(N13)-INT(LOG(N13))),0))+1)/96))*POWER(10,INT(LOG(N13))-2),INT(0.5+100*POWER(10,IF(96*(LOG(N13)-INT(LOG(N13)))-ROUND(96*(LOG(N13)-INT(LOG(N13))),0)<0,ROUND(96*(LOG(N13)-INT(LOG(N13))),0)-1,ROUND(96*(LOG(N13)-INT(LOG(N13))),0))/96))*POWER(10,INT(LOG(N13))-2))) -> 10200 | P13: Ω
A14: 2.2 | B14: =IF(IF((B$3*10^12-$A15)*(B$3*10^12-$A14)*-1<0,0,1)*IF(ABS(B$3*10^12-$A15)>(B$3*10^12-$A14),$A14,$A15)=B15,0,IF((B$3*10^12-$A15)*(B$3*10^12-$A14)*-1<0,0,1)*IF(ABS(B$3*10^12-$A15)>(B$3*10^12-$A14),$A14,$A15)) -> 0 | C14: 0 | D14: 0 | E14: 0 | F14: 0 | G14: 0 | H14: 0 | I14: 0 | J14: 0
A15: 2.7 | B15: 0 | C15: 0 | D15: 0 | E15: 0 | F15: 0 | G15: 0 | H15: 0 | I15: 0 | J15: 0
A16: 3.3 | B16: 0 | C16: 0 | D16: 0 | E16: 0 | F16: 0 | G16: 0 | H16: 0 | I16: 0 | J16: 0 | M16: Rs | N16: =Rs_ideal*1000 -> 3.869870234 | O16: =IF(N16=0,0,IF(N16>(INT(0.5+100*POWER(10,IF(96*(LOG(N16)-INT(LOG(N16)))-ROUND(96*(LOG(N16)-INT(LOG(N16))),0)<0,ROUND(96*(LOG(N16)-INT(LOG(N16))),0)-1,ROUND(96*(LOG(N16)-INT(LOG(N16))),0))/96))*POWER(10,INT(LOG(N16))-2)+INT(0.5+100*POWER(10,(IF(96*(LOG(N16)-INT(LOG(N16)))-ROUND(96*(LOG(N16)-INT(LOG(N16))),0)<0,ROUND(96*(LOG(N16)-INT(LOG(N16))),0)-1,ROUND(96*(LOG(N16)-INT(LOG(N16))),0))+1)/96))*POWER(10,INT(LOG(N16))-2))/2,INT(0.5+100*POWER(10,(IF(96*(LOG(N16)-INT(LOG(N16)))-ROUND(96*(LOG(N16)-INT(LOG(N16))),0)<0,ROUND(96*(LOG(N16)-INT(LOG(N16))),0)-1,ROUND(96*(LOG(N16)-INT(LOG(N16))),0))+1)/96))*POWER(10,INT(LOG(N16))-2),INT(0.5+100*POWER(10,IF(96*(LOG(N16)-INT(LOG(N16)))-ROUND(96*(LOG(N16)-INT(LOG(N16))),0)<0,ROUND(96*(LOG(N16)-INT(LOG(N16))),0)-1,ROUND(96*(LOG(N16)-INT(LOG(N16))),0))/96))*POWER(10,INT(LOG(N16))-2))) -> 3.83 | P16: mΩ
A17: 3.9 | B17: 0 | C17: 0 | D17: 0 | E17: 0 | F17: 0 | G17: 0 | H17: 0 | I17: 0 | J17: 0 | M17: Cres | N17: =Cres -> 3.333333333e-07 | O17: =G4*1000000000000 -> 330000 | P17: pF
A18: 4.7 | B18: 0 | C18: 0 | D18: 0 | E18: 0 | F18: 0 | G18: 0 | H18: 0 | I18: 0 | J18: 0
A19: 5.6 | B19: 0 | C19: 0 | D19: 0 | E19: 0 | F19: 0 | G19: 0 | H19: 0 | I19: 0 | J19: 0
A20: 6.8 | B20: 0 | C20: 0 | D20: 0 | E20: 0 | F20: 0 | G20: 0 | H20: 0 | I20: 0 | J20: 0
A21: 8.2 | B21: 0 | C21: 0 | D21: 0 | E21: 0 | F21: 0 | G21: 0 | H21: 0 | I21: 0 | J21: 0
A22: 10 | B22: 0 | C22: 0 | D22: 0 | E22: 0 | F22: 0 | G22: 0 | H22: 0 | I22: 0 | J22: 0 | M22: Cdither | N22: =Cdither_init -> 1.041666667e-08 | O22: =H4 -> 1e-08
A23: 12 | B23: 0 | C23: 0 | D23: 0 | E23: 0 | F23: 0 | G23: 0 | H23: 0 | I23: 0 | J23: 0
A24: 15 | B24: 0 | C24: 0 | D24: 0 | E24: 0 | F24: 0 | G24: 0 | H24: 0 | I24: 0 | J24: 0
A25: 18 | B25: 0 | C25: 0 | D25: 0 | E25: 0 | F25: 0 | G25: 0 | H25: 0 | I25: 0 | J25: 0
A26: 22 | B26: 0 | C26: 0 | D26: 0 | E26: 0 | F26: 0 | G26: 0 | H26: 0 | I26: 0 | J26: 0
A27: 27 | B27: 0 | C27: 0 | D27: 0 | E27: 0 | F27: 0 | G27: 0 | H27: 0 | I27: 0 | J27: 0
A28: 33 | B28: 0 | C28: 0 | D28: 0 | E28: 0 | F28: 0 | G28: 0 | H28: 0 | I28: 0 | J28: 0
A29: 39 | B29: 0 | C29: 0 | D29: 0 | E29: 0 | F29: 0 | G29: 0 | H29: 0 | I29: 0 | J29: 0
A30: 47 | B30: 0 | C30: 0 | D30: 0 | E30: 0 | F30: 0 | G30: 0 | H30: 0 | I30: 0 | J30: 0 | M30: Rc1 | N30: =O7/1000&" kΩ" -> 5.36 kΩ | O30: =O7/1000 -> 5.36 | P30: kΩ
A31: 56 | B31: 0 | C31: 0 | D31: 0 | E31: 0 | F31: 0 | G31: 0 | H31: 0 | I31: 0 | J31: 0 | M31: Cc1 | N31: =C4*1000000000&" nF" -> 4.7 nF | O31: =C4*1000000000 -> 4.7 | P31: nF
A32: 68 | B32: 0 | C32: 0 | D32: 0 | E32: 0 | F32: 0 | G32: 0 | H32: 0 | I32: 0 | J32: 0 | M32: Cc2 | N32: =D4*1000000000000&" pF" -> 0 pF | O32: =D4*1000000000000 -> 0 | P32: pF
A33: 82 | B33: 0 | C33: 0 | D33: 0 | E33: 0 | F33: 0 | G33: 0 | H33: 0 | I33: 0 | J33: 0
A34: =A22*10 -> 100 | B34: 0 | C34: 0 | D34: 0 | E34: 0 | F34: 0 | G34: 0 | H34: 0 | I34: 0 | J34: 0 | M34: Rc2 | N34: =O8/1000&" kΩ" ->  | O34: =O8/1000 ->  | P34: kΩ
A35: =A23*10 -> 120 | B35: 0 | C35: 0 | D35: 0 | E35: 0 | F35: 0 | G35: 0 | H35: 0 | I35: 0 | J35: 0 | M35: Cc3 | N35: =I4*1000000000&" nF" -> 0 nF | O35: =I4*1000000000 -> 0 | P35: nF
A36: 150 | B36: 0 | C36: 0 | D36: 0 | E36: 0 | F36: 0 | G36: 0 | H36: 0 | I36: 0 | J36: 0 | M36: Cc4 | N36: =J4*1000000000000&" pF" -> 0 pF | O36: =J4*1000000000000 -> 0 | P36: pF
A37: 180 | B37: 0 | C37: 0 | D37: 0 | E37: 0 | F37: 0 | G37: 0 | H37: 0 | I37: 0 | J37: 0
A38: 220 | B38: 0 | C38: 0 | D38: 0 | E38: 0 | F38: 0 | G38: 0 | H38: 0 | I38: 0 | J38: 0
A39: 270 | B39: 0 | C39: =IF(IF((C$3*10^12-$A40)*(C$3*10^12-$A39)*-1<0,0,1)*IF(ABS(C$3*10^12-$A40)>(C$3*10^12-$A39),$A39,$A40)=C40,0,IF((C$3*10^12-$A40)*(C$3*10^12-$A39)*-1<0,0,1)*IF(ABS(C$3*10^12-$A40)>(C$3*10^12-$A39),$A39,$A40)) -> 0 | D39: 0 | E39: 0 | F39: 0 | G39: 0 | H39: 0 | I39: 0 | J39: 0
A40: 330 | B40: 0 | C40: 0 | D40: 0 | E40: 0 | F40: 0 | G40: 0 | H40: 0 | I40: 0 | J40: 0
A41: 390 | B41: 0 | C41: 0 | D41: 0 | E41: 0 | F41: 0 | G41: 0 | H41: 0 | I41: 0 | J41: 0
A42: 470 | B42: 0 | C42: 0 | D42: 0 | E42: 0 | F42: 0 | G42: 0 | H42: 0 | I42: 0 | J42: 0
A43: 560 | B43: 0 | C43: 0 | D43: 0 | E43: 0 | F43: 0 | G43: 0 | H43: 0 | I43: 0 | J43: 0
A44: 680 | B44: 0 | C44: 0 | D44: 0 | E44: 0 | F44: 0 | G44: 0 | H44: 0 | I44: 0 | J44: 0
A45: =A33*10 -> 820 | B45: 0 | C45: 0 | D45: 0 | E45: 0 | F45: 0 | G45: 0 | H45: 0 | I45: 0 | J45: 0
A46: 1000 | B46: 0 | C46: 0 | D46: 0 | E46: 0 | F46: 0 | G46: 0 | H46: 0 | I46: 0 | J46: 0
A47: 1200 | B47: 0 | C47: 0 | D47: 0 | E47: 0 | F47: 0 | G47: 0 | H47: 0 | I47: 0 | J47: 0
A48: 1500 | B48: 0 | C48: 0 | D48: 0 | E48: 0 | F48: 0 | G48: 0 | H48: 0 | I48: 0 | J48: 0
A49: 1800 | B49: 0 | C49: 0 | D49: 0 | E49: 0 | F49: 0 | G49: 0 | H49: 0 | I49: 0 | J49: 0
A50: 2200 | B50: 0 | C50: 0 | D50: 0 | E50: 0 | F50: 0 | G50: 0 | H50: 0 | I50: 0 | J50: 0
A51: 2700 | B51: 0 | C51: 0 | D51: 0 | E51: 0 | F51: 0 | G51: 0 | H51: 0 | I51: 0 | J51: 0
A52: 3300 | B52: 0 | C52: 0 | D52: 0 | E52: 0 | F52: 0 | G52: 0 | H52: 0 | I52: 0 | J52: 0
A53: 3900 | B53: 0 | C53: 0 | D53: 0 | E53: 0 | F53: 0 | G53: 0 | H53: 0 | I53: 0 | J53: 0
A54: 4700 | B54: 0 | C54: 4700 | D54: 0 | E54: 0 | F54: 0 | G54: 0 | H54: 0 | I54: 0 | J54: 0
A55: 5600 | B55: 0 | C55: 0 | D55: 0 | E55: 0 | F55: 0 | G55: 0 | H55: 0 | I55: 0 | J55: 0
A56: 6800 | B56: 0 | C56: 0 | D56: 0 | E56: 0 | F56: 0 | G56: 0 | H56: 0 | I56: 0 | J56: 0
A57: 8200 | B57: 0 | C57: 0 | D57: 0 | E57: 0 | F57: 0 | G57: 0 | H57: 0 | I57: 0 | J57: 0
A58: 10000 | B58: 0 | C58: 0 | D58: 0 | E58: 0 | F58: 0 | G58: 0 | H58: 10000 | I58: 0 | J58: 0
A59: 12000 | B59: 0 | C59: 0 | D59: 0 | E59: 0 | F59: 0 | G59: 0 | H59: 0 | I59: 0 | J59: 0
A60: 15000 | B60: 0 | C60: 0 | D60: 0 | E60: 0 | F60: 0 | G60: 0 | H60: 0 | I60: 0 | J60: 0
A61: 18000 | B61: 0 | C61: 0 | D61: 0 | E61: 0 | F61: 0 | G61: 0 | H61: 0 | I61: 0 | J61: 0
A62: 22000 | B62: 0 | C62: 0 | D62: 0 | E62: 0 | F62: 0 | G62: 0 | H62: 0 | I62: 0 | J62: 0
A63: 27000 | B63: 0 | C63: 0 | D63: 0 | E63: 0 | F63: 0 | G63: 0 | H63: 0 | I63: 0 | J63: 0
A64: 33000 | B64: 0 | C64: 0 | D64: 0 | E64: 0 | F64: 0 | G64: 0 | H64: 0 | I64: 0 | J64: 0
A65: 39000 | B65: 0 | C65: 0 | D65: 0 | E65: 0 | F65: 0 | G65: 0 | H65: 0 | I65: 0 | J65: 0
A66: 47000 | B66: 56000 | C66: 0 | D66: 0 | E66: 0 | F66: 0 | G66: 0 | H66: 0 | I66: 0 | J66: 0
A67: 56000 | B67: 0 | C67: 0 | D67: 0 | E67: 0 | F67: 0 | G67: 0 | H67: 0 | I67: 0 | J67: 0
A68: 68000 | B68: 0 | C68: 0 | D68: 0 | E68: 0 | F68: 0 | G68: 0 | H68: 0 | I68: 0 | J68: 0
A69: 82000 | B69: 0 | C69: 0 | D69: 0 | E69: 0 | F69: 0 | G69: 0 | H69: 0 | I69: 0 | J69: =IF(IF((J$3*10^12-$A70)*(J$3*10^12-$A69)*-1<0,0,1)*IF(ABS(J$3*10^12-$A70)>(J$3*10^12-$A69),$A69,$A70)=J70,0,IF((J$3*10^12-$A70)*(J$3*10^12-$A69)*-1<0,0,1)*IF(ABS(J$3*10^12-$A70)>(J$3*10^12-$A69),$A69,$A70)) -> 0
A70: 100000 | B70: 0 | C70: 0 | D70: =IF(IF((D$3*10^12-$A71)*(D$3*10^12-$A70)*-1<0,0,1)*IF(ABS(D$3*10^12-$A71)>(D$3*10^12-$A70),$A70,$A71)=D71,0,IF((D$3*10^12-$A71)*(D$3*10^12-$A70)*-1<0,0,1)*IF(ABS(D$3*10^12-$A71)>(D$3*10^12-$A70),$A70,$A71)) -> 0 | E70: 0 | F70: 0 | G70: 0 | H70: 0 | I70: 0 | J70: 0
A71: 120000 | B71: =IF(IF((B$3*10^12-$A72)*(B$3*10^12-$A71)*-1<0,0,1)*IF(ABS(B$3*10^12-$A72)>(B$3*10^12-$A71),$A71,$A72)=B72,0,IF((B$3*10^12-$A72)*(B$3*10^12-$A71)*-1<0,0,1)*IF(ABS(B$3*10^12-$A72)>(B$3*10^12-$A71),$A71,$A72)) -> 0 | C71: =IF(IF((C$3*10^12-$A72)*(C$3*10^12-$A71)*-1<0,0,1)*IF(ABS(C$3*10^12-$A72)>(C$3*10^12-$A71),$A71,$A72)=C72,0,IF((C$3*10^12-$A72)*(C$3*10^12-$A71)*-1<0,0,1)*IF(ABS(C$3*10^12-$A72)>(C$3*10^12-$A71),$A71,$A72)) -> 0 | D71: 0 | E71: 0 | F71: =IF(IF((F$3*10^12-$A72)*(F$3*10^12-$A71)*-1<0,0,1)*IF(ABS(F$3*10^12-$A72)>(F$3*10^12-$A71),$A71,$A72)=F72,0,IF((F$3*10^12-$A72)*(F$3*10^12-$A71)*-1<0,0,1)*IF(ABS(F$3*10^12-$A72)>(F$3*10^12-$A71),$A71,$A72)) -> 0 | G71: =IF(IF((G$3*10^12-$A72)*(G$3*10^12-$A71)*-1<0,0,1)*IF(ABS(G$3*10^12-$A72)>(G$3*10^12-$A71),$A71,$A72)=G72,0,IF((G$3*10^12-$A72)*(G$3*10^12-$A71)*-1<0,0,1)*IF(ABS(G$3*10^12-$A72)>(G$3*10^12-$A71),$A71,$A72)) -> 0 | H71: =IF(IF((H$3*10^12-$A72)*(H$3*10^12-$A71)*-1<0,0,1)*IF(ABS(H$3*10^12-$A72)>(H$3*10^12-$A71),$A71,$A72)=H72,0,IF((H$3*10^12-$A72)*(H$3*10^12-$A71)*-1<0,0,1)*IF(ABS(H$3*10^12-$A72)>(H$3*10^12-$A71),$A71,$A72)) -> 0 | I71: =IF(IF((I$3*10^12-$A72)*(I$3*10^12-$A71)*-1<0,0,1)*IF(ABS(I$3*10^12-$A72)>(I$3*10^12-$A71),$A71,$A72)=I72,0,IF((I$3*10^12-$A72)*(I$3*10^12-$A71)*-1<0,0,1)*IF(ABS(I$3*10^12-$A72)>(I$3*10^12-$A71),$A71,$A72)) -> 0 | J71: 0
A72: 150000 | B72: 0 | C72: 0 | D72: 0 | E72: 0 | F72: 0 | G72: 0 | H72: 0 | I72: 0 | J72: 0
A73: 180000 | B73: 0 | C73: 0 | D73: 0 | E73: 0 | F73: 0 | G73: 0 | H73: 0 | I73: 0 | J73: 0
A74: 220000 | B74: 0 | C74: 0 | D74: 0 | E74: 0 | F74: 0 | G74: 0 | H74: 0 | I74: 0 | J74: 0
A75: 270000 | B75: 0 | C75: 0 | D75: 0 | E75: 0 | F75: 0 | G75: 0 | H75: 0 | I75: 0 | J75: 0
A76: 330000 | B76: 0 | C76: 0 | D76: 0 | E76: 0 | F76: 0 | G76: 330000 | H76: 0 | I76: 0 | J76: 0
A77: 390000 | B77: 0 | C77: 0 | D77: 0 | E77: 0 | F77: 0 | G77: 0 | H77: 0 | I77: 0 | J77: 0
A78: 470000 | B78: 0 | C78: 0 | D78: 0 | E78: 0 | F78: 0 | G78: 0 | H78: 0 | I78: 0 | J78: 0
A79: 560000 | B79: 0 | C79: 0 | D79: 0 | E79: 0 | F79: 0 | G79: 0 | H79: 0 | I79: 0 | J79: 0
A80: 680000 | B80: 0 | C80: 0 | D80: 0 | E80: 0 | F80: 0 | G80: 0 | H80: 0 | I80: 0 | J80: 0
A81: 820000 | B81: 0 | C81: 0 | D81: 0 | E81: 0 | F81: 0 | G81: 0 | H81: 0 | I81: 0 | J81: 0
A82: 1000000 | B82: 0 | C82: 0 | D82: 0 | E82: 0 | F82: 0 | G82: 0 | H82: 0 | I82: 0 | J82: 0
A83: 1200000 | B83: 0 | C83: 0 | D83: 0 | E83: 0 | F83: 0 | G83: 0 | H83: 0 | I83: 0 | J83: 0
A84: 1500000 | B84: 0 | C84: 0 | D84: 0 | E84: 0 | F84: 0 | G84: 0 | H84: 0 | I84: 0 | J84: 0
A85: 1800000 | B85: 0 | C85: 0 | D85: 0 | E85: 0 | F85: 0 | G85: 0 | H85: 0 | I85: 0 | J85: 0
A86: 2200000 | B86: 0 | C86: 0 | D86: 0 | E86: 0 | F86: 0 | G86: 0 | H86: 0 | I86: 0 | J86: 0
A87: 2700000 | B87: 0 | C87: 0 | D87: 0 | E87: 0 | F87: 0 | G87: 0 | H87: 0 | I87: 0 | J87: 0
A88: 3300000 | B88: 0 | C88: 0 | D88: 0 | E88: 0 | F88: 0 | G88: 0 | H88: 0 | I88: 0 | J88: 0
A89: 3900000 | B89: 0 | C89: 0 | D89: 0 | E89: 0 | F89: 0 | G89: 0 | H89: 0 | I89: 0 | J89: 0
A90: 4700000 | B90: 0 | C90: 0 | D90: 0 | E90: 0 | F90: 0 | G90: 0 | H90: 0 | I90: 0 | J90: 0
A91: 5600000 | B91: 0 | C91: 0 | D91: 0 | E91: 0 | F91: 0 | G91: 0 | H91: 0 | I91: 0 | J91: 0
A92: 6800000 | B92: 0 | C92: 0 | D92: 0 | E92: 0 | F92: 0 | G92: 0 | H92: 0 | I92: 0 | J92: 0
A93: 8200000 | B93: 0 | C93: 0 | D93: 0 | E93: 0 | F93: 0 | G93: 0 | H93: 0 | I93: 0 | J93: 0
A94: 10000000 | B94: 0 | C94: 0 | D94: 0 | E94: 0 | F94: 0 | G94: 0 | H94: 0 | I94: 0 | J94: 0
A95: 12000000 | B95: 0 | C95: 0 | D95: 0 | E95: 0 | F95: 0 | G95: 0 | H95: 0 | I95: 0 | J95: 0
A96: 15000000 | B96: 0 | C96: 0 | D96: 0 | E96: 0 | F96: 0 | G96: 0 | H96: 0 | I96: 0 | J96: 0
A97: 18000000 | B97: 0 | C97: 0 | D97: 0 | E97: 0 | F97: 0 | G97: 0 | H97: 0 | I97: 0 | J97: 0
A98: 22000000 | B98: 0 | C98: 0 | D98: 0 | E98: 0 | F98: 0 | G98: 0 | H98: 0 | I98: 0 | J98: 0
A99: =A87*10 -> 27000000 | B99: 0 | C99: 0 | D99: 0 | E99: 0 | F99: 33000000 | G99: 0 | H99: 0 | I99: 0 | J99: 0
A100: 33000000 | B100: 0 | C100: 0 | D100: 0 | E100: 0 | F100: 0 | G100: 0 | H100: 0 | I100: 0 | J100: 0
A101: 39000000 | B101: 0 | C101: 0 | D101: 0 | E101: 0 | F101: 0 | G101: 0 | H101: 0 | I101: 0 | J101: 0
A102: 47000000 | B102: 0 | C102: 0 | D102: 0 | E102: 0 | F102: 0 | G102: 0 | H102: 0 | I102: 0 | J102: 0
A103: 56000000 | B103: 0 | C103: 0 | D103: 0 | E103: 0 | F103: =IF(IF((F$3*10^12-$A104)*(F$3*10^12-$A103)*-1<0,0,1)*IF(ABS(F$3*10^12-$A104)>(F$3*10^12-$A103),$A103,$A104)=F104,0,IF((F$3*10^12-$A104)*(F$3*10^12-$A103)*-1<0,0,1)*IF(ABS(F$3*10^12-$A104)>(F$3*10^12-$A103),$A103,$A104)) -> 0 | G103: =IF(IF((G$3*10^12-$A104)*(G$3*10^12-$A103)*-1<0,0,1)*IF(ABS(G$3*10^12-$A104)>(G$3*10^12-$A103),$A103,$A104)=G104,0,IF((G$3*10^12-$A104)*(G$3*10^12-$A103)*-1<0,0,1)*IF(ABS(G$3*10^12-$A104)>(G$3*10^12-$A103),$A103,$A104)) -> 0 | H103: =IF(IF((H$3*10^12-$A104)*(H$3*10^12-$A103)*-1<0,0,1)*IF(ABS(H$3*10^12-$A104)>(H$3*10^12-$A103),$A103,$A104)=H104,0,IF((H$3*10^12-$A104)*(H$3*10^12-$A103)*-1<0,0,1)*IF(ABS(H$3*10^12-$A104)>(H$3*10^12-$A103),$A103,$A104)) -> 0 | I103: =IF(IF((I$3*10^12-$A104)*(I$3*10^12-$A103)*-1<0,0,1)*IF(ABS(I$3*10^12-$A104)>(I$3*10^12-$A103),$A103,$A104)=I104,0,IF((I$3*10^12-$A104)*(I$3*10^12-$A103)*-1<0,0,1)*IF(ABS(I$3*10^12-$A104)>(I$3*10^12-$A103),$A103,$A104)) -> 0 | J103: 0
A104: 68000000 | B104: 0 | C104: 0 | D104: 0 | E104: 0 | F104: 0 | G104: 0 | H104: 0 | I104: 0 | J104: 0
A105: 82000000 | B105: 0 | C105: 0 | D105: 0 | E105: 82000000 | F105: 0 | G105: 0 | H105: 0 | I105: 0 | J105: 0
A106: 100000000 | B106: 0 | C106: 0 | D106: 0 | E106: 0 | F106: 0 | G106: 0 | H106: 0 | I106: 0 | J106: 0
A107: 120000000 | B107: 0 | C107: 0 | D107: 0 | E107: 0 | F107: 0 | G107: 0 | H107: 0 | I107: 0 | J107: 0
A108: 150000000 | B108: 0 | C108: 0 | D108: 0 | E108: 0 | F108: 0 | G108: 0 | H108: 0 | I108: 0 | J108: 0
A109: 180000000 | B109: 0 | C109: 0 | D109: 0 | E109: 0 | F109: 0 | G109: 0 | H109: 0 | I109: 0 | J109: 0
A110: 220000000 | B110: 0 | C110: 0 | D110: 0 | E110: 0 | F110: 0 | G110: 0 | H110: 0 | I110: 0 | J110: 0
A111: 270000000 | B111: 0 | C111: 0 | D111: 0 | E111: 0 | F111: 0 | G111: 0 | H111: 0 | I111: 0 | J111: 0
A112: 330000000 | B112: 0 | C112: 0 | D112: 0 | E112: 0 | F112: 0 | G112: 0 | H112: 0 | I112: 0 | J112: 0
A113: 390000000 | B113: 0 | C113: 0 | D113: 0 | E113: 0 | F113: 0 | G113: 0 | H113: 0 | I113: 0 | J113: 0
A114: 470000000 | B114: 0 | C114: 0 | D114: 0 | E114: 0 | F114: 0 | G114: 0 | H114: 0 | I114: 0 | J114: 0
A115: 560000000 | B115: 0 | C115: 0 | D115: 0 | E115: 0 | F115: 0 | G115: 0 | H115: 0 | I115: 0 | J115: 0
A116: 680000000 | B116: 0 | C116: 0 | D116: 0 | E116: 0 | F116: 0 | G116: 0 | H116: 0 | I116: 0 | J116: 0
A117: 820000000 | B117: 0 | C117: 0 | D117: 0 | E117: 0 | F117: 0 | G117: 0 | H117: 0 | I117: 0 | J117: 0
A118: 1000000000 | B118: 0 | C118: 0 | D118: 0 | E118: 0 | F118: 0 | G118: 0 | H118: 0 | I118: 0 | J118: 0
A119: 1200000000 | B119: 0 | C119: 0 | D119: 0 | E119: 0 | F119: 0 | G119: 0 | H119: 0 | I119: 0 | J119: 0
A120: 1500000000 | B120: 0 | C120: 0 | D120: 0 | E120: 0 | F120: 0 | G120: 0 | H120: 0 | I120: 0 | J120: 0
A121: 1800000000 | B121: 0 | C121: 0 | D121: 0 | E121: 0 | F121: 0 | G121: 0 | H121: 0 | I121: 0 | J121: 0
A122: 2200000000 | B122: 0 | C122: 0 | D122: 0 | E122: 0 | F122: 0 | G122: 0 | H122: 0 | I122: 0 | J122: 0
A123: 2700000000 | B123: 0 | C123: 0 | D123: 0 | E123: 0 | F123: 0 | G123: 0 | H123: 0 | I123: 0 | J123: 0
A124: 3300000000 | B124: 0 | C124: 0 | D124: 0 | E124: 0 | F124: 0 | G124: 0 | H124: 0 | I124: 0 | J124: 0
A125: 3900000000 | B125: 0 | C125: 0 | D125: 0 | E125: 0 | F125: 0 | G125: 0 | H125: 0 | I125: 0 | J125: 0
A126: 4700000000 | B126: 0 | C126: 0 | D126: 0 | E126: 0 | F126: 0 | G126: 0 | H126: 0 | I126: 0 | J126: 0
A127: 5600000000 | B127: 0 | C127: 0 | D127: 0 | E127: 0 | F127: 0 | G127: 0 | H127: 0 | I127: 0 | J127: 0
A128: 6800000000 | B128: 0 | C128: 0 | D128: 0 | E128: 0 | F128: 0 | G128: 0 | H128: 0 | I128: 0 | J128: 0
A129: 8200000000 | B129: 0 | C129: 0 | D129: 0 | E129: 0 | F129: 0 | G129: 0 | H129: 0 | I129: 0 | J129: 0
A130: 10000000000 | B130: 0 | C130: 0 | D130: 0 | E130: 0 | F130: 0 | G130: 0 | H130: 0 | I130: 0 | J130: 0
A131: 12000000000 | B131: 0 | C131: 0 | D131: 0 | E131: 0 | F131: 0 | G131: 0 | H131: 0 | I131: 0 | J131: 0
A132: 15000000000 | B132: 0 | C132: 0 | D132: 0 | E132: 0 | F132: 0 | G132: 0 | H132: 0 | I132: 0 | J132: 0
A133: 18000000000 | B133: 0 | C133: 0 | D133: 0 | E133: 0 | F133: 0 | G133: 0 | H133: 0 | I133: 0 | J133: =IF(IF((J$3*10^12-$A134)*(J$3*10^12-$A133)*-1<0,0,1)*IF(ABS(J$3*10^12-$A134)>(J$3*10^12-$A133),$A133,$A134)=J134,0,IF((J$3*10^12-$A134)*(J$3*10^12-$A133)*-1<0,0,1)*IF(ABS(J$3*10^12-$A134)>(J$3*10^12-$A133),$A133,$A134)) -> 0
A134: 22000000000 | B134: 0 | C134: 0 | D134: 0 | E134: =IF(IF((E$3*10^12-$A135)*(E$3*10^12-$A134)*-1<0,0,1)*IF(ABS(E$3*10^12-$A135)>(E$3*10^12-$A134),$A134,$A135)=E135,0,IF((E$3*10^12-$A135)*(E$3*10^12-$A134)*-1<0,0,1)*IF(ABS(E$3*10^12-$A135)>(E$3*10^12-$A134),$A134,$A135)) -> 0 | F134: 0 | G134: 0 | H134: 0 | I134: 0 | J134: =IF(IF((J$3*10^12-$A135)*(J$3*10^12-$A134)*-1<0,0,1)*IF(ABS(J$3*10^12-$A135)>(J$3*10^12-$A134),$A134,$A135)=J135,0,IF((J$3*10^12-$A135)*(J$3*10^12-$A134)*-1<0,0,1)*IF(ABS(J$3*10^12-$A135)>(J$3*10^12-$A134),$A134,$A135)) -> 0
A135: 27000000000 | B135: =IF(IF((B$3*10^12-$A136)*(B$3*10^12-$A135)*-1<0,0,1)*IF(ABS(B$3*10^12-$A136)>(B$3*10^12-$A135),$A135,$A136)=B136,0,IF((B$3*10^12-$A136)*(B$3*10^12-$A135)*-1<0,0,1)*IF(ABS(B$3*10^12-$A136)>(B$3*10^12-$A135),$A135,$A136)) -> 0 | C135: =IF(IF((C$3*10^12-$A136)*(C$3*10^12-$A135)*-1<0,0,1)*IF(ABS(C$3*10^12-$A136)>(C$3*10^12-$A135),$A135,$A136)=C136,0,IF((C$3*10^12-$A136)*(C$3*10^12-$A135)*-1<0,0,1)*IF(ABS(C$3*10^12-$A136)>(C$3*10^12-$A135),$A135,$A136)) -> 0 | D135: 0 | E135: 0 | F135: 0 | G135: 0 | H135: 0 | I135: 0 | J135: 0
A136: 33000000000 | B136: 0 | C136: 0 | D136: 0 | E136: 0 | F136: 0 | G136: 0 | H136: 0 | I136: 0 | J136: 0
A137: 39000000000 | B137: 0 | C137: 0 | D137: 0 | E137: 0 | F137: 0 | G137: 0 | H137: 0 | I137: 0 | J137: 0
A138: 47000000000 | B138: 0 | C138: 0 | D138: 0 | E138: 0 | F138: 0 | G138: 0 | H138: 0 | I138: 0 | J138: 0
A139: 56000000000 | B139: 0 | C139: 0 | D139: 0 | E139: 0 | F139: 0 | G139: 0 | H139: 0 | I139: 0 | J139: 0
A140: 68000000000 | B140: 0 | C140: 0 | D140: 0 | E140: 0 | F140: 0 | G140: 0 | H140: 0 | I140: 0 | J140: 0
A141: 82000000000 | B141: 0 | C141: 0 | D141: 0 | E141: 0 | F141: 0 | G141: 0 | H141: 0 | I141: 0 | J141: 0
A142: 100000000000 | B142: 0 | C142: 0 | D142: 0 | E142: 0 | F142: 0 | G142: 0 | H142: 0 | I142: 0 | J142: 0
A143: 120000000000 | B143: 0 | C143: 0 | D143: 0 | E143: 0 | F143: 0 | G143: 0 | H143: 0 | I143: 0 | J143: 0
A144: 150000000000 | B144: 0 | C144: 0 | D144: 0 | E144: 0 | F144: 0 | G144: 0 | H144: 0 | I144: 0 | J144: 0
A145: 180000000000 | B145: 0 | C145: 0 | D145: 0 | E145: 0 | F145: 0 | G145: 0 | H145: 0 | I145: 0 | J145: 0
A146: 220000000000 | B146: 0 | C146: 0 | D146: 0 | E146: 0 | F146: 0 | G146: 0 | H146: 0 | I146: 0 | J146: 0
A147: 270000000000 | B147: 0 | C147: 0 | D147: 0 | E147: 0 | F147: 0 | G147: 0 | H147: 0 | I147: 0 | J147: 0
A148: 330000000000 | B148: 0 | C148: 0 | D148: 0 | E148: 0 | F148: 0 | G148: 0 | H148: 0 | I148: 0 | J148: 0
A149: 390000000000 | B149: 0 | C149: 0 | D149: 0 | E149: 0 | F149: 0 | G149: 0 | H149: 0 | I149: 0 | J149: 0
A150: 470000000000 | B150: 0 | C150: 0 | D150: 0 | E150: 0 | F150: 0 | G150: 0 | H150: 0 | I150: 0 | J150: 0
A151: 560000000000 | B151: 0 | C151: 0 | D151: 0 | E151: 0 | F151: 0 | G151: 0 | H151: 0 | I151: 0 | J151: 0
A152: 680000000000 | B152: 0 | C152: 0 | D152: 0 | E152: 0 | F152: 0 | G152: 0 | H152: 0 | I152: 0 | J152: 0
A153: 820000000000 | B153: 0 | C153: 0 | D153: 0 | E153: 0 | F153: 0 | G153: 0 | H153: 0 | I153: 0 | J153: 0
A154: 1000000000000 | B154: 0 | C154: 0 | D154: 0 | E154: 0 | F154: 0 | G154: 0 | H154: 0 | I154: 0 | J154: 0
A155: 1200000000000 | B155: 0 | C155: 0 | D155: 0 | E155: 0 | F155: 0 | G155: 0 | H155: 0 | I155: 0 | J155: 0
A156: 1500000000000 | B156: 0 | C156: 0 | D156: 0 | E156: 0 | F156: 0 | G156: 0 | H156: 0 | I156: 0 | J156: 0
A157: 1800000000000 | B157: 0 | C157: 0 | D157: 0 | E157: 0 | F157: 0 | G157: 0 | H157: 0 | I157: 0 | J157: 0
A158: 2200000000000 | B158: 0 | C158: 0 | D158: 0 | E158: 0 | F158: 0 | G158: 0 | H158: 0 | I158: 0 | J158: 0
A159: 2700000000000 | B159: 2700000000000 | C159: 2700000000000 | D159: 0 | E159: 2700000000000 | F159: 2700000000000 | G159: 2700000000000 | H159: 2700000000000 | I159: 2700000000000 | J159: 2700000000000

Sheet Snubber (hidden)
C1: UNITS | D1: STD UNITS
A2: Frequency of Ringing | B2: 85 | C2: MHz | D2: =B2*1000000 -> 85000000 | E2: Hz
A3: SW capacitance | B3: 3000 | C3: pF | D3: =B3*0.000000000001 -> 3e-09 | E3: F
A4: Lpar | B4: =1000000000*1/((D2*2*3.14159)^2*D3) -> 1.168643077 | C4: nH | D4: =B4/1000000000 -> 1.168643077e-09 | E4: H
A5: Csnub | B5: =4*B3 -> 12000 | C5: pF | D5: =B5*0.000000000001 -> 1.2e-08 | E5: F
A6: Rsnub | B6: =SQRT(D4/D3) -> 0.6241375589 | C6: Ω | D6: =B6 -> 0.6241375589 | E6: Ω

Sheet Parallel Output Caps (hidden)
A4: Fsw | B4: =Fsw -> 2100000
A6: C1 | B6: 20 | C6: uF | D6: =B6/1000000 -> 2e-05 | E6: F
A7: R1 | B7: 0.5 | C7: mOhms | D7: =B7/1000 -> 0.0005 | E7: Ohms
A9: C2 | B9: 68 | C9: uF | D9: =B9/1000000 -> 6.8e-05 | E9: F
A10: R2 | B10: 20 | C10: mOhms | D10: =B10/1000 -> 0.02 | E10: Ohms
A13: I1 | B13: =(D6/(D6+D9))*SQRT((D10*D9*B4)^2+1)/SQRT((((D7+D10)*D6*D9/(D9+D6))*B4)^2+1) -> 0.5725816668 | C13: %
A14: I2 | B14: =1-B13 -> 0.4274183332 | C14: %
A16: I1 | B16: =B13*(Iripple1/(2*SQRT(3))) ->  | C16: A
A17: I2 | B17: =B14*(Iripple1/(2*SQRT(3))) ->  | C17: A
